Workbook

Sheet ТИТУЛ
A1: НАИМЕНОВАНИЕ УЧРЕЖДЕНИЯ
A10: Диагностика индивидуального развития детей 3-4 лет с ТНР
A12: 20__-20___ учебный год
A14: В соответствии с Федеральной адаптированной образовательной
A15: программой дошкольного образования
A16: Приказ Министерства просвещения РФ от 24.11.2022г.
A20: Педагоги:
A22: Воспитатель:
A23: Воспитатель:
A24: Учитель-логопед:
A25: Муз.руководитель

Sheet ОГЛАВЛЕНИЕ
B1: ОГЛАВЛЕНИЕ:
B2: Кликнув мышкой по соответствующему названию, вы автоматически перейдете в нужный раздел.
A3: наименование вкладки | B3: ТИТУЛЬНЫЙ ЛИСТ
A4: Образовательная область "Речевое развитие"
A5: РР-1 | B5: НАПРАВЛЕНИЕ I. ФОРМИРОВАНИЕ СЛОВАРЯ
A6: РР-2 | B6: НАПРАВЛЕНИЕ 2. ЗВУКОВАЯ КУЛЬТУРА РЕЧИ. ПОДГОТОВКА К ОБУЧЕНИЮ ГРАМОТЕ
A7: РР-3 | B7: НАПРАВЛЕНИЕ 3. ГРАММАТИЧЕСКИЙ СТРОЙ РЕЧИ.
A8: РР-4 | B8: НАПРАВЛЕНИЕ 4. СВЯЗНАЯ РЕЧЬ. ИНТЕРЕС К ХУДОЖЕСТВЕННОЙ ЛИТЕРАТУРЕ
A9: ИТОГ РР | B9: Обобщение результатов педагогической диагностики по направлениям ОО "Речевое развитие"
A10: Образовательная область "Познавательное развитие"
A11: ПР-1 | B11: НАПРАВЛЕНИЕ 1. СЕНСОРНЫЕ ЭТАЛОНЫ И ПОЗНАВАТЕЛЬНЫЕ ДЕЙСТВИЯ. ОКРУЖАЮЩИЙ МИР. ПРИРОДА.
A12: ПР-2 | B12: НАПРАВЛЕНИЕ 2. МАТЕМАТИЧЕСКИЕ ПРЕДСТАВЛЕНИЯ
A13: ИТОГ -ПР | B13: Обобщение результатов педагогической диагностики по направлениям ОО "Познавательное развитие"
A14: Образовательная область "Социально-коммуникативное развитие"
A15: СК-1 | B15: НАПРАВЛЕНИЕ 1. СОЦИАЛЬНЫЕ ОТНОШЕНИЯ.
A17: СК-1 | B17: НАПРАВЛЕНИЕ 2. ФОРМИРОВАНИЕ ОСНОВ ГРАЖДАНСТВЕННОСТИ И ПАРТИОТИЗМА.
A19: СК-2 | B19: НАПРАВЛЕНИЕ 3. ТРУДОВОЕ ВОСПИТАНИЕ
A20: СК-3 | B20: НАПРАВЛЕНИЕ 4. ФОРМИРОВАНИЕ БЕЗОПАСНОГО ПОВЕДЕНИЯ
A21: ИТОГ СК | B21: Обобщение результатов педагогической диагностики по направлениям ОО "Социально-коммуникативное развитие"
A22: Образовательная область "Художественно-эстетическое развитие"
A23: ХЭ-1 | B23: НАПРАВЛЕНИЕ I. ПРИОБЩЕНИЕ К ИСКУССТВУ
A24: ХЭ-2 | B24: НАПРАВЛЕНИЕ 2. КОНСТРУКТИВНАЯ ДЕЯТЕЛЬНОСТЬ
A25: ХЭ-3 | B25: НАПРАВЛЕНИЕ 3. ИЗОБРАЗИТЕЛЬНАЯ ДЕЯТЕЛЬНОСТЬ
A26: ХЭ-4 | B26: НАПРАВЛЕНИЕ 4. МУЗЫКАЛЬНАЯ ДЕЯТЕЛЬНОСТЬ
A27: ХЭ-5 | B27: НАПРАВЛЕНИЕ 5. ТЕАТРАЛИЗОВАННАЯ И КУЛЬТУРНО-ДОСУГОВАЯ ДЕЯТЕЛЬНОСТЬ
A28: ИТОГ ХЭ | B28: Обобщение результатов педагогической диагностики по направлениям ОО "Художественно-эстетическое развитие"
A29: Образовательная область "Физическое развитие"
A30: ФР-1 | B30: НАПРАВЛЕНИЕ I. ОСНОВНАЯ ГИМНАСТИКА. ПОДВИЖНЫЕ И СПОРТИВНЫЕ ИГРЫ. СПОРТИВНЫЕ УПРАЖНЕНИЯ
A31: ФР-2 | B31: НАПРАВЛЕНИЕ 2. ФОРМИРОВАНИЕ ОСНОВ ЗДОРОВОГО ОБРАЗА ЖИЗНИ. АКТИВНЫЙ ОТДЫХ
A32: ИТОГ ФР | B32: Обобщение результатов педагогической диагностики по направлениям ОО «Физическое развитие»
A34: ОБЩИЙ ИТОГ | B34: Обобщение результатов педагогической диагностики по всем образовательным областям

Sheet Список группы
A1: Список обучающихся
B3: №п/п | C3: Фамилия имя ребенка | D3: Возраст | E3: Заключение
B4: 1 | C4: Бахтин Антон
B5: 2 | C5: Башилова Наталья
B6: 3 | C6: Бирюкова Екатерина
B7: 4 | C7: Власов Дмитрий
B8: 5 | C8: Гущина Софья
B9: 6 | C9: Десятниченко Кирилл
B10: 7 | C10: Йолсал Дениз
B11: 8 | C11: Кирилина Виктория
B12: 9 | C12: Князева Алиса
B13: 10 | C13: Максимова Анна
B14: 11 | C14: Меньшов Алексей
B15: 12 | C15: Муравлев Даниил
B16: 13 | C16: Панов Тимофей
B17: 14 | C17: Саркисов Илья
B18: 15 | C18: Свирская Анастасия
B19: 16 | C19: Семенина Елизавета
B20: 17 | C20: Сергеев Алексей
B21: 18 | C21: Солопов Максим
B22: 19 | C22: Стригунов Александр
B23: 20 | C23: Тихонов Данил
B24: 21 | C24: Федоров Данила
B25: 22 | C25: Чалдина Дарья
B26: 23 | C26: Черногоров Аркадий
B27: 24 | C27: Шагабудинов Владислав

Sheet РР-1
A1: Образовательная область «Речевое развитие»
A2: НАПРАВЛЕНИЕ I. ФОРМИРОВАНИЕ СЛОВАРЯ | U2: ОГЛАВЛЕНИЕ
A4: №п/п | B4: ФИ ребенка | C4: Понимает и использует в речи обобщающие слова | I4: Понимает и употребляет слова, обозначающие название | O4: Понимает и использует в речи | U4: среднее значение
C5: игрушки | E5: посуда | G5: одежда | I5: предметов (по картинками) - стол, стул, окно, голова, рука, нос, уши, глаза | K5: действий (где мальчик стоит, идет, сидит, играет?) | M5: признаков (называет предьявленные цвета) | O5: существительные | Q5: глаголы | S5: прилагательные
C6: н.г. | D6: к.г. | E6: н.г. | F6: к.г. | G6: н.г. | H6: к.г. | I6: н.г. | J6: к.г. | K6: н.г. | L6: к.г. | M6: н.г. | N6: к.г. | O6: н.г. | P6: к.г. | Q6: н.г. | R6: к.г. | S6: н.г. | T6: к.г. | U6: н.г. | V6: к.г.
A7: 1 | B7: ='Список группы'!C4 -> Бахтин Антон | C7: 3 | D7: 4 | E7: 3 | F7: 4 | G7: 3 | H7: 4 | I7: 4 | J7: 5 | K7: 4 | L7: 5 | M7: 3 | N7: 4 | O7: 3 | P7: 4 | Q7: 3 | R7: 4 | S7: 3 | T7: 4 | U7: =(C7+E7+G7+I7+K7+M7+O7+Q7+S7)/9 -> 3.22 | V7: =(D7+F7+H7+J7+L7+N7+P7+R7+T7)/9 -> 4.22
A8: 2 | B8: ='Список группы'!C5 -> Башилова Наталья | C8: 2 | D8: 3 | E8: 2 | F8: 3 | G8: 2 | H8: 3 | I8: 3 | J8: 4 | K8: 3 | L8: 4 | M8: 3 | N8: 4 | O8: 4 | P8: 5 | Q8: 4 | R8: 5 | S8: 3 | T8: 4 | U8: =(C8+E8+G8+I8+K8+M8+O8+Q8+S8)/9 -> 2.89 | V8: =(D8+F8+H8+J8+L8+N8+P8+R8+T8)/9 -> 3.89
A9: 3 | B9: ='Список группы'!C6 -> Бирюкова Екатерина | C9: 5 | D9: 5 | E9: 5 | F9: 5 | G9: 5 | H9: 5 | I9: 5 | J9: 5 | K9: 5 | L9: 5 | M9: 5 | N9: 5 | O9: 5 | P9: 5 | Q9: 5 | R9: 5 | S9: 5 | T9: 5 | U9: 5.00 | V9: 5.00
A10: 4 | B10: ='Список группы'!C7 -> Власов Дмитрий | C10: 3 | D10: 2 | E10: 4 | F10: 3 | G10: 5 | H10: 3 | I10: 4 | J10: 3 | K10: 4 | L10: 2 | M10: 3 | N10: 2 | O10: 3 | P10: 2 | Q10: 3 | R10: 3 | S10: 4 | T10: 3 | U10: 3.67 | V10: 2.56
A11: 5 | B11: ='Список группы'!C8 -> Гущина Софья | C11: 3 | D11: 4 | E11: 3 | F11: 4 | G11: 3 | H11: 4 | I11: 4 | J11: 5 | K11: 4 | L11: 5 | M11: 3 | N11: 4 | O11: 3 | P11: 4 | Q11: 3 | R11: 4 | S11: 3 | T11: 4 | U11: 3.22 | V11: 4.22
A12: 6 | B12: ='Список группы'!C9 -> Десятниченко Кирилл | C12: 2 | D12: 3 | E12: 2 | F12: 3 | G12: 2 | H12: 3 | I12: 3 | J12: 4 | K12: 3 | L12: 4 | M12: 3 | N12: 4 | O12: 4 | P12: 5 | Q12: 4 | R12: 5 | S12: 3 | T12: 4 | U12: 2.89 | V12: 3.89
A13: 7 | B13: ='Список группы'!C10 -> Йолсал Дениз | C13: 5 | D13: 5 | E13: 5 | F13: 5 | G13: 5 | H13: 5 | I13: 5 | J13: 5 | K13: 5 | L13: 5 | M13: 5 | N13: 5 | O13: 5 | P13: 5 | Q13: 5 | R13: 5 | S13: 5 | T13: 5 | U13: 5.00 | V13: 5.00
A14: 8 | B14: ='Список группы'!C11 -> Кирилина Виктория | C14: 3 | D14: 2 | E14: 4 | F14: 3 | G14: 5 | H14: 3 | I14: 4 | J14: 3 | K14: 4 | L14: 2 | M14: 3 | N14: 2 | O14: 3 | P14: 2 | Q14: 3 | R14: 3 | S14: 4 | T14: 3 | U14: 3.67 | V14: 2.56
A15: 9 | B15: ='Список группы'!C12 -> Князева Алиса | C15: 3 | D15: 4 | E15: 3 | F15: 4 | G15: 3 | H15: 4 | I15: 4 | J15: 5 | K15: 4 | L15: 5 | M15: 3 | N15: 4 | O15: 3 | P15: 4 | Q15: 3 | R15: 4 | S15: 3 | T15: 4 | U15: 3.22 | V15: 4.22
A16: 10 | B16: ='Список группы'!C13 -> Максимова Анна | C16: 2 | D16: 3 | E16: 2 | F16: 3 | G16: 2 | H16: 3 | I16: 3 | J16: 4 | K16: 3 | L16: 4 | M16: 3 | N16: 4 | O16: 4 | P16: 5 | Q16: 4 | R16: 5 | S16: 3 | T16: 4 | U16: 2.89 | V16: 3.89
A17: 11 | B17: ='Список группы'!C14 -> Меньшов Алексей | C17: 5 | D17: 5 | E17: 5 | F17: 5 | G17: 5 | H17: 5 | I17: 5 | J17: 5 | K17: 5 | L17: 5 | M17: 5 | N17: 5 | O17: 5 | P17: 5 | Q17: 5 | R17: 5 | S17: 5 | T17: 5 | U17: 5.00 | V17: 5.00
A18: 12 | B18: ='Список группы'!C15 -> Муравлев Даниил | C18: 3 | D18: 2 | E18: 4 | F18: 3 | G18: 5 | H18: 3 | I18: 4 | J18: 3 | K18: 4 | L18: 2 | M18: 3 | N18: 2 | O18: 3 | P18: 2 | Q18: 3 | R18: 3 | S18: 4 | T18: 3 | U18: 3.67 | V18: 2.56
A19: 13 | B19: ='Список группы'!C16 -> Панов Тимофей | C19: 3 | D19: 4 | E19: 3 | F19: 4 | G19: 3 | H19: 4 | I19: 4 | J19: 5 | K19: 4 | L19: 5 | M19: 3 | N19: 4 | O19: 3 | P19: 4 | Q19: 3 | R19: 4 | S19: 3 | T19: 4 | U19: 3.22 | V19: 4.22
A20: 14 | B20: ='Список группы'!C17 -> Саркисов Илья | C20: 2 | D20: 3 | E20: 2 | F20: 3 | G20: 2 | H20: 3 | I20: 3 | J20: 4 | K20: 3 | L20: 4 | M20: 3 | N20: 4 | O20: 4 | P20: 5 | Q20: 4 | R20: 5 | S20: 3 | T20: 4 | U20: 2.89 | V20: 3.89
A21: 15 | B21: ='Список группы'!C18 -> Свирская Анастасия | C21: 5 | D21: 5 | E21: 5 | F21: 5 | G21: 5 | H21: 5 | I21: 5 | J21: 5 | K21: 5 | L21: 5 | M21: 5 | N21: 5 | O21: 5 | P21: 5 | Q21: 5 | R21: 5 | S21: 5 | T21: 5 | U21: 5.00 | V21: 5.00
A22: 16 | B22: ='Список группы'!C19 -> Семенина Елизавета | C22: 3 | D22: 2 | E22: 4 | F22: 3 | G22: 5 | H22: 3 | I22: 4 | J22: 3 | K22: 4 | L22: 2 | M22: 3 | N22: 2 | O22: 3 | P22: 2 | Q22: 3 | R22: 3 | S22: 4 | T22: 3 | U22: 3.67 | V22: 2.56
A23: 17 | B23: ='Список группы'!C20 -> Сергеев Алексей | C23: 3 | D23: 4 | E23: 3 | F23: 4 | G23: 3 | H23: 4 | I23: 4 | J23: 5 | K23: 4 | L23: 5 | M23: 3 | N23: 4 | O23: 3 | P23: 4 | Q23: 3 | R23: 4 | S23: 3 | T23: 4 | U23: 3.22 | V23: 4.22
A24: 18 | B24: ='Список группы'!C21 -> Солопов Максим | C24: 2 | D24: 3 | E24: 2 | F24: 3 | G24: 2 | H24: 3 | I24: 3 | J24: 4 | K24: 3 | L24: 4 | M24: 3 | N24: 4 | O24: 4 | P24: 5 | Q24: 4 | R24: 5 | S24: 3 | T24: 4 | U24: 2.89 | V24: 3.89
A25: 19 | B25: ='Список группы'!C22 -> Стригунов Александр | C25: 5 | D25: 5 | E25: 5 | F25: 5 | G25: 5 | H25: 5 | I25: 5 | J25: 5 | K25: 5 | L25: 5 | M25: 5 | N25: 5 | O25: 5 | P25: 5 | Q25: 5 | R25: 5 | S25: 5 | T25: 5 | U25: 5.00 | V25: 5.00
A26: 20 | B26: ='Список группы'!C23 -> Тихонов Данил | C26: 3 | D26: 2 | E26: 4 | F26: 3 | G26: 5 | H26: 3 | I26: 4 | J26: 3 | K26: 4 | L26: 2 | M26: 3 | N26: 2 | O26: 3 | P26: 2 | Q26: 3 | R26: 3 | S26: 4 | T26: 3 | U26: 3.67 | V26: 2.56
A27: 21 | B27: ='Список группы'!C24 -> Федоров Данила | C27: 3 | D27: 4 | E27: 3 | F27: 4 | G27: 3 | H27: 4 | I27: 4 | J27: 5 | K27: 4 | L27: 5 | M27: 3 | N27: 4 | O27: 3 | P27: 4 | Q27: 3 | R27: 4 | S27: 3 | T27: 4 | U27: 3.22 | V27: 4.22
A28: 22 | B28: ='Список группы'!C25 -> Чалдина Дарья | C28: 2 | D28: 3 | E28: 2 | F28: 3 | G28: 2 | H28: 3 | I28: 3 | J28: 4 | K28: 3 | L28: 4 | M28: 3 | N28: 4 | O28: 4 | P28: 5 | Q28: 4 | R28: 5 | S28: 3 | T28: 4 | U28: 2.89 | V28: 3.89
A29: 23 | B29: ='Список группы'!C26 -> Черногоров Аркадий | C29: 5 | D29: 5 | E29: 5 | F29: 5 | G29: 5 | H29: 5 | I29: 5 | J29: 5 | K29: 5 | L29: 5 | M29: 5 | N29: 5 | O29: 5 | P29: 5 | Q29: 5 | R29: 5 | S29: 5 | T29: 5 | U29: 5.00 | V29: 5.00
A30: 24 | B30: ='Список группы'!C27 -> Шагабудинов Владислав | C30: 3 | D30: 2 | E30: 4 | F30: 3 | G30: 5 | H30: 3 | I30: 4 | J30: 3 | K30: 4 | L30: 2 | M30: 3 | N30: 2 | O30: 3 | P30: 2 | Q30: 3 | R30: 3 | S30: 4 | T30: 3 | U30: 3.67 | V30: 2.56
B31: среднее значение: | C31: =SUM(C7:C30)/(COUNTA($B$7:$B$30)-COUNTIF($B$7:$B$30,"=0")) -> 3.25 | D31: =SUM(D7:D30)/(COUNTA($B$7:$B$30)-COUNTIF($B$7:$B$30,"=0")) -> 3.50 | E31: 3.50 | F31: 3.75 | G31: 3.75 | H31: 3.75 | I31: 4.00 | J31: 4.25 | K31: 4.00 | L31: 4.00 | M31: 3.50 | N31: 3.75 | O31: 3.75 | P31: 4.00 | Q31: 3.75 | R31: 4.25 | S31: 3.75 | T31: 4.00 | U31: 3.69 | V31: 3.92
B33: начало года
C34: всего | D34: норма | E34: ниже нормы | F34: низкий
B35: количество детей | C35: =COUNTA($B$7:$B$30)-COUNTIF($B$7:$B$30,"=0") -> 24 | D35: =COUNTIF($U$7:$U$30,">=3,8") -> 6 | E35: =COUNTIFS($U$7:$U$30,"<3,7",$U$7:$U$30,">=2,3") -> 18 | F35: =COUNTIFS($U$7:$U$30,"<2,2",$U$7:$U$30,">0") -> 0
B36: % | C36: 100 | D36: =D35*C36/C35 -> 25.0 | E36: =E35*C36/C35 -> 75.0 | F36: =F35*C36/C35 -> 0.0
B38: конец года
C39: всего | D39: норма | E39: ниже нормы | F39: низкий
B40: количество детей | C40: =COUNTA($B$7:$B$30)-COUNTIF($B$7:$B$30,"=0") -> 24 | D40: =COUNTIF($V$7:$V$30,">=3,8") -> 18 | E40: =COUNTIFS($V$7:$V$30,"<3,7",$V$7:$V$30,">=2,3") -> 6 | F40: =COUNTIFS($V$7:$V$30,"<2,2",$V$7:$V$30,">0") -> 0
B41: % | C41: 100 | D41: =D40*C41/C40 -> 75.0 | E41: =E40*C41/C40 -> 25.0 | F41: =F40*C41/C40 -> 0.0

Sheet РР-2
A1: НАПРАВЛЕНИЕ 2. ЗВУКОВАЯ КУЛЬТУРА РЕЧИ. ПОДГОТОВКА К ОБУЧЕНИ ГРАМОТЕ. | Q1: ОГЛАВЛЕНИЕ
A3: №п/п | B3: ФИ ребенка | C3: Произносит простые по артикуляции звуки | E3: Воспроизводит звуковлоговую структуру | K3: Различает на слух длинные и короткие слова | M3: Вслушивается в звучание слова | O3: Владеет терминами "слово", "звук" | Q3: среднее значение
E4: односложных слов (дом, кот, дуб, бук, мак) | G4: двусложных слов (вода,нога, вата, Дима) | I4: трехсложных слов (вагоны, бананы, батоны, панама)
C5: н.г. | D5: к.г. | E5: н.г. | F5: к.г. | G5: н.г. | H5: к.г. | I5: н.г. | J5: к.г. | K5: н.г. | L5: к.г. | M5: н.г. | N5: к.г. | O5: н.г. | P5: к.г. | Q5: н.г. | R5: к.г.
A6: 1 | B6: ='Список группы'!C4 -> Бахтин Антон | C6: 3 | D6: 4 | E6: 3 | F6: 4 | G6: 3 | H6: 4 | I6: 4 | J6: 5 | K6: 4 | L6: 5 | M6: 3 | N6: 4 | O6: 3 | P6: 4 | Q6: =(C6+E6+G6+I6+K6+M6+O6)/7 -> 3.29 | R6: =(D6+F6+H6+J6+L6+N6+P6)/7 -> 4.29
A7: 2 | B7: ='Список группы'!C5 -> Башилова Наталья | C7: 2 | D7: 3 | E7: 2 | F7: 3 | G7: 2 | H7: 3 | I7: 3 | J7: 4 | K7: 3 | L7: 4 | M7: 3 | N7: 4 | O7: 4 | P7: 5 | Q7: =(C7+E7+G7+I7+K7+M7+O7)/7 -> 2.71 | R7: =(D7+F7+H7+J7+L7+N7+P7)/7 -> 3.71
A8: 3 | B8: ='Список группы'!C6 -> Бирюкова Екатерина | C8: 5 | D8: 5 | E8: 5 | F8: 5 | G8: 5 | H8: 5 | I8: 5 | J8: 5 | K8: 5 | L8: 5 | M8: 5 | N8: 5 | O8: 5 | P8: 5 | Q8: 5.00 | R8: 5.00
A9: 4 | B9: ='Список группы'!C7 -> Власов Дмитрий | C9: 3 | D9: 2 | E9: 4 | F9: 3 | G9: 5 | H9: 3 | I9: 4 | J9: 3 | K9: 4 | L9: 2 | M9: 3 | N9: 2 | O9: 3 | P9: 2 | Q9: 3.71 | R9: 2.43
A10: 5 | B10: ='Список группы'!C8 -> Гущина Софья | C10: 3 | D10: 4 | E10: 3 | F10: 4 | G10: 3 | H10: 4 | I10: 4 | J10: 5 | K10: 4 | L10: 5 | M10: 3 | N10: 4 | O10: 3 | P10: 4 | Q10: 3.29 | R10: 4.29
A11: 6 | B11: ='Список группы'!C9 -> Десятниченко Кирилл | C11: 2 | D11: 3 | E11: 2 | F11: 3 | G11: 2 | H11: 3 | I11: 3 | J11: 4 | K11: 3 | L11: 4 | M11: 3 | N11: 4 | O11: 4 | P11: 5 | Q11: 2.71 | R11: 3.71
A12: 7 | B12: ='Список группы'!C10 -> Йолсал Дениз | C12: 5 | D12: 5 | E12: 5 | F12: 5 | G12: 5 | H12: 5 | I12: 5 | J12: 5 | K12: 5 | L12: 5 | M12: 5 | N12: 5 | O12: 5 | P12: 5 | Q12: 5.00 | R12: 5.00
A13: 8 | B13: ='Список группы'!C11 -> Кирилина Виктория | C13: 3 | D13: 2 | E13: 4 | F13: 3 | G13: 5 | H13: 3 | I13: 4 | J13: 3 | K13: 4 | L13: 2 | M13: 3 | N13: 2 | O13: 3 | P13: 2 | Q13: 3.71 | R13: 2.43
A14: 9 | B14: ='Список группы'!C12 -> Князева Алиса | C14: 3 | D14: 4 | E14: 3 | F14: 4 | G14: 3 | H14: 4 | I14: 4 | J14: 5 | K14: 4 | L14: 5 | M14: 3 | N14: 4 | O14: 3 | P14: 4 | Q14: 3.29 | R14: 4.29
A15: 10 | B15: ='Список группы'!C13 -> Максимова Анна | C15: 2 | D15: 3 | E15: 2 | F15: 3 | G15: 2 | H15: 3 | I15: 3 | J15: 4 | K15: 3 | L15: 4 | M15: 3 | N15: 4 | O15: 4 | P15: 5 | Q15: 2.71 | R15: 3.71
A16: 11 | B16: ='Список группы'!C14 -> Меньшов Алексей | C16: 5 | D16: 5 | E16: 5 | F16: 5 | G16: 5 | H16: 5 | I16: 5 | J16: 5 | K16: 5 | L16: 5 | M16: 5 | N16: 5 | O16: 5 | P16: 5 | Q16: 5.00 | R16: 5.00
A17: 12 | B17: ='Список группы'!C15 -> Муравлев Даниил | C17: 3 | D17: 2 | E17: 4 | F17: 3 | G17: 5 | H17: 3 | I17: 4 | J17: 3 | K17: 4 | L17: 2 | M17: 3 | N17: 2 | O17: 3 | P17: 2 | Q17: 3.71 | R17: 2.43
A18: 13 | B18: ='Список группы'!C16 -> Панов Тимофей | C18: 3 | D18: 4 | E18: 3 | F18: 4 | G18: 3 | H18: 4 | I18: 4 | J18: 5 | K18: 4 | L18: 5 | M18: 3 | N18: 4 | O18: 3 | P18: 4 | Q18: 3.29 | R18: 4.29
A19: 14 | B19: ='Список группы'!C17 -> Саркисов Илья | C19: 2 | D19: 3 | E19: 2 | F19: 3 | G19: 2 | H19: 3 | I19: 3 | J19: 4 | K19: 3 | L19: 4 | M19: 3 | N19: 4 | O19: 4 | P19: 5 | Q19: 2.71 | R19: 3.71
A20: 15 | B20: ='Список группы'!C18 -> Свирская Анастасия | C20: 5 | D20: 5 | E20: 5 | F20: 5 | G20: 5 | H20: 5 | I20: 5 | J20: 5 | K20: 5 | L20: 5 | M20: 5 | N20: 5 | O20: 5 | P20: 5 | Q20: 5.00 | R20: 5.00
A21: 16 | B21: ='Список группы'!C19 -> Семенина Елизавета | C21: 3 | D21: 2 | E21: 4 | F21: 3 | G21: 5 | H21: 3 | I21: 4 | J21: 3 | K21: 4 | L21: 2 | M21: 3 | N21: 2 | O21: 3 | P21: 2 | Q21: 3.71 | R21: 2.43
A22: 17 | B22: ='Список группы'!C20 -> Сергеев Алексей | C22: 3 | D22: 4 | E22: 3 | F22: 4 | G22: 3 | H22: 4 | I22: 4 | J22: 5 | K22: 4 | L22: 5 | M22: 3 | N22: 4 | O22: 3 | P22: 4 | Q22: 3.29 | R22: 4.29
A23: 18 | B23: ='Список группы'!C21 -> Солопов Максим | C23: 2 | D23: 3 | E23: 2 | F23: 3 | G23: 2 | H23: 3 | I23: 3 | J23: 4 | K23: 3 | L23: 4 | M23: 3 | N23: 4 | O23: 4 | P23: 5 | Q23: 2.71 | R23: 3.71
A24: 19 | B24: ='Список группы'!C22 -> Стригунов Александр | C24: 5 | D24: 5 | E24: 5 | F24: 5 | G24: 5 | H24: 5 | I24: 5 | J24: 5 | K24: 5 | L24: 5 | M24: 5 | N24: 5 | O24: 5 | P24: 5 | Q24: 5.00 | R24: 5.00
A25: 20 | B25: ='Список группы'!C23 -> Тихонов Данил | C25: 3 | D25: 2 | E25: 4 | F25: 3 | G25: 5 | H25: 3 | I25: 4 | J25: 3 | K25: 4 | L25: 2 | M25: 3 | N25: 2 | O25: 3 | P25: 2 | Q25: 3.71 | R25: 2.43
A26: 21 | B26: ='Список группы'!C24 -> Федоров Данила | C26: 3 | D26: 4 | E26: 3 | F26: 4 | G26: 3 | H26: 4 | I26: 4 | J26: 5 | K26: 4 | L26: 5 | M26: 3 | N26: 4 | O26: 3 | P26: 4 | Q26: 3.29 | R26: 4.29
A27: 22 | B27: ='Список группы'!C25 -> Чалдина Дарья | C27: 2 | D27: 3 | E27: 2 | F27: 3 | G27: 2 | H27: 3 | I27: 3 | J27: 4 | K27: 3 | L27: 4 | M27: 3 | N27: 4 | O27: 4 | P27: 5 | Q27: 2.71 | R27: 3.71
A28: 23 | B28: ='Список группы'!C26 -> Черногоров Аркадий | C28: 5 | D28: 5 | E28: 5 | F28: 5 | G28: 5 | H28: 5 | I28: 5 | J28: 5 | K28: 5 | L28: 5 | M28: 5 | N28: 5 | O28: 5 | P28: 5 | Q28: 5.00 | R28: 5.00
A29: 24 | B29: ='Список группы'!C27 -> Шагабудинов Владислав | C29: 3 | D29: 2 | E29: 4 | F29: 3 | G29: 5 | H29: 3 | I29: 4 | J29: 3 | K29: 4 | L29: 2 | M29: 3 | N29: 2 | O29: 3 | P29: 2 | Q29: 3.71 | R29: 2.43
B30: среднее значение: | C30: =SUM(C6:C29)/(COUNTA($B$6:$B$29)-COUNTIF(B6:B29,"=0")) -> 3.25 | D30: =SUM(D6:D29)/(COUNTA($B$6:$B$29)-COUNTIF(C6:C29,"=0")) -> 3.50 | E30: 3.50 | F30: 3.75 | G30: 3.75 | H30: 3.75 | I30: 4.00 | J30: 4.25 | K30: 4.00 | L30: 4.00 | M30: 3.50 | N30: 3.75 | O30: 3.75 | P30: 4.00 | Q30: 3.68 | R30: 3.86
B33: начало года
C34: всего | D34: норма | E34: ниже нормы | F34: низкий
B35: количество детей | C35: =COUNTA($B$6:$B$29)-COUNTIF($B$6:$B$29,"=0") -> 24 | D35: =COUNTIF(Q6:Q29,">=3,8") -> 6 | E35: =COUNTIFS(Q6:Q29,"<3,7",Q6:Q29,">=2,3") -> 12 | F35: =COUNTIFS(Q6:Q29,"<2,2",Q6:Q29,">0") -> 0
B36: % | C36: 100 | D36: =D35*C36/C35 -> 25.0 | E36: =E35*C36/C35 -> 50.0 | F36: =F35*C36/C35 -> 0.0
B39: конец года
C40: всего | D40: норма | E40: ниже нормы | F40: низкий
B41: количество детей | C41: =COUNTA($B$6:$B$29)-COUNTIF($B$6:$B$29,"=0") -> 24 | D41: =COUNTIF(R6:R29,">=3,8") -> 12 | E41: =COUNTIFS(R6:R29,"<3,7",R6:R29,">=2,3") -> 6 | F41: =COUNTIFS(R6:R29,"<2,2",R6:R29,">0") -> 0
B42: % | C42: 100 | D42: =D41*C42/C41 -> 50.0 | E42: =E41*C42/C41 -> 25.0 | F42: =F41*C42/C41 -> 0.0

Sheet РР-3
A1: НАПРАВЛЕНИЕ 3. ГРАММАТИЧЕСКИЙ СТРОЙ РЕЧИ | Y1: ОГЛАВЛЕНИЕ
A3: №п/п | B3: ФИ ребенка | C3: Образует и использует в речи существительные (по картинкам) | G3: Умеет согласовывать прилагательные с сущ-ми ед.числа м.р. и ж.р. (красный мяч, синий шар, красная чашка, синяя лопатка) | I3: Употребляет предложно-падежные конструкции с предлогами (по картинкам) | M3: Использует в речи сущ-ые с уменьшительно-ласкат.суффиксами (по картинкам) | U3: Правильно употребляет в речи глаголы ед. и мн.числа (по картинкам) | Y3: среднее значение
C4: в Иминительном падеже, ед. и мн.числа (стол-столы, мяч-мячи, дом-дома, куала-куклы, рука-руки) | E4: в Винительном падеже без предлога (Что ты видишь? - вижу дом, машину, куклу) | I4: В | K4: НА | M4: дом-домик | O4: стул-стульчик | Q4: чашка-чашечка | S4: кукла-куколка | U4: кот спит - коты спят | W4: птичка летит - птички летят
C5: н.г. | D5: к.г. | E5: н.г. | F5: к.г. | G5: н.г. | H5: к.г. | I5: н.г. | J5: к.г. | K5: н.г. | L5: к.г. | M5: н.г. | N5: к.г. | O5: н.г. | P5: к.г. | Q5: н.г. | R5: к.г. | S5: н.г. | T5: к.г. | U5: н.г. | V5: к.г. | W5: н.г. | X5: к.г. | Y5: н.г. | Z5: к.г.
A6: 1 | B6: ='Список группы'!C4 -> Бахтин Антон | C6: 3 | D6: 4 | E6: 3 | F6: 4 | G6: 3 | H6: 4 | I6: 4 | J6: 5 | K6: 4 | L6: 5 | M6: 3 | N6: 4 | O6: 3 | P6: 4 | Q6: 3 | R6: 4 | S6: 3 | T6: 4 | U6: 3 | V6: 4 | W6: 3 | X6: 4 | Y6: =(C6+E6+G6+I6+K6+M6+O6+Q6+S6+U6+W6)/11 -> 3.18 | Z6: =(D6+F6+H6+J6+L6+N6+P6+R6+T6+V6+X6)/11 -> 4.18
A7: 2 | B7: ='Список группы'!C5 -> Башилова Наталья | C7: 2 | D7: 3 | E7: 2 | F7: 3 | G7: 2 | H7: 3 | I7: 3 | J7: 4 | K7: 3 | L7: 4 | M7: 3 | N7: 4 | O7: 4 | P7: 5 | Q7: 4 | R7: 5 | S7: 3 | T7: 4 | U7: 3 | V7: 4 | W7: 4 | X7: 5 | Y7: =(C7+E7+G7+I7+K7+M7+O7+Q7+S7+U7+W7)/11 -> 3.00 | Z7: =(D7+F7+H7+J7+L7+N7+P7+R7+T7+V7+X7)/11 -> 4.00
A8: 3 | B8: ='Список группы'!C6 -> Бирюкова Екатерина | C8: 5 | D8: 5 | E8: 5 | F8: 5 | G8: 5 | H8: 5 | I8: 5 | J8: 5 | K8: 5 | L8: 5 | M8: 5 | N8: 5 | O8: 5 | P8: 5 | Q8: 5 | R8: 5 | S8: 5 | T8: 5 | U8: 5 | V8: 5 | W8: 5 | X8: 5 | Y8: 5.00 | Z8: 5.00
A9: 4 | B9: ='Список группы'!C7 -> Власов Дмитрий | C9: 3 | D9: 2 | E9: 4 | F9: 3 | G9: 5 | H9: 3 | I9: 4 | J9: 3 | K9: 4 | L9: 2 | M9: 3 | N9: 2 | O9: 3 | P9: 2 | Q9: 3 | R9: 3 | S9: 4 | T9: 3 | U9: 4 | V9: 3 | W9: 4 | X9: 3 | Y9: 3.73 | Z9: 2.64
A10: 5 | B10: ='Список группы'!C8 -> Гущина Софья | C10: 3 | D10: 4 | E10: 3 | F10: 4 | G10: 3 | H10: 4 | I10: 4 | J10: 5 | K10: 4 | L10: 5 | M10: 3 | N10: 4 | O10: 3 | P10: 4 | Q10: 3 | R10: 4 | S10: 3 | T10: 4 | U10: 3 | V10: 4 | W10: 3 | X10: 4 | Y10: 3.18 | Z10: 4.18
A11: 6 | B11: ='Список группы'!C9 -> Десятниченко Кирилл | C11: 2 | D11: 3 | E11: 2 | F11: 3 | G11: 2 | H11: 3 | I11: 3 | J11: 4 | K11: 3 | L11: 4 | M11: 3 | N11: 4 | O11: 4 | P11: 5 | Q11: 4 | R11: 5 | S11: 3 | T11: 4 | U11: 3 | V11: 4 | W11: 4 | X11: 5 | Y11: 3.00 | Z11: 4.00
A12: 7 | B12: ='Список группы'!C10 -> Йолсал Дениз | C12: 5 | D12: 5 | E12: 5 | F12: 5 | G12: 5 | H12: 5 | I12: 5 | J12: 5 | K12: 5 | L12: 5 | M12: 5 | N12: 5 | O12: 5 | P12: 5 | Q12: 5 | R12: 5 | S12: 5 | T12: 5 | U12: 5 | V12: 5 | W12: 5 | X12: 5 | Y12: 5.00 | Z12: 5.00
A13: 8 | B13: ='Список группы'!C11 -> Кирилина Виктория | C13: 3 | D13: 2 | E13: 4 | F13: 3 | G13: 5 | H13: 3 | I13: 4 | J13: 3 | K13: 4 | L13: 2 | M13: 3 | N13: 2 | O13: 3 | P13: 2 | Q13: 3 | R13: 3 | S13: 4 | T13: 3 | U13: 4 | V13: 3 | W13: 4 | X13: 3 | Y13: 3.73 | Z13: 2.64
A14: 9 | B14: ='Список группы'!C12 -> Князева Алиса | C14: 3 | D14: 4 | E14: 3 | F14: 4 | G14: 3 | H14: 4 | I14: 4 | J14: 5 | K14: 4 | L14: 5 | M14: 3 | N14: 4 | O14: 3 | P14: 4 | Q14: 3 | R14: 4 | S14: 3 | T14: 4 | U14: 3 | V14: 4 | W14: 3 | X14: 4 | Y14: 3.18 | Z14: 4.18
A15: 10 | B15: ='Список группы'!C13 -> Максимова Анна | C15: 2 | D15: 3 | E15: 2 | F15: 3 | G15: 2 | H15: 3 | I15: 3 | J15: 4 | K15: 3 | L15: 4 | M15: 3 | N15: 4 | O15: 4 | P15: 5 | Q15: 4 | R15: 5 | S15: 3 | T15: 4 | U15: 3 | V15: 4 | W15: 4 | X15: 5 | Y15: 3.00 | Z15: 4.00
A16: 11 | B16: ='Список группы'!C14 -> Меньшов Алексей | C16: 5 | D16: 5 | E16: 5 | F16: 5 | G16: 5 | H16: 5 | I16: 5 | J16: 5 | K16: 5 | L16: 5 | M16: 5 | N16: 5 | O16: 5 | P16: 5 | Q16: 5 | R16: 5 | S16: 5 | T16: 5 | U16: 5 | V16: 5 | W16: 5 | X16: 5 | Y16: 5.00 | Z16: 5.00
A17: 12 | B17: ='Список группы'!C15 -> Муравлев Даниил | C17: 3 | D17: 2 | E17: 4 | F17: 3 | G17: 5 | H17: 3 | I17: 4 | J17: 3 | K17: 4 | L17: 2 | M17: 3 | N17: 2 | O17: 3 | P17: 2 | Q17: 3 | R17: 3 | S17: 4 | T17: 3 | U17: 4 | V17: 3 | W17: 4 | X17: 3 | Y17: 3.73 | Z17: 2.64
A18: 13 | B18: ='Список группы'!C16 -> Панов Тимофей | C18: 3 | D18: 4 | E18: 3 | F18: 4 | G18: 3 | H18: 4 | I18: 4 | J18: 5 | K18: 4 | L18: 5 | M18: 3 | N18: 4 | O18: 3 | P18: 4 | Q18: 3 | R18: 4 | S18: 3 | T18: 4 | U18: 3 | V18: 4 | W18: 3 | X18: 4 | Y18: 3.18 | Z18: 4.18
A19: 14 | B19: ='Список группы'!C17 -> Саркисов Илья | C19: 2 | D19: 3 | E19: 2 | F19: 3 | G19: 2 | H19: 3 | I19: 3 | J19: 4 | K19: 3 | L19: 4 | M19: 3 | N19: 4 | O19: 4 | P19: 5 | Q19: 4 | R19: 5 | S19: 3 | T19: 4 | U19: 3 | V19: 4 | W19: 4 | X19: 5 | Y19: 3.00 | Z19: 4.00
A20: 15 | B20: ='Список группы'!C18 -> Свирская Анастасия | C20: 5 | D20: 5 | E20: 5 | F20: 5 | G20: 5 | H20: 5 | I20: 5 | J20: 5 | K20: 5 | L20: 5 | M20: 5 | N20: 5 | O20: 5 | P20: 5 | Q20: 5 | R20: 5 | S20: 5 | T20: 5 | U20: 5 | V20: 5 | W20: 5 | X20: 5 | Y20: 5.00 | Z20: 5.00
A21: 16 | B21: ='Список группы'!C19 -> Семенина Елизавета | C21: 3 | D21: 2 | E21: 4 | F21: 3 | G21: 5 | H21: 3 | I21: 4 | J21: 3 | K21: 4 | L21: 2 | M21: 3 | N21: 2 | O21: 3 | P21: 2 | Q21: 3 | R21: 3 | S21: 4 | T21: 3 | U21: 4 | V21: 3 | W21: 4 | X21: 3 | Y21: 3.73 | Z21: 2.64
A22: 17 | B22: ='Список группы'!C20 -> Сергеев Алексей | C22: 3 | D22: 4 | E22: 3 | F22: 4 | G22: 3 | H22: 4 | I22: 4 | J22: 5 | K22: 4 | L22: 5 | M22: 3 | N22: 4 | O22: 3 | P22: 4 | Q22: 3 | R22: 4 | S22: 3 | T22: 4 | U22: 3 | V22: 4 | W22: 3 | X22: 4 | Y22: 3.18 | Z22: 4.18
A23: 18 | B23: ='Список группы'!C21 -> Солопов Максим | C23: 2 | D23: 3 | E23: 2 | F23: 3 | G23: 2 | H23: 3 | I23: 3 | J23: 4 | K23: 3 | L23: 4 | M23: 3 | N23: 4 | O23: 4 | P23: 5 | Q23: 4 | R23: 5 | S23: 3 | T23: 4 | U23: 3 | V23: 4 | W23: 4 | X23: 5 | Y23: 3.00 | Z23: 4.00
A24: 19 | B24: ='Список группы'!C22 -> Стригунов Александр | C24: 5 | D24: 5 | E24: 5 | F24: 5 | G24: 5 | H24: 5 | I24: 5 | J24: 5 | K24: 5 | L24: 5 | M24: 5 | N24: 5 | O24: 5 | P24: 5 | Q24: 5 | R24: 5 | S24: 5 | T24: 5 | U24: 5 | V24: 5 | W24: 5 | X24: 5 | Y24: 5.00 | Z24: 5.00
A25: 20 | B25: ='Список группы'!C23 -> Тихонов Данил | C25: 3 | D25: 2 | E25: 4 | F25: 3 | G25: 5 | H25: 3 | I25: 4 | J25: 3 | K25: 4 | L25: 2 | M25: 3 | N25: 2 | O25: 3 | P25: 2 | Q25: 3 | R25: 3 | S25: 4 | T25: 3 | U25: 4 | V25: 3 | W25: 4 | X25: 3 | Y25: 3.73 | Z25: 2.64
A26: 21 | B26: ='Список группы'!C24 -> Федоров Данила | C26: 3 | D26: 4 | E26: 3 | F26: 4 | G26: 3 | H26: 4 | I26: 4 | J26: 5 | K26: 4 | L26: 5 | M26: 3 | N26: 4 | O26: 3 | P26: 4 | Q26: 3 | R26: 4 | S26: 3 | T26: 4 | U26: 3 | V26: 4 | W26: 3 | X26: 4 | Y26: 3.18 | Z26: 4.18
A27: 22 | B27: ='Список группы'!C25 -> Чалдина Дарья | C27: 2 | D27: 3 | E27: 2 | F27: 3 | G27: 2 | H27: 3 | I27: 3 | J27: 4 | K27: 3 | L27: 4 | M27: 3 | N27: 4 | O27: 4 | P27: 5 | Q27: 4 | R27: 5 | S27: 3 | T27: 4 | U27: 3 | V27: 4 | W27: 4 | X27: 5 | Y27: 3.00 | Z27: 4.00
A28: 23 | B28: ='Список группы'!C26 -> Черногоров Аркадий | C28: 5 | D28: 5 | E28: 5 | F28: 5 | G28: 5 | H28: 5 | I28: 5 | J28: 5 | K28: 5 | L28: 5 | M28: 5 | N28: 5 | O28: 5 | P28: 5 | Q28: 5 | R28: 5 | S28: 5 | T28: 5 | U28: 5 | V28: 5 | W28: 5 | X28: 5 | Y28: 5.00 | Z28: 5.00
A29: 24 | B29: ='Список группы'!C27 -> Шагабудинов Владислав | C29: 3 | D29: 2 | E29: 4 | F29: 3 | G29: 5 | H29: 3 | I29: 4 | J29: 3 | K29: 4 | L29: 2 | M29: 3 | N29: 2 | O29: 3 | P29: 2 | Q29: 3 | R29: 3 | S29: 4 | T29: 3 | U29: 4 | V29: 3 | W29: 4 | X29: 3 | Y29: 3.73 | Z29: 2.64
B30: среднее значение: | C30: =SUM(C6:C29)/(COUNTA($B$6:$B$29)-COUNTIF($B$6:$B$29,"=0")) -> 3.25 | D30: =SUM(D6:D29)/(COUNTA($B$6:$B$29)-COUNTIF($B$6:$B$29,"=0")) -> 3.50 | E30: 3.50 | F30: 3.75 | G30: 3.75 | H30: 3.75 | I30: 4.00 | J30: 4.25 | K30: 4.00 | L30: 4.00 | M30: 3.50 | N30: 3.75 | O30: 3.75 | P30: 4.00 | Q30: 3.75 | R30: 4.25 | S30: 3.75 | T30: 4.00 | U30: 3.75 | V30: 4.00 | W30: 4.00 | X30: 4.25 | Y30: 3.73 | Z30: 3.95
B33: начало года
C34: всего | D34: норма | E34: ниже нормы | F34: низкий
B35: количество детей | C35: =COUNTA($B$6:$B$29)-COUNTIF($B$6:$B$29,"=0") -> 24 | D35: =COUNTIF($Y$6:$Y$29,">=3,8") -> 6 | E35: =COUNTIFS($Y$6:$Y$29,"<3,7",$Y$6:$Y$29,">=2,3") -> 12 | F35: =COUNTIFS($Y$6:$Y$29,"<2,2",$Y$6:$Y$29,">0") -> 0
B36: % | C36: 100 | D36: =D35*C36/C35 -> 25.0 | E36: =E35*C36/C35 -> 50.0 | F36: =F35*C36/C35 -> 0.0
B39: конец года
C40: всего | D40: норма | E40: ниже нормы | F40: низкий
B41: количество детей | C41: =COUNTA($B$6:$B$29)-COUNTIF($B$6:$B$29,"=0") -> 24 | D41: =COUNTIF($Z$6:$Z$29,">=3,8") -> 18 | E41: =COUNTIFS($Z$6:$Z$29,"<3,7",$Z$6:$Z$29,">=2,3") -> 6 | F41: =COUNTIFS($Z$6:$Z$29,"<2,2",$Z$6:$Z$29,">0") -> 0
B42: % | C42: 100 | D42: =D41*C42/C41 -> 75.0 | E42: =E41*C42/C41 -> 25.0 | F42: =F41*C42/C41 -> 0.0

Sheet РР-4
B1: НАПРАВЛЕНИЕ 4. СВЯЗНАЯ РЕЧЬ. ИНТЕРЕС К ХУДОЖЕСТВЕННОЙ ЛИТЕРАТУРЕ | O1: ОГЛАВЛЕНИЕ
B3: №п/п | C3: ФИ ребенка | D3: Рассказывает двустишья | F3: Отвечает на вопросы после прочтения сказки, используя слова, простые предложения, состоящие из двух-трех слов | H3: Передает содержание знакомой сказки по серии картинок с помощью педагога | J3: Внятно, не спеша произносит небольшие потешки и стихотворения | L3: Воспроизводит короткие ролевые диалоги из сказок и прибауток в играх-драматизациях | N3: Эмоционально откливаектся на процесс совместного слушания художественных произведений (улыбка, смех, жесты) | P3: Понимает содержание и композицию текста (поступки персонажы, последовательность событий) | R3: среднее значение
D5: н.г. | E5: к.г. | F5: н.г. | G5: к.г. | H5: н.г. | I5: к.г. | J5: н.г. | K5: к.г. | L5: н.г. | M5: к.г. | N5: н.г. | O5: к.г. | P5: н.г. | Q5: к.г. | R5: н.г. | S5: к.г.
B6: 1 | C6: ='Список группы'!C4 -> Бахтин Антон | D6: 3 | E6: 4 | F6: 3 | G6: 4 | H6: 3 | I6: 4 | J6: 4 | K6: 5 | L6: 4 | M6: 5 | N6: 3 | O6: 4 | P6: 3 | Q6: 4 | R6: =(D6+F6+H6+J6+L6+N6+P6)/7 -> 3.29 | S6: =(E6+G6+I6+K6+M6+O6+Q6)/7 -> 4.29
B7: 2 | C7: ='Список группы'!C5 -> Башилова Наталья | D7: 2 | E7: 3 | F7: 2 | G7: 3 | H7: 2 | I7: 3 | J7: 3 | K7: 4 | L7: 3 | M7: 4 | N7: 3 | O7: 4 | P7: 4 | Q7: 5 | R7: =(D7+F7+H7+J7+L7+N7+P7)/7 -> 2.71 | S7: =(E7+G7+I7+K7+M7+O7+Q7)/7 -> 3.71
B8: 3 | C8: ='Список группы'!C6 -> Бирюкова Екатерина | D8: 5 | E8: 5 | F8: 5 | G8: 5 | H8: 5 | I8: 5 | J8: 5 | K8: 5 | L8: 5 | M8: 5 | N8: 5 | O8: 5 | P8: 5 | Q8: 5 | R8: 5.00 | S8: 5.00
B9: 4 | C9: ='Список группы'!C7 -> Власов Дмитрий | D9: 3 | E9: 2 | F9: 4 | G9: 3 | H9: 5 | I9: 3 | J9: 4 | K9: 3 | L9: 4 | M9: 2 | N9: 3 | O9: 2 | P9: 3 | Q9: 2 | R9: 3.71 | S9: 2.43
B10: 5 | C10: ='Список группы'!C8 -> Гущина Софья | D10: 3 | E10: 4 | F10: 3 | G10: 4 | H10: 3 | I10: 4 | J10: 4 | K10: 5 | L10: 4 | M10: 5 | N10: 3 | O10: 4 | P10: 3 | Q10: 4 | R10: 3.29 | S10: 4.29
B11: 6 | C11: ='Список группы'!C9 -> Десятниченко Кирилл | D11: 2 | E11: 3 | F11: 2 | G11: 3 | H11: 2 | I11: 3 | J11: 3 | K11: 4 | L11: 3 | M11: 4 | N11: 3 | O11: 4 | P11: 4 | Q11: 5 | R11: 2.71 | S11: 3.71
B12: 7 | C12: ='Список группы'!C10 -> Йолсал Дениз | D12: 5 | E12: 5 | F12: 5 | G12: 5 | H12: 5 | I12: 5 | J12: 5 | K12: 5 | L12: 5 | M12: 5 | N12: 5 | O12: 5 | P12: 5 | Q12: 5 | R12: 5.00 | S12: 5.00
B13: 8 | C13: ='Список группы'!C11 -> Кирилина Виктория | D13: 3 | E13: 2 | F13: 4 | G13: 3 | H13: 5 | I13: 3 | J13: 4 | K13: 3 | L13: 4 | M13: 2 | N13: 3 | O13: 2 | P13: 3 | Q13: 2 | R13: 3.71 | S13: 2.43
B14: 9 | C14: ='Список группы'!C12 -> Князева Алиса | D14: 3 | E14: 4 | F14: 3 | G14: 4 | H14: 3 | I14: 4 | J14: 4 | K14: 5 | L14: 4 | M14: 5 | N14: 3 | O14: 4 | P14: 3 | Q14: 4 | R14: 3.29 | S14: 4.29
B15: 10 | C15: ='Список группы'!C13 -> Максимова Анна | D15: 2 | E15: 3 | F15: 2 | G15: 3 | H15: 2 | I15: 3 | J15: 3 | K15: 4 | L15: 3 | M15: 4 | N15: 3 | O15: 4 | P15: 4 | Q15: 5 | R15: 2.71 | S15: 3.71
B16: 11 | C16: ='Список группы'!C14 -> Меньшов Алексей | D16: 5 | E16: 5 | F16: 5 | G16: 5 | H16: 5 | I16: 5 | J16: 5 | K16: 5 | L16: 5 | M16: 5 | N16: 5 | O16: 5 | P16: 5 | Q16: 5 | R16: 5.00 | S16: 5.00
B17: 12 | C17: ='Список группы'!C15 -> Муравлев Даниил | D17: 3 | E17: 2 | F17: 4 | G17: 3 | H17: 5 | I17: 3 | J17: 4 | K17: 3 | L17: 4 | M17: 2 | N17: 3 | O17: 2 | P17: 3 | Q17: 2 | R17: 3.71 | S17: 2.43
B18: 13 | C18: ='Список группы'!C16 -> Панов Тимофей | D18: 3 | E18: 4 | F18: 3 | G18: 4 | H18: 3 | I18: 4 | J18: 4 | K18: 5 | L18: 4 | M18: 5 | N18: 3 | O18: 4 | P18: 3 | Q18: 4 | R18: 3.29 | S18: 4.29
B19: 14 | C19: ='Список группы'!C17 -> Саркисов Илья | D19: 2 | E19: 3 | F19: 2 | G19: 3 | H19: 2 | I19: 3 | J19: 3 | K19: 4 | L19: 3 | M19: 4 | N19: 3 | O19: 4 | P19: 4 | Q19: 5 | R19: 2.71 | S19: 3.71
B20: 15 | C20: ='Список группы'!C18 -> Свирская Анастасия | D20: 5 | E20: 5 | F20: 5 | G20: 5 | H20: 5 | I20: 5 | J20: 5 | K20: 5 | L20: 5 | M20: 5 | N20: 5 | O20: 5 | P20: 5 | Q20: 5 | R20: 5.00 | S20: 5.00
B21: 16 | C21: ='Список группы'!C19 -> Семенина Елизавета | D21: 3 | E21: 2 | F21: 4 | G21: 3 | H21: 5 | I21: 3 | J21: 4 | K21: 3 | L21: 4 | M21: 2 | N21: 3 | O21: 2 | P21: 3 | Q21: 2 | R21: 3.71 | S21: 2.43
B22: 17 | C22: ='Список группы'!C20 -> Сергеев Алексей | D22: 3 | E22: 4 | F22: 3 | G22: 4 | H22: 3 | I22: 4 | J22: 4 | K22: 5 | L22: 4 | M22: 5 | N22: 3 | O22: 4 | P22: 3 | Q22: 4 | R22: 3.29 | S22: 4.29
B23: 18 | C23: ='Список группы'!C21 -> Солопов Максим | D23: 2 | E23: 3 | F23: 2 | G23: 3 | H23: 2 | I23: 3 | J23: 3 | K23: 4 | L23: 3 | M23: 4 | N23: 3 | O23: 4 | P23: 4 | Q23: 5 | R23: 2.71 | S23: 3.71
B24: 19 | C24: ='Список группы'!C22 -> Стригунов Александр | D24: 5 | E24: 5 | F24: 5 | G24: 5 | H24: 5 | I24: 5 | J24: 5 | K24: 5 | L24: 5 | M24: 5 | N24: 5 | O24: 5 | P24: 5 | Q24: 5 | R24: 5.00 | S24: 5.00
B25: 20 | C25: ='Список группы'!C23 -> Тихонов Данил | D25: 3 | E25: 2 | F25: 4 | G25: 3 | H25: 5 | I25: 3 | J25: 4 | K25: 3 | L25: 4 | M25: 2 | N25: 3 | O25: 2 | P25: 3 | Q25: 2 | R25: 3.71 | S25: 2.43
B26: 21 | C26: ='Список группы'!C24 -> Федоров Данила | D26: 3 | E26: 4 | F26: 3 | G26: 4 | H26: 3 | I26: 4 | J26: 4 | K26: 5 | L26: 4 | M26: 5 | N26: 3 | O26: 4 | P26: 3 | Q26: 4 | R26: 3.29 | S26: 4.29
B27: 22 | C27: ='Список группы'!C25 -> Чалдина Дарья | D27: 2 | E27: 3 | F27: 2 | G27: 3 | H27: 2 | I27: 3 | J27: 3 | K27: 4 | L27: 3 | M27: 4 | N27: 3 | O27: 4 | P27: 4 | Q27: 5 | R27: 2.71 | S27: 3.71
B28: 23 | C28: ='Список группы'!C26 -> Черногоров Аркадий | D28: 5 | E28: 5 | F28: 5 | G28: 5 | H28: 5 | I28: 5 | J28: 5 | K28: 5 | L28: 5 | M28: 5 | N28: 5 | O28: 5 | P28: 5 | Q28: 5 | R28: 5.00 | S28: 5.00
B29: 24 | C29: ='Список группы'!C27 -> Шагабудинов Владислав | D29: 3 | E29: 2 | F29: 4 | G29: 3 | H29: 5 | I29: 3 | J29: 4 | K29: 3 | L29: 4 | M29: 2 | N29: 3 | O29: 2 | P29: 3 | Q29: 2 | R29: 3.71 | S29: 2.43
C30: среднее значение: | D30: =(D6+D7+D8+D9+D10+D11+D12+D13+D14+D15+D16+D17+D18+D19+D20+D21+D22+D23+D24+D25+D26+D27+D28+D29)/(COUNTA($C$6:$C$29)-COUNTIF($C$6:$C$29,"=0")) -> 3.25 | E30: 3.50 | F30: 3.50 | G30: 3.75 | H30: 3.75 | I30: 3.75 | J30: 4.00 | K30: 4.25 | L30: 4.00 | M30: 4.00 | N30: 3.50 | O30: 3.75 | P30: 3.75 | Q30: 4.00 | R30: 3.68 | S30: 3.86
C33: начало года
D34: всего | E34: норма | F34: ниже нормы | G34: низкий
C35: количество детей | D35: =COUNTA($C$6:$C$29)-COUNTIF($C$6:$C$29,"=0") -> 24 | E35: =COUNTIF($R$6:$R$29,">=3,8") -> 6 | F35: =COUNTIFS($R$6:$R$29,"<3,7",$R$6:$R$29,">=2,3") -> 12 | G35: =COUNTIFS($R$6:$R$29,"<2,2",$R$6:$R$29,">0") -> 0
C36: % | D36: 100 | E36: =E35*D36/D35 -> 25.0 | F36: =F35*D36/D35 -> 50.0 | G36: =G35*D36/D35 -> 0.0
C39: конец года
D40: всего | E40: норма | F40: ниже нормы | G40: низкий
C41: количество детей | D41: =COUNTA($C$6:$C$29)-COUNTIF($C$6:$C$29,"=0") -> 24 | E41: =COUNTIF($S$6:$S$29,">=3,8") -> 12 | F41: =COUNTIFS($S$6:$S$29,"<3,7",$S$6:$S$29,">=2,3") -> 6 | G41: =COUNTIFS($S$6:$S$29,"<2,2",$S$6:$S$29,">0") -> 0
C42: % | D42: 100 | E42: =E41*D42/D41 -> 50.0 | F42: =F41*D42/D41 -> 25.0 | G42: =G41*D42/D41 -> 0.0

Sheet ИТОГ РР
A1: Обобщение результатов педагогической диагностики по направлениям
A2: ОО «Речевое развитие»
F3: ОГЛАВЛЕНИЕ
B5: Формирование словаря | C5: Звуковая культура речи. Обучение грамоте | D5: Грамматический строй речи | E5: Связная речь. Интерес к художественной литературе | F5: Средний уровень речевого развития
B6: 1 | C6: 2 | D6: 3 | E6: 4 | F6: ср.ур.
A7: начало | B7: ='РР-1'!$U$31 -> 3.69 | C7: ='РР-2'!Q30 -> 3.68 | D7: ='РР-3'!Y30 -> 3.73 | E7: ='РР-4'!R30 -> 3.68 | F7: =(B7+C7+D7+E7)/4 -> 3.69
A8: конец | B8: ='РР-1'!$V$31 -> 3.92 | C8: ='РР-2'!R30 -> 3.86 | D8: ='РР-3'!Z30 -> 3.95 | E8: ='РР-4'!S30 -> 3.86 | F8: =(B8+C8+D8+E8)/4 -> 3.90
A29: ВЫВОДЫ:
A30: Начало учебного года:
A38: Конец учебного года:

Sheet ПР-1
A1: Образовательная область «Познавательное развитие»
A3: НАПРАВЛЕНИЕ 1. СЕНСОРНЫЕ ЭТАЛОНЫ И ПОЗНАВАТЕЛЬНЫЕ ДЕЙСТВИЯ. ОКРУЖАЮЩИЙ МИР. ПРИРОДА. | Y3: ОГЛАВЛЕНИЕ
A5: №п/п | B5: ФИ ребенка | C5: Различает и называет цвета (красный, синий, зеленый, желтый, белый, черный) | E5: Называет оттенки цветов (розовый, голубой, серый). | G5: Различает круг, квадрат, треугольник, предметы, имеющие углы и круглую форму | I5: Знает названия нескольких профессий и их действий | K5: Собирает простые предметные картинки из двух-трех частей (без помощи взрослого) | M5: Знает и называет | U5: Соотносит предмет, изображенный на картинке, по описанию педагога | W5: Знает правила поведения в природе (не ломать ветки, не рвать растения, быть осторожными с животными) | Y5: среднее значение
M6: игрушки | O6: одежда | Q6: обувь | S6: посуда
C7: н.г. | D7: к.г. | E7: н.г. | F7: к.г. | G7: н.г. | H7: к.г. | I7: н.г. | J7: к.г. | K7: н.г. | L7: к.г. | M7: н.г. | N7: к.г. | O7: н.г. | P7: к.г. | Q7: н.г. | R7: к.г. | S7: н.г. | T7: к.г. | U7: н.г. | V7: к.г. | W7: н.г. | X7: к.г. | Y7: н.г. | Z7: к.г.
A8: 1 | B8: ='Список группы'!C4 -> Бахтин Антон | C8: 3 | D8: 4 | E8: 3 | F8: 4 | G8: 3 | H8: 4 | I8: 4 | J8: 5 | K8: 4 | L8: 5 | M8: 3 | N8: 4 | O8: 3 | P8: 4 | Q8: 3 | R8: 4 | S8: 3 | T8: 4 | U8: 3 | V8: 4 | W8: 3 | X8: 4 | Y8: =(C8+E8+G8+I8+K8+M8+O8+Q8+S8+U8+W8)/11 -> 3.18 | Z8: =(D8+F8+H8+J8+L8+N8+P8+R8+T8+V8+X8)/11 -> 4.18
A9: 2 | B9: ='Список группы'!C5 -> Башилова Наталья | C9: 2 | D9: 3 | E9: 2 | F9: 3 | G9: 2 | H9: 3 | I9: 3 | J9: 4 | K9: 3 | L9: 4 | M9: 3 | N9: 4 | O9: 4 | P9: 5 | Q9: 4 | R9: 5 | S9: 3 | T9: 4 | U9: 3 | V9: 4 | W9: 3 | X9: 4 | Y9: =(C9+E9+G9+I9+K9+M9+O9+Q9+S9+U9+W9)/11 -> 2.91 | Z9: =(D9+F9+H9+J9+L9+N9+P9+R9+T9+V9+X9)/11 -> 3.91
A10: 3 | B10: ='Список группы'!C6 -> Бирюкова Екатерина | C10: 5 | D10: 5 | E10: 5 | F10: 5 | G10: 5 | H10: 5 | I10: 5 | J10: 5 | K10: 5 | L10: 5 | M10: 5 | N10: 5 | O10: 5 | P10: 5 | Q10: 5 | R10: 5 | S10: 5 | T10: 5 | U10: 5 | V10: 5 | W10: 5 | X10: 5 | Y10: 5.00 | Z10: 5.00
A11: 4 | B11: ='Список группы'!C7 -> Власов Дмитрий | C11: 3 | D11: 2 | E11: 4 | F11: 3 | G11: 5 | H11: 3 | I11: 4 | J11: 3 | K11: 4 | L11: 2 | M11: 3 | N11: 2 | O11: 3 | P11: 2 | Q11: 3 | R11: 3 | S11: 4 | T11: 3 | U11: 4 | V11: 3 | W11: 4 | X11: 3 | Y11: 3.73 | Z11: 2.64
A12: 5 | B12: ='Список группы'!C8 -> Гущина Софья | C12: 3 | D12: 4 | E12: 3 | F12: 4 | G12: 3 | H12: 4 | I12: 4 | J12: 5 | K12: 4 | L12: 5 | M12: 3 | N12: 4 | O12: 3 | P12: 4 | Q12: 3 | R12: 4 | S12: 3 | T12: 4 | U12: 3 | V12: 4 | W12: 3 | X12: 4 | Y12: 3.18 | Z12: 4.18
A13: 6 | B13: ='Список группы'!C9 -> Десятниченко Кирилл | C13: 2 | D13: 3 | E13: 2 | F13: 3 | G13: 2 | H13: 3 | I13: 3 | J13: 4 | K13: 3 | L13: 4 | M13: 3 | N13: 4 | O13: 4 | P13: 5 | Q13: 4 | R13: 5 | S13: 3 | T13: 4 | U13: 3 | V13: 4 | W13: 3 | X13: 4 | Y13: 2.91 | Z13: 3.91
A14: 7 | B14: ='Список группы'!C10 -> Йолсал Дениз | C14: 5 | D14: 5 | E14: 5 | F14: 5 | G14: 5 | H14: 5 | I14: 5 | J14: 5 | K14: 5 | L14: 5 | M14: 5 | N14: 5 | O14: 5 | P14: 5 | Q14: 5 | R14: 5 | S14: 5 | T14: 5 | U14: 5 | V14: 5 | W14: 5 | X14: 5 | Y14: 5.00 | Z14: 5.00
A15: 8 | B15: ='Список группы'!C11 -> Кирилина Виктория | C15: 3 | D15: 2 | E15: 4 | F15: 3 | G15: 5 | H15: 3 | I15: 4 | J15: 3 | K15: 4 | L15: 2 | M15: 3 | N15: 2 | O15: 3 | P15: 2 | Q15: 3 | R15: 3 | S15: 4 | T15: 3 | U15: 4 | V15: 3 | W15: 4 | X15: 3 | Y15: 3.73 | Z15: 2.64
A16: 9 | B16: ='Список группы'!C12 -> Князева Алиса | C16: 3 | D16: 4 | E16: 3 | F16: 4 | G16: 3 | H16: 4 | I16: 4 | J16: 5 | K16: 4 | L16: 5 | M16: 3 | N16: 4 | O16: 3 | P16: 4 | Q16: 3 | R16: 4 | S16: 3 | T16: 4 | U16: 3 | V16: 4 | W16: 3 | X16: 4 | Y16: 3.18 | Z16: 4.18
A17: 10 | B17: ='Список группы'!C13 -> Максимова Анна | C17: 2 | D17: 3 | E17: 2 | F17: 3 | G17: 2 | H17: 3 | I17: 3 | J17: 4 | K17: 3 | L17: 4 | M17: 3 | N17: 4 | O17: 4 | P17: 5 | Q17: 4 | R17: 5 | S17: 3 | T17: 4 | U17: 3 | V17: 4 | W17: 3 | X17: 4 | Y17: 2.91 | Z17: 3.91
A18: 11 | B18: ='Список группы'!C14 -> Меньшов Алексей | C18: 5 | D18: 5 | E18: 5 | F18: 5 | G18: 5 | H18: 5 | I18: 5 | J18: 5 | K18: 5 | L18: 5 | M18: 5 | N18: 5 | O18: 5 | P18: 5 | Q18: 5 | R18: 5 | S18: 5 | T18: 5 | U18: 5 | V18: 5 | W18: 5 | X18: 5 | Y18: 5.00 | Z18: 5.00
A19: 12 | B19: ='Список группы'!C15 -> Муравлев Даниил | C19: 3 | D19: 2 | E19: 4 | F19: 3 | G19: 5 | H19: 3 | I19: 4 | J19: 3 | K19: 4 | L19: 2 | M19: 3 | N19: 2 | O19: 3 | P19: 2 | Q19: 3 | R19: 3 | S19: 4 | T19: 3 | U19: 4 | V19: 3 | W19: 4 | X19: 3 | Y19: 3.73 | Z19: 2.64
A20: 13 | B20: ='Список группы'!C16 -> Панов Тимофей | C20: 3 | D20: 4 | E20: 3 | F20: 4 | G20: 3 | H20: 4 | I20: 4 | J20: 5 | K20: 4 | L20: 5 | M20: 3 | N20: 4 | O20: 3 | P20: 4 | Q20: 3 | R20: 4 | S20: 3 | T20: 4 | U20: 3 | V20: 4 | W20: 3 | X20: 4 | Y20: 3.18 | Z20: 4.18
A21: 14 | B21: ='Список группы'!C17 -> Саркисов Илья | C21: 2 | D21: 3 | E21: 2 | F21: 3 | G21: 2 | H21: 3 | I21: 3 | J21: 4 | K21: 3 | L21: 4 | M21: 3 | N21: 4 | O21: 4 | P21: 5 | Q21: 4 | R21: 5 | S21: 3 | T21: 4 | U21: 3 | V21: 4 | W21: 3 | X21: 4 | Y21: 2.91 | Z21: 3.91
A22: 15 | B22: ='Список группы'!C18 -> Свирская Анастасия | C22: 5 | D22: 5 | E22: 5 | F22: 5 | G22: 5 | H22: 5 | I22: 5 | J22: 5 | K22: 5 | L22: 5 | M22: 5 | N22: 5 | O22: 5 | P22: 5 | Q22: 5 | R22: 5 | S22: 5 | T22: 5 | U22: 5 | V22: 5 | W22: 5 | X22: 5 | Y22: 5.00 | Z22: 5.00
A23: 16 | B23: ='Список группы'!C19 -> Семенина Елизавета | C23: 3 | D23: 2 | E23: 4 | F23: 3 | G23: 5 | H23: 3 | I23: 4 | J23: 3 | K23: 4 | L23: 2 | M23: 3 | N23: 2 | O23: 3 | P23: 2 | Q23: 3 | R23: 3 | S23: 4 | T23: 3 | U23: 4 | V23: 3 | W23: 4 | X23: 3 | Y23: 3.73 | Z23: 2.64
A24: 17 | B24: ='Список группы'!C20 -> Сергеев Алексей | C24: 3 | D24: 4 | E24: 3 | F24: 4 | G24: 3 | H24: 4 | I24: 4 | J24: 5 | K24: 4 | L24: 5 | M24: 3 | N24: 4 | O24: 3 | P24: 4 | Q24: 3 | R24: 4 | S24: 3 | T24: 4 | U24: 3 | V24: 4 | W24: 3 | X24: 4 | Y24: 3.18 | Z24: 4.18
A25: 18 | B25: ='Список группы'!C21 -> Солопов Максим | C25: 2 | D25: 3 | E25: 2 | F25: 3 | G25: 2 | H25: 3 | I25: 3 | J25: 4 | K25: 3 | L25: 4 | M25: 3 | N25: 4 | O25: 4 | P25: 5 | Q25: 4 | R25: 5 | S25: 3 | T25: 4 | U25: 3 | V25: 4 | W25: 3 | X25: 4 | Y25: 2.91 | Z25: 3.91
A26: 19 | B26: ='Список группы'!C22 -> Стригунов Александр | C26: 5 | D26: 5 | E26: 5 | F26: 5 | G26: 5 | H26: 5 | I26: 5 | J26: 5 | K26: 5 | L26: 5 | M26: 5 | N26: 5 | O26: 5 | P26: 5 | Q26: 5 | R26: 5 | S26: 5 | T26: 5 | U26: 5 | V26: 5 | W26: 5 | X26: 5 | Y26: 5.00 | Z26: 5.00
A27: 20 | B27: ='Список группы'!C23 -> Тихонов Данил | C27: 3 | D27: 2 | E27: 4 | F27: 3 | G27: 5 | H27: 3 | I27: 4 | J27: 3 | K27: 4 | L27: 2 | M27: 3 | N27: 2 | O27: 3 | P27: 2 | Q27: 3 | R27: 3 | S27: 4 | T27: 3 | U27: 4 | V27: 3 | W27: 4 | X27: 3 | Y27: 3.73 | Z27: 2.64
A28: 21 | B28: ='Список группы'!C24 -> Федоров Данила | C28: 3 | D28: 4 | E28: 3 | F28: 4 | G28: 3 | H28: 4 | I28: 4 | J28: 5 | K28: 4 | L28: 5 | M28: 3 | N28: 4 | O28: 3 | P28: 4 | Q28: 3 | R28: 4 | S28: 3 | T28: 4 | U28: 3 | V28: 4 | W28: 3 | X28: 4 | Y28: 3.18 | Z28: 4.18
A29: 22 | B29: ='Список группы'!C25 -> Чалдина Дарья | C29: 2 | D29: 3 | E29: 2 | F29: 3 | G29: 2 | H29: 3 | I29: 3 | J29: 4 | K29: 3 | L29: 4 | M29: 3 | N29: 4 | O29: 4 | P29: 5 | Q29: 4 | R29: 5 | S29: 3 | T29: 4 | U29: 3 | V29: 4 | W29: 3 | X29: 4 | Y29: 2.91 | Z29: 3.91
A30: 23 | B30: ='Список группы'!C26 -> Черногоров Аркадий | C30: 5 | D30: 5 | E30: 5 | F30: 5 | G30: 5 | H30: 5 | I30: 5 | J30: 5 | K30: 5 | L30: 5 | M30: 5 | N30: 5 | O30: 5 | P30: 5 | Q30: 5 | R30: 5 | S30: 5 | T30: 5 | U30: 5 | V30: 5 | W30: 5 | X30: 5 | Y30: 5.00 | Z30: 5.00
A31: 24 | B31: ='Список группы'!C27 -> Шагабудинов Владислав | C31: 3 | D31: 2 | E31: 4 | F31: 3 | G31: 5 | H31: 3 | I31: 4 | J31: 3 | K31: 4 | L31: 2 | M31: 3 | N31: 2 | O31: 3 | P31: 2 | Q31: 3 | R31: 3 | S31: 4 | T31: 3 | U31: 4 | V31: 3 | W31: 4 | X31: 3 | Y31: 3.73 | Z31: 2.64
B32: среднее значение: | C32: =(C8+C9+C10+C11+C12+C13+C14+C15+C16+C17+C18+C19+C20+C21+C22+C23+C24+C25+C26+C27+C28+C29+C30+C31)/(COUNTA($B$8:$B$31)-COUNTIF($B$8:$B$31,"=0")) -> 3.25 | D32: =(D8+D9+D10+D11+D12+D13+D14+D15+D16+D17+D18+D19+D20+D21+D22+D23+D24+D25+D26+D27+D28+D29+D30+D31)/(COUNTA($B$8:$B$31)-COUNTIF($B$8:$B$31,"=0")) -> 3.50 | E32: 3.50 | F32: 3.75 | G32: 3.75 | H32: 3.75 | I32: 4.00 | J32: 4.25 | K32: 4.00 | L32: 4.00 | M32: 3.50 | N32: 3.75 | O32: 3.75 | P32: 4.00 | Q32: 3.75 | R32: 4.25 | S32: 3.75 | T32: 4.00 | U32: 3.75 | V32: 4.00 | W32: 3.75 | X32: 4.00 | Y32: 3.70 | Z32: 3.93
B34: начало года
C35: всего | D35: норма | E35: ниже нормы | F35: низкий
B36: количество детей | C36: =COUNTA($B$8:$B$31)-COUNTIF($B$8:$B$31,"=0") -> 24 | D36: =COUNTIF(Y8:Y31,">=3,8") -> 6 | E36: =COUNTIFS(Y8:Y31,"<3,7",Y8:Y31,">=2,3") -> 12 | F36: =COUNTIFS(Y8:Y31,"<,2,2",Y8:Y31,">0") -> 0
B37: % | C37: 100 | D37: =D36*C37/C36 -> 25.0 | E37: =E36*C37/C36 -> 50.0 | F37: =F36*C37/C36 -> 0.0
B40: конец года
C41: всего | D41: норма | E41: ниже нормы | F41: низкий
B42: количество детей | C42: =COUNTA($B$8:$B$31)-COUNTIF($B$8:$B$31,"=0") -> 24 | D42: =COUNTIF(Z8:Z31,">=3,8") -> 18 | E42: =COUNTIFS(Z8:Z31,"<3,7",Z8:Z31,">=2,3") -> 6 | F42: =COUNTIFS(Z8:Z31,"<2,2",Z8:Z31,">0") -> 0
B43: % | C43: 100 | D43: =D42*C43/C42 -> 75.0 | E43: =E42*C43/C42 -> 25.0 | F43: =F42*C43/C42 -> 0.0

Sheet ПР-2
A1: НАПРАВЛЕНИЕ 2. МАТЕМАТИЧЕСКИЕ ПРЕДСТАВЛЕНИЯ | M1: ОГЛАВЛЕНИЕ
A3: №п/п | B3: ФИ ребенка | C3: Определяет количественное соотношение двух групп предметов, понимает конкретный смысл слов «больше», «меньше», «столько же» | E3: Ориентируется в пространстве от себя: впереди (сзади), сверху (снизу), справа (слева) | G3: Знает и называет геметрические фигуры: шар, куб, круг, квадрат, треугольник | I3: Знает реальные явления и их изображения: утро-вечер, день-ночь, зима-лето | K3: Использует в речи слова, обохначающие свойства, качества предметов и отношений между ними | M3: среднее значение
C5: н.г. | D5: к.г. | E5: н.г. | F5: к.г. | G5: н.г. | H5: к.г. | I5: н.г. | J5: к.г. | K5: н.г. | L5: к.г. | M5: н.г. | N5: к.г.
A6: 1 | B6: ='Список группы'!C4 -> Бахтин Антон | C6: 3 | D6: 4 | E6: 3 | F6: 4 | G6: 3 | H6: 4 | I6: 4 | J6: 5 | K6: 4 | L6: 5 | M6: =(C6+E6+G6+I6+K6)/5 -> 3.40 | N6: =(D6+F6+H6+J6+L6)/5 -> 4.40
A7: 2 | B7: ='Список группы'!C5 -> Башилова Наталья | C7: 2 | D7: 3 | E7: 2 | F7: 3 | G7: 2 | H7: 3 | I7: 3 | J7: 4 | K7: 3 | L7: 4 | M7: =(C7+E7+G7+I7+K7)/5 -> 2.40 | N7: =(D7+F7+H7+J7+L7)/5 -> 3.40
A8: 3 | B8: ='Список группы'!C6 -> Бирюкова Екатерина | C8: 5 | D8: 5 | E8: 5 | F8: 5 | G8: 5 | H8: 5 | I8: 5 | J8: 5 | K8: 5 | L8: 5 | M8: 5.00 | N8: 5.00
A9: 4 | B9: ='Список группы'!C7 -> Власов Дмитрий | C9: 3 | D9: 2 | E9: 4 | F9: 3 | G9: 5 | H9: 3 | I9: 4 | J9: 3 | K9: 4 | L9: 2 | M9: 4.00 | N9: 2.60
A10: 5 | B10: ='Список группы'!C8 -> Гущина Софья | C10: 3 | D10: 4 | E10: 3 | F10: 4 | G10: 3 | H10: 4 | I10: 4 | J10: 5 | K10: 4 | L10: 5 | M10: 3.40 | N10: 4.40
A11: 6 | B11: ='Список группы'!C9 -> Десятниченко Кирилл | C11: 2 | D11: 3 | E11: 2 | F11: 3 | G11: 2 | H11: 3 | I11: 3 | J11: 4 | K11: 3 | L11: 4 | M11: 2.40 | N11: 3.40
A12: 7 | B12: ='Список группы'!C10 -> Йолсал Дениз | C12: 5 | D12: 5 | E12: 5 | F12: 5 | G12: 5 | H12: 5 | I12: 5 | J12: 5 | K12: 5 | L12: 5 | M12: 5.00 | N12: 5.00
A13: 8 | B13: ='Список группы'!C11 -> Кирилина Виктория | C13: 3 | D13: 2 | E13: 4 | F13: 3 | G13: 5 | H13: 3 | I13: 4 | J13: 3 | K13: 4 | L13: 2 | M13: 4.00 | N13: 2.60
A14: 9 | B14: ='Список группы'!C12 -> Князева Алиса | C14: 3 | D14: 4 | E14: 3 | F14: 4 | G14: 3 | H14: 4 | I14: 4 | J14: 5 | K14: 4 | L14: 5 | M14: 3.40 | N14: 4.40
A15: 10 | B15: ='Список группы'!C13 -> Максимова Анна | C15: 2 | D15: 3 | E15: 2 | F15: 3 | G15: 2 | H15: 3 | I15: 3 | J15: 4 | K15: 3 | L15: 4 | M15: 2.40 | N15: 3.40
A16: 11 | B16: ='Список группы'!C14 -> Меньшов Алексей | C16: 5 | D16: 5 | E16: 5 | F16: 5 | G16: 5 | H16: 5 | I16: 5 | J16: 5 | K16: 5 | L16: 5 | M16: 5.00 | N16: 5.00
A17: 12 | B17: ='Список группы'!C15 -> Муравлев Даниил | C17: 3 | D17: 2 | E17: 4 | F17: 3 | G17: 5 | H17: 3 | I17: 4 | J17: 3 | K17: 4 | L17: 2 | M17: 4.00 | N17: 2.60
A18: 13 | B18: ='Список группы'!C16 -> Панов Тимофей | C18: 3 | D18: 4 | E18: 3 | F18: 4 | G18: 3 | H18: 4 | I18: 4 | J18: 5 | K18: 4 | L18: 5 | M18: 3.40 | N18: 4.40
A19: 14 | B19: ='Список группы'!C17 -> Саркисов Илья | C19: 2 | D19: 3 | E19: 2 | F19: 3 | G19: 2 | H19: 3 | I19: 3 | J19: 4 | K19: 3 | L19: 4 | M19: 2.40 | N19: 3.40
A20: 15 | B20: ='Список группы'!C18 -> Свирская Анастасия | C20: 5 | D20: 5 | E20: 5 | F20: 5 | G20: 5 | H20: 5 | I20: 5 | J20: 5 | K20: 5 | L20: 5 | M20: 5.00 | N20: 5.00
A21: 16 | B21: ='Список группы'!C19 -> Семенина Елизавета | C21: 3 | D21: 2 | E21: 4 | F21: 3 | G21: 5 | H21: 3 | I21: 4 | J21: 3 | K21: 4 | L21: 2 | M21: 4.00 | N21: 2.60
A22: 17 | B22: ='Список группы'!C20 -> Сергеев Алексей | C22: 3 | D22: 4 | E22: 3 | F22: 4 | G22: 3 | H22: 4 | I22: 4 | J22: 5 | K22: 4 | L22: 5 | M22: 3.40 | N22: 4.40
A23: 18 | B23: ='Список группы'!C21 -> Солопов Максим | C23: 2 | D23: 3 | E23: 2 | F23: 3 | G23: 2 | H23: 3 | I23: 3 | J23: 4 | K23: 3 | L23: 4 | M23: 2.40 | N23: 3.40
A24: 19 | B24: ='Список группы'!C22 -> Стригунов Александр | C24: 5 | D24: 5 | E24: 5 | F24: 5 | G24: 5 | H24: 5 | I24: 5 | J24: 5 | K24: 5 | L24: 5 | M24: 5.00 | N24: 5.00
A25: 20 | B25: ='Список группы'!C23 -> Тихонов Данил | C25: 3 | D25: 2 | E25: 4 | F25: 3 | G25: 5 | H25: 3 | I25: 4 | J25: 3 | K25: 4 | L25: 2 | M25: 4.00 | N25: 2.60
A26: 21 | B26: ='Список группы'!C24 -> Федоров Данила | C26: 3 | D26: 4 | E26: 3 | F26: 4 | G26: 3 | H26: 4 | I26: 4 | J26: 5 | K26: 4 | L26: 5 | M26: 3.40 | N26: 4.40
A27: 22 | B27: ='Список группы'!C25 -> Чалдина Дарья | C27: 2 | D27: 3 | E27: 2 | F27: 3 | G27: 2 | H27: 3 | I27: 3 | J27: 4 | K27: 3 | L27: 4 | M27: 2.40 | N27: 3.40
A28: 23 | B28: ='Список группы'!C26 -> Черногоров Аркадий | C28: 5 | D28: 5 | E28: 5 | F28: 5 | G28: 5 | H28: 5 | I28: 5 | J28: 5 | K28: 5 | L28: 5 | M28: 5.00 | N28: 5.00
A29: 24 | B29: ='Список группы'!C27 -> Шагабудинов Владислав | C29: 3 | D29: 2 | E29: 4 | F29: 3 | G29: 5 | H29: 3 | I29: 4 | J29: 3 | K29: 4 | L29: 2 | M29: 4.00 | N29: 2.60
B30: среднее значение: | C30: =(C6+C7+C8+C9+C10+C11+C12+C13+C14+C15+C16+C17+C18+C19+C20+C21+C22+C23+C24+C25+C26+C27+C28+C29)/(COUNTA($B$6:$B$29)-COUNTIF($B$6:$B$29,"=0")) -> 3.25 | D30: =(D6+D7+D8+D9+D10+D11+D12+D13+D14+D15+D16+D17+D18+D19+D20+D21+D22+D23+D24+D25+D26+D27+D28+D29)/(COUNTA($B$6:$B$29)-COUNTIF($B$6:$B$29,"=0")) -> 3.50 | E30: 3.50 | F30: 3.75 | G30: 3.75 | H30: 3.75 | I30: 4.00 | J30: 4.25 | K30: 4.00 | L30: 4.00 | M30: 3.70 | N30: 3.85
B33: начало года
C34: всего | D34: норма | E34: ниже нормы | F34: низкий
B35: количество детей | C35: =COUNTA($B$6:$B$29)-COUNTIF($B$6:$B$29,"=0") -> 24 | D35: =COUNTIF($M$6:$M$29,">=3,8") -> 12 | E35: =COUNTIFS($M$6:$M$29,"<3,7",$M$6:$M$29,">=2,3") -> 12 | F35: =COUNTIFS($M$6:$M$29,"<2,2",$M$6:$M$29,">0") -> 0
B36: % | C36: 100 | D36: =D35*C36/C35 -> 50.0 | E36: =E35*C36/C35 -> 50.0 | F36: =F35*C36/C35 -> 0.0
B39: конец года
C40: всего | D40: норма | E40: ниже нормы | F40: низкий
B41: количество детей | C41: =COUNTA($B$6:$B$29)-COUNTIF($B$6:$B$29,"=0") -> 24 | D41: =COUNTIF($N$6:$N$29,">=3,8") -> 12 | E41: =COUNTIFS($N$6:$N$29,"<3,7",$N$6:$N$29,">=2,3") -> 12 | F41: =COUNTIFS($N$6:$N$29,"<2,2",$N$6:$N$29,">0") -> 0
B42: % | C42: 100 | D42: =D41*C42/C41 -> 50.0 | E42: =E41*C42/C41 -> 50.0 | F42: =F41*C42/C41 -> 0.0

Sheet ИТОГ ПР
B1: Обобщение результатов педагогической диагностики по направлениям
B2: ОО «Познавательное развитие»
F3: ОГЛАВЛЕНИЕ
C4: Сенсорные эталоны и познавательные действия. Окружающий мир. Природа. | D4: Математические представления | E4: Средний уровень
C5: ФЦКМ | D5: ФЭМП | E5: ср.ур.
B6: начало | C6: ='ПР-1'!Y32 -> 3.70 | D6: ='ПР-2'!M30 -> 3.70 | E6: =(C6+D6)/2 -> 3.70
B7: конец | C7: ='ПР-1'!Z32 -> 3.93 | D7: ='ПР-2'!N30 -> 3.85 | E7: =(C7+D7)/2 -> 3.89
A28: ВЫВОДЫ:
A29: Начало учебного года:
A37: Конец учебного года:

Sheet СК-1
B1: Образовательная область «Социально-коммуникативное развитие»
B3: НАПРАВЛЕНИЕ 1,2. СОЦИАЛЬНЫЕ ОТНОШЕНИЯ. ФОРМИРОВАНИЕ ОСНОВ ГРАЖДАНСТВЕННОСТИ И ПАРТИОТИЗМА. | V3: ОГЛАВЛЕНИЕ
B5: №п/п | C5: ФИ ребенка | D5: Проявляет устойчивый эмоциональный контакт с педработником и детьми | F5: Выполняет ролевые действия в игре. Соблюдает правила. | H5: Замечает несоответствие поведения других детей требованиям педработника | J5: Выражает интерес и проявляет внимание к различным эмоциональным состояниям человека | L5: Устанавливает положительные контакты между сверстниками | N5: Выполняет элементарные правила культуры поведения в ДОО | P5: Знает название населенного пункта, в котором живет | R5: Имеет представление о малой родине | T5: Может назвать некоторые достопримечательности родного города (поселка) | V5: среднее значение
D7: н.г. | E7: к.г. | F7: н.г. | G7: к.г. | H7: н.г. | I7: к.г. | J7: н.г. | K7: к.г. | L7: н.г. | M7: к.г. | N7: н.г. | O7: к.г. | P7: н.г. | Q7: к.г. | R7: н.г. | S7: к.г. | T7: н.г. | U7: к.г. | V7: н.г. | W7: к.г.
B8: 1 | C8: ='Список группы'!C4 -> Бахтин Антон | D8: 3 | E8: 4 | F8: 3 | G8: 4 | H8: 3 | I8: 4 | J8: 4 | K8: 5 | L8: 4 | M8: 5 | N8: 3 | O8: 4 | P8: 3 | Q8: 4 | R8: 3 | S8: 4 | T8: 3 | U8: 4 | V8: =(D8+F8+H8+J8+L8+N8+P8+R8+T8)/9 -> 3.22 | W8: =(E8+G8+I8+K8+M8+O8+Q8+S8+U8)/9 -> 4.22
B9: 2 | C9: ='Список группы'!C5 -> Башилова Наталья | D9: 2 | E9: 3 | F9: 2 | G9: 3 | H9: 2 | I9: 3 | J9: 3 | K9: 4 | L9: 3 | M9: 4 | N9: 4 | O9: 5 | P9: 4 | Q9: 5 | R9: 3 | S9: 4 | T9: 3 | U9: 4 | V9: =(D9+F9+H9+J9+L9+N9+P9+R9+T9)/9 -> 2.89 | W9: =(E9+G9+I9+K9+M9+O9+Q9+S9+U9)/9 -> 3.89
B10: 3 | C10: ='Список группы'!C6 -> Бирюкова Екатерина | D10: 5 | E10: 5 | F10: 5 | G10: 5 | H10: 5 | I10: 5 | J10: 5 | K10: 5 | L10: 5 | M10: 5 | N10: 5 | O10: 5 | P10: 5 | Q10: 5 | R10: 5 | S10: 5 | T10: 5 | U10: 5 | V10: 5.00 | W10: 5.00
B11: 4 | C11: ='Список группы'!C7 -> Власов Дмитрий | D11: 3 | E11: 2 | F11: 4 | G11: 3 | H11: 5 | I11: 3 | J11: 4 | K11: 3 | L11: 4 | M11: 2 | N11: 3 | O11: 2 | P11: 3 | Q11: 3 | R11: 4 | S11: 3 | T11: 4 | U11: 3 | V11: 3.78 | W11: 2.67
B12: 5 | C12: ='Список группы'!C8 -> Гущина Софья | D12: 3 | E12: 4 | F12: 3 | G12: 4 | H12: 3 | I12: 4 | J12: 4 | K12: 5 | L12: 4 | M12: 5 | N12: 3 | O12: 4 | P12: 3 | Q12: 4 | R12: 3 | S12: 4 | T12: 3 | U12: 4 | V12: 3.22 | W12: 4.22
B13: 6 | C13: ='Список группы'!C9 -> Десятниченко Кирилл | D13: 2 | E13: 3 | F13: 2 | G13: 3 | H13: 2 | I13: 3 | J13: 3 | K13: 4 | L13: 3 | M13: 4 | N13: 4 | O13: 5 | P13: 4 | Q13: 5 | R13: 3 | S13: 4 | T13: 3 | U13: 4 | V13: 2.89 | W13: 3.89
B14: 7 | C14: ='Список группы'!C10 -> Йолсал Дениз | D14: 5 | E14: 5 | F14: 5 | G14: 5 | H14: 5 | I14: 5 | J14: 5 | K14: 5 | L14: 5 | M14: 5 | N14: 5 | O14: 5 | P14: 5 | Q14: 5 | R14: 5 | S14: 5 | T14: 5 | U14: 5 | V14: 5.00 | W14: 5.00
B15: 8 | C15: ='Список группы'!C11 -> Кирилина Виктория | D15: 3 | E15: 2 | F15: 4 | G15: 3 | H15: 5 | I15: 3 | J15: 4 | K15: 3 | L15: 4 | M15: 2 | N15: 3 | O15: 2 | P15: 3 | Q15: 3 | R15: 4 | S15: 3 | T15: 4 | U15: 3 | V15: 3.78 | W15: 2.67
B16: 9 | C16: ='Список группы'!C12 -> Князева Алиса | D16: 3 | E16: 4 | F16: 3 | G16: 4 | H16: 3 | I16: 4 | J16: 4 | K16: 5 | L16: 4 | M16: 5 | N16: 3 | O16: 4 | P16: 3 | Q16: 4 | R16: 3 | S16: 4 | T16: 3 | U16: 4 | V16: 3.22 | W16: 4.22
B17: 10 | C17: ='Список группы'!C13 -> Максимова Анна | D17: 2 | E17: 3 | F17: 2 | G17: 3 | H17: 2 | I17: 3 | J17: 3 | K17: 4 | L17: 3 | M17: 4 | N17: 4 | O17: 5 | P17: 4 | Q17: 5 | R17: 3 | S17: 4 | T17: 3 | U17: 4 | V17: 2.89 | W17: 3.89
B18: 11 | C18: ='Список группы'!C14 -> Меньшов Алексей | D18: 5 | E18: 5 | F18: 5 | G18: 5 | H18: 5 | I18: 5 | J18: 5 | K18: 5 | L18: 5 | M18: 5 | N18: 5 | O18: 5 | P18: 5 | Q18: 5 | R18: 5 | S18: 5 | T18: 5 | U18: 5 | V18: 5.00 | W18: 5.00
B19: 12 | C19: ='Список группы'!C15 -> Муравлев Даниил | D19: 3 | E19: 2 | F19: 4 | G19: 3 | H19: 5 | I19: 3 | J19: 4 | K19: 3 | L19: 4 | M19: 2 | N19: 3 | O19: 2 | P19: 3 | Q19: 3 | R19: 4 | S19: 3 | T19: 4 | U19: 3 | V19: 3.78 | W19: 2.67
B20: 13 | C20: ='Список группы'!C16 -> Панов Тимофей | D20: 3 | E20: 4 | F20: 3 | G20: 4 | H20: 3 | I20: 4 | J20: 4 | K20: 5 | L20: 4 | M20: 5 | N20: 3 | O20: 4 | P20: 3 | Q20: 4 | R20: 3 | S20: 4 | T20: 3 | U20: 4 | V20: 3.22 | W20: 4.22
B21: 14 | C21: ='Список группы'!C17 -> Саркисов Илья | D21: 2 | E21: 3 | F21: 2 | G21: 3 | H21: 2 | I21: 3 | J21: 3 | K21: 4 | L21: 3 | M21: 4 | N21: 4 | O21: 5 | P21: 4 | Q21: 5 | R21: 3 | S21: 4 | T21: 3 | U21: 4 | V21: 2.89 | W21: 3.89
B22: 15 | C22: ='Список группы'!C18 -> Свирская Анастасия | D22: 5 | E22: 5 | F22: 5 | G22: 5 | H22: 5 | I22: 5 | J22: 5 | K22: 5 | L22: 5 | M22: 5 | N22: 5 | O22: 5 | P22: 5 | Q22: 5 | R22: 5 | S22: 5 | T22: 5 | U22: 5 | V22: 5.00 | W22: 5.00
B23: 16 | C23: ='Список группы'!C19 -> Семенина Елизавета | D23: 3 | E23: 2 | F23: 4 | G23: 3 | H23: 5 | I23: 3 | J23: 4 | K23: 3 | L23: 4 | M23: 2 | N23: 3 | O23: 2 | P23: 3 | Q23: 3 | R23: 4 | S23: 3 | T23: 4 | U23: 3 | V23: 3.78 | W23: 2.67
B24: 17 | C24: ='Список группы'!C20 -> Сергеев Алексей | D24: 3 | E24: 4 | F24: 3 | G24: 4 | H24: 3 | I24: 4 | J24: 4 | K24: 5 | L24: 4 | M24: 5 | N24: 3 | O24: 4 | P24: 3 | Q24: 4 | R24: 3 | S24: 4 | T24: 3 | U24: 4 | V24: 3.22 | W24: 4.22
B25: 18 | C25: ='Список группы'!C21 -> Солопов Максим | D25: 2 | E25: 3 | F25: 2 | G25: 3 | H25: 2 | I25: 3 | J25: 3 | K25: 4 | L25: 3 | M25: 4 | N25: 4 | O25: 5 | P25: 4 | Q25: 5 | R25: 3 | S25: 4 | T25: 3 | U25: 4 | V25: 2.89 | W25: 3.89
B26: 19 | C26: ='Список группы'!C22 -> Стригунов Александр | D26: 5 | E26: 5 | F26: 5 | G26: 5 | H26: 5 | I26: 5 | J26: 5 | K26: 5 | L26: 5 | M26: 5 | N26: 5 | O26: 5 | P26: 5 | Q26: 5 | R26: 5 | S26: 5 | T26: 5 | U26: 5 | V26: 5.00 | W26: 5.00
B27: 20 | C27: ='Список группы'!C23 -> Тихонов Данил | D27: 3 | E27: 2 | F27: 4 | G27: 3 | H27: 5 | I27: 3 | J27: 4 | K27: 3 | L27: 4 | M27: 2 | N27: 3 | O27: 2 | P27: 3 | Q27: 3 | R27: 4 | S27: 3 | T27: 4 | U27: 3 | V27: 3.78 | W27: 2.67
B28: 21 | C28: ='Список группы'!C24 -> Федоров Данила | D28: 3 | E28: 4 | F28: 3 | G28: 4 | H28: 3 | I28: 4 | J28: 4 | K28: 5 | L28: 4 | M28: 5 | N28: 3 | O28: 4 | P28: 3 | Q28: 4 | R28: 3 | S28: 4 | T28: 3 | U28: 4 | V28: 3.22 | W28: 4.22
B29: 22 | C29: ='Список группы'!C25 -> Чалдина Дарья | D29: 2 | E29: 3 | F29: 2 | G29: 3 | H29: 2 | I29: 3 | J29: 3 | K29: 4 | L29: 3 | M29: 4 | N29: 4 | O29: 5 | P29: 4 | Q29: 5 | R29: 3 | S29: 4 | T29: 3 | U29: 4 | V29: 2.89 | W29: 3.89
B30: 23 | C30: ='Список группы'!C26 -> Черногоров Аркадий | D30: 5 | E30: 5 | F30: 5 | G30: 5 | H30: 5 | I30: 5 | J30: 5 | K30: 5 | L30: 5 | M30: 5 | N30: 5 | O30: 5 | P30: 5 | Q30: 5 | R30: 5 | S30: 5 | T30: 5 | U30: 5 | V30: 5.00 | W30: 5.00
B31: 24 | C31: ='Список группы'!C27 -> Шагабудинов Владислав | D31: 3 | E31: 2 | F31: 4 | G31: 3 | H31: 5 | I31: 3 | J31: 4 | K31: 3 | L31: 4 | M31: 2 | N31: 3 | O31: 2 | P31: 3 | Q31: 3 | R31: 4 | S31: 3 | T31: 4 | U31: 3 | V31: 3.78 | W31: 2.67
C32: среднее значение: | D32: =(D8+D9+D10+D11+D12+D13+D14+D15+D16+D17+D18+D19+D20+D21+D22+D23+D24+D25+D26+D27+D28+D29+D30+D31)/(COUNTA($C$8:$C$31)-COUNTIF($C$8:$C$31,"=0")) -> 3.25 | E32: =(E8+E9+E10+E11+E12+E13+E14+E15+E16+E17+E18+E19+E20+E21+E22+E23+E24+E25+E26+E27+E28+E29+E30+E31)/(COUNTA($C$8:$C$31)-COUNTIF($C$8:$C$31,"=0")) -> 3.50 | F32: 3.50 | G32: 3.75 | H32: 3.75 | I32: 3.75 | J32: 4.00 | K32: 4.25 | L32: 4.00 | M32: 4.00 | N32: 3.75 | O32: 4.00 | P32: 3.75 | Q32: 4.25 | R32: 3.75 | S32: 4.00 | T32: 3.75 | U32: 4.00 | V32: 3.72 | W32: 3.94
C36: начало года
D37: всего | E37: норма | F37: ниже нормы | G37: низкий
C38: количество детей | D38: =COUNTA($C$8:$C$31)-COUNTIF($C$8:$C$31,"=0") -> 24 | E38: =COUNTIF(V8:V31,">=3,8") -> 6 | F38: =COUNTIFS(V8:V31,"<3,7",V8:V31,">=2,3") -> 12 | G38: =COUNTIFS(V8:V31,"<2,2",V8:V31,">0") -> 0
C39: % | D39: 100 | E39: =E38*D39/D38 -> 25.0 | F39: =F38*D39/D38 -> 50.0 | G39: =G38*D39/D38 -> 0.0
C42: конец года
D43: всего | E43: норма | F43: ниже нормы | G43: низкий
C44: количество детей | D44: =COUNTA($C$8:$C$31)-COUNTIF($C$8:$C$31,"=0") -> 24 | E44: =COUNTIF(W8:W31,">=3,8") -> 18 | F44: =COUNTIFS(W8:W31,"<3,7",W8:W31,">=2,3") -> 6 | G44: =COUNTIFS(W8:W31,"<2,2",W8:W31,">0") -> 0
C45: % | D45: 100 | E45: =E44*D45/D44 -> 75.0 | F45: =F44*D45/D44 -> 25.0 | G45: =G44*D45/D44 -> 0.0

Sheet СК-2
B1: Образовательная область «Социально-коммуникативное развитие»
B3: НАПРАВЛЕНИЕ 3. ТРУДОВОЕ ВОСПИТАНИЕ | N3: ОГЛАВЛЕНИЕ
B5: №п/п | C5: ФИ ребенка | D5: Имеет представления о видах хозяйственно-бытового труда (мытье посуды, уборка помещений) | F5: Березно относится к предметам и игрушкам как результатам труда взрослых | H5: Умеет одеваться, раздеваться, умываться самостоятельно | J5: Убирает за собой игрушки | L5: Аккуратно складывает и убирает одежду | N5: среднее значение
D7: н.г. | E7: к.г. | F7: н.г. | G7: к.г. | H7: н.г. | I7: к.г. | J7: н.г. | K7: к.г. | L7: н.г. | M7: к.г. | N7: н.г. | O7: к.г.
B8: 1 | C8: ='Список группы'!C4 -> Бахтин Антон | D8: 3 | E8: 4 | F8: 3 | G8: 4 | H8: 3 | I8: 4 | J8: 4 | K8: 5 | L8: 4 | M8: 5 | N8: =(D8+F8+H8+J8+L8)/5 -> 3.40 | O8: =(E8+G8+I8+K8+M8)/5 -> 4.40
B9: 2 | C9: ='Список группы'!C5 -> Башилова Наталья | D9: 2 | E9: 3 | F9: 2 | G9: 3 | H9: 2 | I9: 3 | J9: 3 | K9: 4 | L9: 3 | M9: 4 | N9: =(D9+F9+H9+J9+L9)/5 -> 2.40 | O9: =(E9+G9+I9+K9+M9)/5 -> 3.40
B10: 3 | C10: ='Список группы'!C6 -> Бирюкова Екатерина | D10: 5 | E10: 5 | F10: 5 | G10: 5 | H10: 5 | I10: 5 | J10: 5 | K10: 5 | L10: 5 | M10: 5 | N10: 5.00 | O10: 5.00
B11: 4 | C11: ='Список группы'!C7 -> Власов Дмитрий | D11: 3 | E11: 2 | F11: 4 | G11: 3 | H11: 5 | I11: 3 | J11: 4 | K11: 3 | L11: 4 | M11: 2 | N11: 4.00 | O11: 2.60
B12: 5 | C12: ='Список группы'!C8 -> Гущина Софья | D12: 3 | E12: 4 | F12: 3 | G12: 4 | H12: 3 | I12: 4 | J12: 4 | K12: 5 | L12: 4 | M12: 5 | N12: 3.40 | O12: 4.40
B13: 6 | C13: ='Список группы'!C9 -> Десятниченко Кирилл | D13: 2 | E13: 3 | F13: 2 | G13: 3 | H13: 2 | I13: 3 | J13: 3 | K13: 4 | L13: 3 | M13: 4 | N13: 2.40 | O13: 3.40
B14: 7 | C14: ='Список группы'!C10 -> Йолсал Дениз | D14: 5 | E14: 5 | F14: 5 | G14: 5 | H14: 5 | I14: 5 | J14: 5 | K14: 5 | L14: 5 | M14: 5 | N14: 5.00 | O14: 5.00
B15: 8 | C15: ='Список группы'!C11 -> Кирилина Виктория | D15: 3 | E15: 2 | F15: 4 | G15: 3 | H15: 5 | I15: 3 | J15: 4 | K15: 3 | L15: 4 | M15: 2 | N15: 4.00 | O15: 2.60
B16: 9 | C16: ='Список группы'!C12 -> Князева Алиса | D16: 3 | E16: 4 | F16: 3 | G16: 4 | H16: 3 | I16: 4 | J16: 4 | K16: 5 | L16: 4 | M16: 5 | N16: 3.40 | O16: 4.40
B17: 10 | C17: ='Список группы'!C13 -> Максимова Анна | D17: 2 | E17: 3 | F17: 2 | G17: 3 | H17: 2 | I17: 3 | J17: 3 | K17: 4 | L17: 3 | M17: 4 | N17: 2.40 | O17: 3.40
B18: 11 | C18: ='Список группы'!C14 -> Меньшов Алексей | D18: 5 | E18: 5 | F18: 5 | G18: 5 | H18: 5 | I18: 5 | J18: 5 | K18: 5 | L18: 5 | M18: 5 | N18: 5.00 | O18: 5.00
B19: 12 | C19: ='Список группы'!C15 -> Муравлев Даниил | D19: 3 | E19: 2 | F19: 4 | G19: 3 | H19: 5 | I19: 3 | J19: 4 | K19: 3 | L19: 4 | M19: 2 | N19: 4.00 | O19: 2.60
B20: 13 | C20: ='Список группы'!C16 -> Панов Тимофей | D20: 3 | E20: 4 | F20: 3 | G20: 4 | H20: 3 | I20: 4 | J20: 4 | K20: 5 | L20: 4 | M20: 5 | N20: 3.40 | O20: 4.40
B21: 14 | C21: ='Список группы'!C17 -> Саркисов Илья | D21: 2 | E21: 3 | F21: 2 | G21: 3 | H21: 2 | I21: 3 | J21: 3 | K21: 4 | L21: 3 | M21: 4 | N21: 2.40 | O21: 3.40
B22: 15 | C22: ='Список группы'!C18 -> Свирская Анастасия | D22: 5 | E22: 5 | F22: 5 | G22: 5 | H22: 5 | I22: 5 | J22: 5 | K22: 5 | L22: 5 | M22: 5 | N22: 5.00 | O22: 5.00
B23: 16 | C23: ='Список группы'!C19 -> Семенина Елизавета | D23: 3 | E23: 2 | F23: 4 | G23: 3 | H23: 5 | I23: 3 | J23: 4 | K23: 3 | L23: 4 | M23: 2 | N23: 4.00 | O23: 2.60
B24: 17 | C24: ='Список группы'!C20 -> Сергеев Алексей | D24: 3 | E24: 4 | F24: 3 | G24: 4 | H24: 3 | I24: 4 | J24: 4 | K24: 5 | L24: 4 | M24: 5 | N24: 3.40 | O24: 4.40
B25: 18 | C25: ='Список группы'!C21 -> Солопов Максим | D25: 2 | E25: 3 | F25: 2 | G25: 3 | H25: 2 | I25: 3 | J25: 3 | K25: 4 | L25: 3 | M25: 4 | N25: 2.40 | O25: 3.40
B26: 19 | C26: ='Список группы'!C22 -> Стригунов Александр | D26: 5 | E26: 5 | F26: 5 | G26: 5 | H26: 5 | I26: 5 | J26: 5 | K26: 5 | L26: 5 | M26: 5 | N26: 5.00 | O26: 5.00
B27: 20 | C27: ='Список группы'!C23 -> Тихонов Данил | D27: 3 | E27: 2 | F27: 4 | G27: 3 | H27: 5 | I27: 3 | J27: 4 | K27: 3 | L27: 4 | M27: 2 | N27: 4.00 | O27: 2.60
B28: 21 | C28: ='Список группы'!C24 -> Федоров Данила | D28: 3 | E28: 4 | F28: 3 | G28: 4 | H28: 3 | I28: 4 | J28: 4 | K28: 5 | L28: 4 | M28: 5 | N28: 3.40 | O28: 4.40
B29: 22 | C29: ='Список группы'!C25 -> Чалдина Дарья | D29: 2 | E29: 3 | F29: 2 | G29: 3 | H29: 2 | I29: 3 | J29: 3 | K29: 4 | L29: 3 | M29: 4 | N29: 2.40 | O29: 3.40
B30: 23 | C30: ='Список группы'!C26 -> Черногоров Аркадий | D30: 5 | E30: 5 | F30: 5 | G30: 5 | H30: 5 | I30: 5 | J30: 5 | K30: 5 | L30: 5 | M30: 5 | N30: 5.00 | O30: 5.00
B31: 24 | C31: ='Список группы'!C27 -> Шагабудинов Владислав | D31: 3 | E31: 2 | F31: 4 | G31: 3 | H31: 5 | I31: 3 | J31: 4 | K31: 3 | L31: 4 | M31: 2 | N31: 4.00 | O31: 2.60
C32: среднее значение: | D32: =(D8+D9+D10+D11+D12+D13+D14+D15+D16+D17+D18+D19+D20+D21+D22+D23+D24+D25+D26+D27+D28+D29+D30+D31)/(COUNTA($C$8:$C$31)-COUNTIF($C$8:$C$31,"=0")) -> 3.25 | E32: 3.50 | F32: 3.50 | G32: 3.75 | H32: 3.75 | I32: 3.75 | J32: 4.00 | K32: 4.25 | L32: 4.00 | M32: 4.00 | N32: 3.70 | O32: 3.85
C36: начало года
D37: всего | E37: норма | F37: ниже нормы | G37: низкий
C38: количество детей | D38: =COUNTA($C$8:$C$31)-COUNTIF($C$8:$C$31,"=0") -> 24 | E38: =COUNTIF($N$8:$N$31,">=3,8") -> 12 | F38: =COUNTIFS($N$8:$N$31,"<3,7",$N$8:$N$31,">=2,3") -> 12 | G38: =COUNTIFS($N$8:$N$31,"<2,2",$N$8:$N$31,">0") -> 0
C39: % | D39: 100 | E39: =E38*D39/D38 -> 50.0 | F39: =F38*D39/D38 -> 50.0 | G39: =G38*D39/D38 -> 0.0
C42: конец года
D43: всего | E43: норма | F43: ниже нормы | G43: низкий
C44: количество детей | D44: =COUNTA($C$8:$C$31)-COUNTIF($C$8:$C$31,"=0") -> 24 | E44: =COUNTIF($O$8:$O$31,">=3,8") -> 12 | F44: =COUNTIFS($O$8:$O$31,"<3,7",$O$8:$O$31,">=2,3") -> 12 | G44: =COUNTIFS($O$8:$O$31,"<2,2",$O$8:$O$31,">0") -> 0
C45: % | D45: 100 | E45: =E44*D45/D44 -> 50.0 | F45: =F44*D45/D44 -> 50.0 | G45: =G44*D45/D44 -> 0.0

Sheet СК-3
A1: НАПРАВЛЕНИЕ 4. ФОРМИРОВАНИЕ БЕЗОПАСНОГО ПОВЕДЕНИЯ | O1: ОГЛАВЛЕНИЕ
A3: №п/п | B3: ФИ ребенка | C3: Проявляет интерес к правилам безопасного поведения в быту | E3: Знает правила безопасного поведения и стремится их выполнять | K3: Знает почему нельзя пользования самостоятельно бытовыми приборами (ножи, иголки, ножницы, лекартсва, спички) | M3: Знает и соблюдает правила дорожного движения и поведения на улице | O3: среднее значение
E4: в группе | G4: в общественных местах | I4: в природе
C5: н.г. | D5: к.г. | E5: н.г. | F5: к.г. | G5: н.г. | H5: к.г. | I5: н.г. | J5: к.г. | K5: н.г. | L5: к.г. | M5: н.г. | N5: к.г. | O5: н.г. | P5: к.г.
A6: 1 | B6: ='Список группы'!C4 -> Бахтин Антон | C6: 3 | D6: 4 | E6: 3 | F6: 4 | G6: 3 | H6: 4 | I6: 4 | J6: 5 | K6: 4 | L6: 5 | M6: 3 | N6: 4 | O6: =(C6+E6+G6+I6+K6+M6)/6 -> 3.33 | P6: =(D6+F6+H6+J6+L6+N6)/6 -> 4.33
A7: 2 | B7: ='Список группы'!C5 -> Башилова Наталья | C7: 2 | D7: 3 | E7: 2 | F7: 3 | G7: 2 | H7: 3 | I7: 3 | J7: 4 | K7: 3 | L7: 4 | M7: 3 | N7: 4 | O7: =(C7+E7+G7+I7+K7+M7)/6 -> 2.50 | P7: =(D7+F7+H7+J7+L7+N7)/6 -> 3.50
A8: 3 | B8: ='Список группы'!C6 -> Бирюкова Екатерина | C8: 5 | D8: 5 | E8: 5 | F8: 5 | G8: 5 | H8: 5 | I8: 5 | J8: 5 | K8: 5 | L8: 5 | M8: 5 | N8: 5 | O8: 5.00 | P8: 5.00
A9: 4 | B9: ='Список группы'!C7 -> Власов Дмитрий | C9: 3 | D9: 2 | E9: 4 | F9: 3 | G9: 5 | H9: 3 | I9: 4 | J9: 3 | K9: 4 | L9: 2 | M9: 3 | N9: 2 | O9: 3.83 | P9: 2.50
A10: 5 | B10: ='Список группы'!C8 -> Гущина Софья | C10: 3 | D10: 4 | E10: 3 | F10: 4 | G10: 3 | H10: 4 | I10: 4 | J10: 5 | K10: 4 | L10: 5 | M10: 3 | N10: 4 | O10: 3.33 | P10: 4.33
A11: 6 | B11: ='Список группы'!C9 -> Десятниченко Кирилл | C11: 2 | D11: 3 | E11: 2 | F11: 3 | G11: 2 | H11: 3 | I11: 3 | J11: 4 | K11: 3 | L11: 4 | M11: 3 | N11: 4 | O11: 2.50 | P11: 3.50
A12: 7 | B12: ='Список группы'!C10 -> Йолсал Дениз | C12: 5 | D12: 5 | E12: 5 | F12: 5 | G12: 5 | H12: 5 | I12: 5 | J12: 5 | K12: 5 | L12: 5 | M12: 5 | N12: 5 | O12: 5.00 | P12: 5.00
A13: 8 | B13: ='Список группы'!C11 -> Кирилина Виктория | C13: 3 | D13: 2 | E13: 4 | F13: 3 | G13: 5 | H13: 3 | I13: 4 | J13: 3 | K13: 4 | L13: 2 | M13: 3 | N13: 2 | O13: 3.83 | P13: 2.50
A14: 9 | B14: ='Список группы'!C12 -> Князева Алиса | C14: 3 | D14: 4 | E14: 3 | F14: 4 | G14: 3 | H14: 4 | I14: 4 | J14: 5 | K14: 4 | L14: 5 | M14: 3 | N14: 4 | O14: 3.33 | P14: 4.33
A15: 10 | B15: ='Список группы'!C13 -> Максимова Анна | C15: 2 | D15: 3 | E15: 2 | F15: 3 | G15: 2 | H15: 3 | I15: 3 | J15: 4 | K15: 3 | L15: 4 | M15: 3 | N15: 4 | O15: 2.50 | P15: 3.50
A16: 11 | B16: ='Список группы'!C14 -> Меньшов Алексей | C16: 5 | D16: 5 | E16: 5 | F16: 5 | G16: 5 | H16: 5 | I16: 5 | J16: 5 | K16: 5 | L16: 5 | M16: 5 | N16: 5 | O16: 5.00 | P16: 5.00
A17: 12 | B17: ='Список группы'!C15 -> Муравлев Даниил | C17: 3 | D17: 2 | E17: 4 | F17: 3 | G17: 5 | H17: 3 | I17: 4 | J17: 3 | K17: 4 | L17: 2 | M17: 3 | N17: 2 | O17: 3.83 | P17: 2.50
A18: 13 | B18: ='Список группы'!C16 -> Панов Тимофей | C18: 3 | D18: 4 | E18: 3 | F18: 4 | G18: 3 | H18: 4 | I18: 4 | J18: 5 | K18: 4 | L18: 5 | M18: 3 | N18: 4 | O18: 3.33 | P18: 4.33
A19: 14 | B19: ='Список группы'!C17 -> Саркисов Илья | C19: 2 | D19: 3 | E19: 2 | F19: 3 | G19: 2 | H19: 3 | I19: 3 | J19: 4 | K19: 3 | L19: 4 | M19: 3 | N19: 4 | O19: 2.50 | P19: 3.50
A20: 15 | B20: ='Список группы'!C18 -> Свирская Анастасия | C20: 5 | D20: 5 | E20: 5 | F20: 5 | G20: 5 | H20: 5 | I20: 5 | J20: 5 | K20: 5 | L20: 5 | M20: 5 | N20: 5 | O20: 5.00 | P20: 5.00
A21: 16 | B21: ='Список группы'!C19 -> Семенина Елизавета | C21: 3 | D21: 2 | E21: 4 | F21: 3 | G21: 5 | H21: 3 | I21: 4 | J21: 3 | K21: 4 | L21: 2 | M21: 3 | N21: 2 | O21: 3.83 | P21: 2.50
A22: 17 | B22: ='Список группы'!C20 -> Сергеев Алексей | C22: 3 | D22: 4 | E22: 3 | F22: 4 | G22: 3 | H22: 4 | I22: 4 | J22: 5 | K22: 4 | L22: 5 | M22: 3 | N22: 4 | O22: 3.33 | P22: 4.33
A23: 18 | B23: ='Список группы'!C21 -> Солопов Максим | C23: 2 | D23: 3 | E23: 2 | F23: 3 | G23: 2 | H23: 3 | I23: 3 | J23: 4 | K23: 3 | L23: 4 | M23: 3 | N23: 4 | O23: 2.50 | P23: 3.50
A24: 19 | B24: ='Список группы'!C22 -> Стригунов Александр | C24: 5 | D24: 5 | E24: 5 | F24: 5 | G24: 5 | H24: 5 | I24: 5 | J24: 5 | K24: 5 | L24: 5 | M24: 5 | N24: 5 | O24: 5.00 | P24: 5.00
A25: 20 | B25: ='Список группы'!C23 -> Тихонов Данил | C25: 3 | D25: 2 | E25: 4 | F25: 3 | G25: 5 | H25: 3 | I25: 4 | J25: 3 | K25: 4 | L25: 2 | M25: 3 | N25: 2 | O25: 3.83 | P25: 2.50
A26: 21 | B26: ='Список группы'!C24 -> Федоров Данила | C26: 3 | D26: 4 | E26: 3 | F26: 4 | G26: 3 | H26: 4 | I26: 4 | J26: 5 | K26: 4 | L26: 5 | M26: 3 | N26: 4 | O26: 3.33 | P26: 4.33
A27: 22 | B27: ='Список группы'!C25 -> Чалдина Дарья | C27: 2 | D27: 3 | E27: 2 | F27: 3 | G27: 2 | H27: 3 | I27: 3 | J27: 4 | K27: 3 | L27: 4 | M27: 3 | N27: 4 | O27: 2.50 | P27: 3.50
A28: 23 | B28: ='Список группы'!C26 -> Черногоров Аркадий | C28: 5 | D28: 5 | E28: 5 | F28: 5 | G28: 5 | H28: 5 | I28: 5 | J28: 5 | K28: 5 | L28: 5 | M28: 5 | N28: 5 | O28: 5.00 | P28: 5.00
A29: 24 | B29: ='Список группы'!C27 -> Шагабудинов Владислав | C29: 3 | D29: 2 | E29: 4 | F29: 3 | G29: 5 | H29: 3 | I29: 4 | J29: 3 | K29: 4 | L29: 2 | M29: 3 | N29: 2 | O29: 3.83 | P29: 2.50
B30: среднее значение: | C30: =(C6+C7+C8+C9+C10+C11+C12+C13+C14+C15+C16+C17+C18+C19+C20+C21+C22+C23+C24+C25+C26+C27+C28+C29)/(COUNTA($B$6:$B$29)-COUNTIF($B$6:$B$29,"=0")) -> 3.25 | D30: =(D6+D7+D8+D9+D10+D11+D12+D13+D14+D15+D16+D17+D18+D19+D20+D21+D22+D23+D24+D25+D26+D27+D28+D29)/(COUNTA($B$6:$B$29)-COUNTIF($B$6:$B$29,"=0")) -> 3.50 | E30: 3.50 | F30: 3.75 | G30: 3.75 | H30: 3.75 | I30: 4.00 | J30: 4.25 | K30: 4.00 | L30: 4.00 | M30: 3.50 | N30: 3.75 | O30: 3.67 | P30: 3.83
B33: начало года
C34: всего | D34: норма | E34: ниже нормы | F34: низкий
B35: количество детей | C35: =COUNTA(B6:B29)-COUNTIF($B$6:$B$29,"=0") -> 24 | D35: =COUNTIF($O$6:$O$29,">=3,8") -> 12 | E35: =COUNTIFS($O$6:$O$29,"<3,7",$O$6:$O$29,">=2,3") -> 12 | F35: =COUNTIFS($O$6:$O$29,"<2,2",$O$6:$O$29,">0") -> 0
B36: % | C36: 100 | D36: =D35*C36/C35 -> 50.0 | E36: =E35*C36/C35 -> 50.0 | F36: =F35*C36/C35 -> 0.0
B39: конец года
C40: всего | D40: норма | E40: ниже нормы | F40: низкий
B41: количество детей | C41: =COUNTA(B6:B29)-COUNTIF($B$6:$B$29,"=0") -> 24 | D41: =COUNTIF($P$6:$P$29,">=3,8") -> 12 | E41: =COUNTIFS($P$6:$P$29,"<3,7",$P$6:$P$29,">=2,3") -> 12 | F41: =COUNTIFS($P$6:$P$29,"<2,2",$P$6:$P$29,">0") -> 0
B42: % | C42: 100 | D42: =D41*C42/C41 -> 50.0 | E42: =E41*C42/C41 -> 50.0 | F42: =F41*C42/C41 -> 0.0

Sheet ИТОГ СК
B1: Обобщение результатов педагогической диагностики по направлениям
B2: ОО «Социально-коммуникативное развитие»
G3: ОГЛАВЛЕНИЕ
C4: Социальные отношения. Формирование основ гражданственности и патриотизма | D4: Трудовое воспитание | E4: Формирование безопасного поведения | F4: Средний балл/уровень (итоговый)
C5: 1 | D5: 2 | E5: 3 | F5: ср.ур.
B6: начало | C6: ='СК-1'!V32 -> 3.72 | D6: ='СК-2'!N32 -> 3.70 | E6: ='СК-3'!O30 -> 3.67 | F6: =(C6+D6+E6)/3 -> 3.70
B7: конец | C7: ='СК-1'!W32 -> 3.94 | D7: ='СК-2'!O32 -> 3.85 | E7: ='СК-3'!P30 -> 3.83 | F7: =(C7+D7+E7)/3 -> 3.88
A29: ВЫВОДЫ:
A30: Начало уч.года:
A38: Конец уч.года:

Sheet ХЭ-1
A1: Образовательная область «Художественно-эстетическое развитие»
A2: НАПРАВЛЕНИЕ I. ПРИОБЩЕНИЕ К ИСКУССТВУ | I2: ОГЛАВЛЕНИЕ
A4: №п/п | B4: ФИ ребенка | C4: Проявляет интерес к произведениям искусства | E4: Различает некоторые виды искусства | G4: Слушает чтение художественных текстов, сосредотачивается на этой деятельности на 10—15 минут, не отвлекаясь | I4: Проявляет положительный эмоциональный отклик на красоту природы | K4: среднее значение
C7: н.г. | D7: к.г. | E7: н.г. | F7: к.г. | G7: н.г. | H7: к.г. | I7: н.г. | J7: к.г. | K7: н.г. | L7: к.г.
A8: 1 | B8: ='Список группы'!C4 -> Бахтин Антон | C8: 3 | D8: 4 | E8: 3 | F8: 4 | G8: 3 | H8: 4 | I8: 4 | J8: 5 | K8: =(C8+E8+G8+I8)/4 -> 3.25 | L8: =(D8+F8+H8+J8)/4 -> 4.25
A9: 2 | B9: ='Список группы'!C5 -> Башилова Наталья | C9: 2 | D9: 3 | E9: 2 | F9: 3 | G9: 2 | H9: 3 | I9: 3 | J9: 4 | K9: =(C9+E9+G9+I9)/4 -> 2.25 | L9: =(D9+F9+H9+J9)/4 -> 3.25
A10: 3 | B10: ='Список группы'!C6 -> Бирюкова Екатерина | C10: 5 | D10: 5 | E10: 5 | F10: 5 | G10: 5 | H10: 5 | I10: 5 | J10: 5 | K10: 5.00 | L10: 5.00
A11: 4 | B11: ='Список группы'!C7 -> Власов Дмитрий | C11: 3 | D11: 2 | E11: 4 | F11: 3 | G11: 5 | H11: 3 | I11: 4 | J11: 3 | K11: 4.00 | L11: 2.75
A12: 5 | B12: ='Список группы'!C8 -> Гущина Софья | C12: 3 | D12: 4 | E12: 3 | F12: 4 | G12: 3 | H12: 4 | I12: 4 | J12: 5 | K12: 3.25 | L12: 4.25
A13: 6 | B13: ='Список группы'!C9 -> Десятниченко Кирилл | C13: 2 | D13: 3 | E13: 2 | F13: 3 | G13: 2 | H13: 3 | I13: 3 | J13: 4 | K13: 2.25 | L13: 3.25
A14: 7 | B14: ='Список группы'!C10 -> Йолсал Дениз | C14: 5 | D14: 5 | E14: 5 | F14: 5 | G14: 5 | H14: 5 | I14: 5 | J14: 5 | K14: 5.00 | L14: 5.00
A15: 8 | B15: ='Список группы'!C11 -> Кирилина Виктория | C15: 3 | D15: 2 | E15: 4 | F15: 3 | G15: 5 | H15: 3 | I15: 4 | J15: 3 | K15: 4.00 | L15: 2.75
A16: 9 | B16: ='Список группы'!C12 -> Князева Алиса | C16: 3 | D16: 4 | E16: 3 | F16: 4 | G16: 3 | H16: 4 | I16: 4 | J16: 5 | K16: 3.25 | L16: 4.25
A17: 10 | B17: ='Список группы'!C13 -> Максимова Анна | C17: 2 | D17: 3 | E17: 2 | F17: 3 | G17: 2 | H17: 3 | I17: 3 | J17: 4 | K17: 2.25 | L17: 3.25
A18: 11 | B18: ='Список группы'!C14 -> Меньшов Алексей | C18: 5 | D18: 5 | E18: 5 | F18: 5 | G18: 5 | H18: 5 | I18: 5 | J18: 5 | K18: 5.00 | L18: 5.00
A19: 12 | B19: ='Список группы'!C15 -> Муравлев Даниил | C19: 3 | D19: 2 | E19: 4 | F19: 3 | G19: 5 | H19: 3 | I19: 4 | J19: 3 | K19: 4.00 | L19: 2.75
A20: 13 | B20: ='Список группы'!C16 -> Панов Тимофей | C20: 3 | D20: 4 | E20: 3 | F20: 4 | G20: 3 | H20: 4 | I20: 4 | J20: 5 | K20: 3.25 | L20: 4.25
A21: 14 | B21: ='Список группы'!C17 -> Саркисов Илья | C21: 2 | D21: 3 | E21: 2 | F21: 3 | G21: 2 | H21: 3 | I21: 3 | J21: 4 | K21: 2.25 | L21: 3.25
A22: 15 | B22: ='Список группы'!C18 -> Свирская Анастасия | C22: 5 | D22: 5 | E22: 5 | F22: 5 | G22: 5 | H22: 5 | I22: 5 | J22: 5 | K22: 5.00 | L22: 5.00
A23: 16 | B23: ='Список группы'!C19 -> Семенина Елизавета | C23: 3 | D23: 2 | E23: 4 | F23: 3 | G23: 5 | H23: 3 | I23: 4 | J23: 3 | K23: 4.00 | L23: 2.75
A24: 17 | B24: ='Список группы'!C20 -> Сергеев Алексей | C24: 3 | D24: 4 | E24: 3 | F24: 4 | G24: 3 | H24: 4 | I24: 4 | J24: 5 | K24: 3.25 | L24: 4.25
A25: 18 | B25: ='Список группы'!C21 -> Солопов Максим | C25: 2 | D25: 3 | E25: 2 | F25: 3 | G25: 2 | H25: 3 | I25: 3 | J25: 4 | K25: 2.25 | L25: 3.25
A26: 19 | B26: ='Список группы'!C22 -> Стригунов Александр | C26: 5 | D26: 5 | E26: 5 | F26: 5 | G26: 5 | H26: 5 | I26: 5 | J26: 5 | K26: 5.00 | L26: 5.00
A27: 20 | B27: ='Список группы'!C23 -> Тихонов Данил | C27: 3 | D27: 2 | E27: 4 | F27: 3 | G27: 5 | H27: 3 | I27: 4 | J27: 3 | K27: 4.00 | L27: 2.75
A28: 21 | B28: ='Список группы'!C24 -> Федоров Данила | C28: 3 | D28: 4 | E28: 3 | F28: 4 | G28: 3 | H28: 4 | I28: 4 | J28: 5 | K28: 3.25 | L28: 4.25
A29: 22 | B29: ='Список группы'!C25 -> Чалдина Дарья | C29: 2 | D29: 3 | E29: 2 | F29: 3 | G29: 2 | H29: 3 | I29: 3 | J29: 4 | K29: 2.25 | L29: 3.25
A30: 23 | B30: ='Список группы'!C26 -> Черногоров Аркадий | C30: 5 | D30: 5 | E30: 5 | F30: 5 | G30: 5 | H30: 5 | I30: 5 | J30: 5 | K30: 5.00 | L30: 5.00
A31: 24 | B31: ='Список группы'!C27 -> Шагабудинов Владислав | C31: 3 | D31: 2 | E31: 4 | F31: 3 | G31: 5 | H31: 3 | I31: 4 | J31: 3 | K31: 4.00 | L31: 2.75
B32: среднее значение: | C32: =(C8+C9+C10+C11+C12+C13+C14+C15+C16+C17+C18+C19+C20+C21+C22+C23+C24+C25+C26+C27+C28+C29+C30+C31)/(COUNTA($B$8:$B$31)-COUNTIF($B$8:$B$31,"=0")) -> 3.25 | D32: =(D8+D9+D10+D11+D12+D13+D14+D15+D16+D17+D18+D19+D20+D21+D22+D23+D24+D25+D26+D27+D28+D29+D30+D31)/(COUNTA($B$8:$B$31)-COUNTIF($B$8:$B$31,"=0")) -> 3.50 | E32: 3.50 | F32: 3.75 | G32: 3.75 | H32: 3.75 | I32: 4.00 | J32: 4.25 | K32: 3.63 | L32: 3.81
B34: начало года
C35: всего | D35: норма | E35: ниже нормы | F35: низкий
B36: количество детей | C36: =COUNTA($B$8:$B$31)-COUNTIF($B$8:$B$31,"=0") -> 24 | D36: =COUNTIF($K$8:$K$31,">=3,8") -> 12 | E36: =COUNTIFS($K$8:$K$31,"<3,7",$K$8:$K$31,">=2,3") -> 6 | F36: =COUNTIFS($K$8:$K$31,"<2,2",$K$8:$K$31,">0") -> 0
B37: % | C37: 100 | D37: =D36*C37/C36 -> 50.0 | E37: =E36*C37/C36 -> 25.0 | F37: =F36*C37/C36 -> 0.0
B40: конец года
C41: всего | D41: норма | E41: ниже нормы | F41: низкий
B42: количество детей | C42: =COUNTA($B$8:$B$31)-COUNTIF($B$8:$B$31,"=0") -> 24 | D42: =COUNTIF($L$8:$L$31,">=3,8") -> 12 | E42: =COUNTIFS($L$8:$L$31,"<3,7",$L$8:$L$31,">=2,3") -> 12 | F42: =COUNTIFS($L$8:$L$31,"<2,2",$L$8:$L$31,">0") -> 0
B43: % | C43: 100 | D43: =D42*C43/C42 -> 50.0 | E43: =E42*C43/C42 -> 50.0 | F43: =F42*C43/C42 -> 0.0

Sheet ХЭ-2
A1: НАПРАВЛЕНИЕ 2. КОНСТРУКТИВНАЯ ДЕЯТЕЛЬНОСТЬ | M1: ОГЛАВЛЕНИЕ
A3: №п/п | B3: ФИ ребенка | C3: Знает, называет и правильно использует детали строительного материала. Изменяет постройки, надстраивая или заменяя одни детали другими | E3: Сооружает постройки по собственному замыслу | G3: Обыгрывает постройки, объединяя их по сюжету | I3: Знает свойства песна, снега при сооружении построек | K3: После игры аккуратно складывает детали в коробки | M3: среднее значение
C4: н.г. | D4: к.г. | E4: н.г. | F4: к.г. | G4: н.г. | H4: к.г. | I4: н.г. | J4: к.г. | K4: н.г. | L4: к.г. | M4: н.г. | N4: к.г.
A5: 1 | B5: ='Список группы'!C4 -> Бахтин Антон | C5: 3 | D5: 4 | E5: 3 | F5: 4 | G5: 3 | H5: 4 | I5: 4 | J5: 5 | K5: 4 | L5: 5 | M5: =(C5+E5+G5+I5+K5)/5 -> 3.40 | N5: =(D5+F5+H5+J5+L5)/5 -> 4.40
A6: 2 | B6: ='Список группы'!C5 -> Башилова Наталья | C6: 2 | D6: 3 | E6: 2 | F6: 3 | G6: 2 | H6: 3 | I6: 3 | J6: 4 | K6: 3 | L6: 4 | M6: =(C6+E6+G6+I6+K6)/5 -> 2.40 | N6: 3.40
A7: 3 | B7: ='Список группы'!C6 -> Бирюкова Екатерина | C7: 5 | D7: 5 | E7: 5 | F7: 5 | G7: 5 | H7: 5 | I7: 5 | J7: 5 | K7: 5 | L7: 5 | M7: 5.00 | N7: 5.00
A8: 4 | B8: ='Список группы'!C7 -> Власов Дмитрий | C8: 3 | D8: 2 | E8: 4 | F8: 3 | G8: 5 | H8: 3 | I8: 4 | J8: 3 | K8: 4 | L8: 2 | M8: 4.00 | N8: 2.60
A9: 5 | B9: ='Список группы'!C8 -> Гущина Софья | C9: 3 | D9: 4 | E9: 3 | F9: 4 | G9: 3 | H9: 4 | I9: 4 | J9: 5 | K9: 4 | L9: 5 | M9: 3.40 | N9: 4.40
A10: 6 | B10: ='Список группы'!C9 -> Десятниченко Кирилл | C10: 2 | D10: 3 | E10: 2 | F10: 3 | G10: 2 | H10: 3 | I10: 3 | J10: 4 | K10: 3 | L10: 4 | M10: 2.40 | N10: 3.40
A11: 7 | B11: ='Список группы'!C10 -> Йолсал Дениз | C11: 5 | D11: 5 | E11: 5 | F11: 5 | G11: 5 | H11: 5 | I11: 5 | J11: 5 | K11: 5 | L11: 5 | M11: 5.00 | N11: 5.00
A12: 8 | B12: ='Список группы'!C11 -> Кирилина Виктория | C12: 3 | D12: 2 | E12: 4 | F12: 3 | G12: 5 | H12: 3 | I12: 4 | J12: 3 | K12: 4 | L12: 2 | M12: 4.00 | N12: 2.60
A13: 9 | B13: ='Список группы'!C12 -> Князева Алиса | C13: 3 | D13: 4 | E13: 3 | F13: 4 | G13: 3 | H13: 4 | I13: 4 | J13: 5 | K13: 4 | L13: 5 | M13: 3.40 | N13: 4.40
A14: 10 | B14: ='Список группы'!C13 -> Максимова Анна | C14: 2 | D14: 3 | E14: 2 | F14: 3 | G14: 2 | H14: 3 | I14: 3 | J14: 4 | K14: 3 | L14: 4 | M14: 2.40 | N14: 3.40
A15: 11 | B15: ='Список группы'!C14 -> Меньшов Алексей | C15: 5 | D15: 5 | E15: 5 | F15: 5 | G15: 5 | H15: 5 | I15: 5 | J15: 5 | K15: 5 | L15: 5 | M15: 5.00 | N15: 5.00
A16: 12 | B16: ='Список группы'!C15 -> Муравлев Даниил | C16: 3 | D16: 2 | E16: 4 | F16: 3 | G16: 5 | H16: 3 | I16: 4 | J16: 3 | K16: 4 | L16: 2 | M16: 4.00 | N16: 2.60
A17: 13 | B17: ='Список группы'!C16 -> Панов Тимофей | C17: 3 | D17: 4 | E17: 3 | F17: 4 | G17: 3 | H17: 4 | I17: 4 | J17: 5 | K17: 4 | L17: 5 | M17: 3.40 | N17: 4.40
A18: 14 | B18: ='Список группы'!C17 -> Саркисов Илья | C18: 2 | D18: 3 | E18: 2 | F18: 3 | G18: 2 | H18: 3 | I18: 3 | J18: 4 | K18: 3 | L18: 4 | M18: 2.40 | N18: 3.40
A19: 15 | B19: ='Список группы'!C18 -> Свирская Анастасия | C19: 5 | D19: 5 | E19: 5 | F19: 5 | G19: 5 | H19: 5 | I19: 5 | J19: 5 | K19: 5 | L19: 5 | M19: 5.00 | N19: 5.00
A20: 16 | B20: ='Список группы'!C19 -> Семенина Елизавета | C20: 3 | D20: 2 | E20: 4 | F20: 3 | G20: 5 | H20: 3 | I20: 4 | J20: 3 | K20: 4 | L20: 2 | M20: 4.00 | N20: 2.60
A21: 17 | B21: ='Список группы'!C20 -> Сергеев Алексей | C21: 3 | D21: 4 | E21: 3 | F21: 4 | G21: 3 | H21: 4 | I21: 4 | J21: 5 | K21: 4 | L21: 5 | M21: 3.40 | N21: 4.40
A22: 18 | B22: ='Список группы'!C21 -> Солопов Максим | C22: 2 | D22: 3 | E22: 2 | F22: 3 | G22: 2 | H22: 3 | I22: 3 | J22: 4 | K22: 3 | L22: 4 | M22: 2.40 | N22: 3.40
A23: 19 | B23: ='Список группы'!C22 -> Стригунов Александр | C23: 5 | D23: 5 | E23: 5 | F23: 5 | G23: 5 | H23: 5 | I23: 5 | J23: 5 | K23: 5 | L23: 5 | M23: 5.00 | N23: 5.00
A24: 20 | B24: ='Список группы'!C23 -> Тихонов Данил | C24: 3 | D24: 2 | E24: 4 | F24: 3 | G24: 5 | H24: 3 | I24: 4 | J24: 3 | K24: 4 | L24: 2 | M24: 4.00 | N24: 2.60
A25: 21 | B25: ='Список группы'!C24 -> Федоров Данила | C25: 3 | D25: 4 | E25: 3 | F25: 4 | G25: 3 | H25: 4 | I25: 4 | J25: 5 | K25: 4 | L25: 5 | M25: 3.40 | N25: 4.40
A26: 22 | B26: ='Список группы'!C25 -> Чалдина Дарья | C26: 2 | D26: 3 | E26: 2 | F26: 3 | G26: 2 | H26: 3 | I26: 3 | J26: 4 | K26: 3 | L26: 4 | M26: 2.40 | N26: 3.40
A27: 23 | B27: ='Список группы'!C26 -> Черногоров Аркадий | C27: 5 | D27: 5 | E27: 5 | F27: 5 | G27: 5 | H27: 5 | I27: 5 | J27: 5 | K27: 5 | L27: 5 | M27: 5.00 | N27: 5.00
A28: 24 | B28: ='Список группы'!C27 -> Шагабудинов Владислав | C28: 3 | D28: 2 | E28: 4 | F28: 3 | G28: 5 | H28: 3 | I28: 4 | J28: 3 | K28: 4 | L28: 2 | M28: 4.00 | N28: 2.60
B29: среднее значение: | C29: =(C5+C6+C7+C8+C9+C10+C11+C12+C13+C14+C15+C16+C17+C18+C19+C20+C21+C22+C23+C24+C25+C26+C27+C28)/(COUNTA($B$5:$B$28)-COUNTIF($B$5:$B$28,"=0")) -> 3.25 | D29: =(D5+D6+D7+D8+D9+D10+D11+D12+D13+D14+D15+D16+D17+D18+D19+D20+D21+D22+D23+D24+D25+D26+D27+D28)/(COUNTA($B$5:$B$28)-COUNTIF($B$5:$B$28,"=0")) -> 3.50 | E29: 3.50 | F29: 3.75 | G29: 3.75 | H29: 3.75 | I29: 4.00 | J29: 4.25 | K29: 4.00 | L29: 4.00 | M29: =(C29+E29+G29+I29+K29)/5 -> 3.70 | N29: =(D29+F29+H29+J29+L29)/5 -> 3.85
B32: начало года
C33: всего | D33: норма | E33: ниже нормы | F33: низкий
B34: количество детей | C34: =COUNTA($B$5:$B$28)-COUNTIF($B$5:$B$28,"=0") -> 24 | D34: =COUNTIF($M$5:$M$28,">=3,8") -> 12 | E34: =COUNTIFS($M$5:$M$28,"<3,7",$M$5:$M$28,">=2,3") -> 12 | F34: =COUNTIFS($M$5:$M$28,"<2,2",$M$5:$M$28,">0") -> 0
B35: % | C35: 100 | D35: =D34*C35/C34 -> 50.0 | E35: =E34*C35/C34 -> 50.0 | F35: =F34*C35/C34 -> 0.0
B38: конец года
C39: всего | D39: норма | E39: ниже нормы | F39: низкий
B40: количество детей | C40: =COUNTA($B$5:$B$28)-COUNTIF($B$5:$B$28,"=0") -> 24 | D40: =COUNTIF($N$5:$N$28,">=3,8") -> 12 | E40: =COUNTIFS($N$5:$N$28,"<3,7",$N$5:$N$28,">=2,3") -> 12 | F40: =COUNTIFS($N$5:$N$28,"<2,2",$N$5:$N$28,">0") -> 0
B41: % | C41: 100 | D41: =D40*C41/C40 -> 50.0 | E41: =E40*C41/C40 -> 50.0 | F41: =F40*C41/C40 -> 0.0

Sheet ХЭ-3
A1: НАПРАВЛЕНИЕ 3. ИЗОБРАЗИТЕЛЬНАЯ ДЕЯТЕЛЬНОСТЬ | S1: ОГЛАВЛЕНИЕ
A3: №п/п | B3: ФИ ребенка | C3: рисование | I3: лепка | M3: аппликация; народное ДПИ | S3: среднее значение
C4: Правильно держит карандаш, не сжимая сильно пальцы | E4: рисует линии вразных направлениях | G4: создает несложные сюжетные композации | I4: раскатывает комочки прямыми и круговыми движениями | K4: создает предметы состоящие из 2-3 частей | M4: умеет пользоваться клеем | O4: Изображает/создаёт отдельные предметы, простые по композиции и по содержанию сюжеты, используя разные материалы | Q4: Создаёт изображения предметов из готовых фигур. Украшает заготовки из бумаги разной формы
C5: н.г. | D5: к.г. | E5: н.г. | F5: к.г. | G5: н.г. | H5: к.г. | I5: н.г. | J5: к.г. | K5: н.г. | L5: к.г. | M5: н.г. | N5: к.г. | O5: н.г. | P5: к.г. | Q5: н.г. | R5: к.г. | S5: н.г. | T5: к.г.
A6: 1 | B6: ='Список группы'!C4 -> Бахтин Антон | C6: 3 | D6: 4 | E6: 3 | F6: 4 | G6: 3 | H6: 4 | I6: 4 | J6: 5 | K6: 4 | L6: 5 | M6: 3 | N6: 4 | O6: 3 | P6: 4 | Q6: 3 | R6: 4 | S6: =(C6+E6+G6+I6+K6+M6+O6+Q6)/8 -> 3.25 | T6: =(D6+F6+H6+J6+L6+N6+P6+R6)/8 -> 4.25
A7: 2 | B7: ='Список группы'!C5 -> Башилова Наталья | C7: 2 | D7: 3 | E7: 2 | F7: 3 | G7: 2 | H7: 3 | I7: 3 | J7: 4 | K7: 3 | L7: 4 | M7: 3 | N7: 4 | O7: 4 | P7: 5 | Q7: 4 | R7: 5 | S7: =(C7+E7+G7+I7+K7+M7+O7+Q7)/8 -> 2.88 | T7: =(D7+F7+H7+J7+L7+N7+P7+R7)/8 -> 3.88
A8: 3 | B8: ='Список группы'!C6 -> Бирюкова Екатерина | C8: 5 | D8: 5 | E8: 5 | F8: 5 | G8: 5 | H8: 5 | I8: 5 | J8: 5 | K8: 5 | L8: 5 | M8: 5 | N8: 5 | O8: 5 | P8: 5 | Q8: 5 | R8: 5 | S8: 5.00 | T8: 5.00
A9: 4 | B9: ='Список группы'!C7 -> Власов Дмитрий | C9: 3 | D9: 2 | E9: 4 | F9: 3 | G9: 5 | H9: 3 | I9: 4 | J9: 3 | K9: 4 | L9: 2 | M9: 3 | N9: 2 | O9: 3 | P9: 2 | Q9: 3 | R9: 3 | S9: 3.63 | T9: 2.50
A10: 5 | B10: ='Список группы'!C8 -> Гущина Софья | C10: 3 | D10: 4 | E10: 3 | F10: 4 | G10: 3 | H10: 4 | I10: 4 | J10: 5 | K10: 4 | L10: 5 | M10: 3 | N10: 4 | O10: 3 | P10: 4 | Q10: 3 | R10: 4 | S10: 3.25 | T10: 4.25
A11: 6 | B11: ='Список группы'!C9 -> Десятниченко Кирилл | C11: 2 | D11: 3 | E11: 2 | F11: 3 | G11: 2 | H11: 3 | I11: 3 | J11: 4 | K11: 3 | L11: 4 | M11: 3 | N11: 4 | O11: 4 | P11: 5 | Q11: 4 | R11: 5 | S11: 2.88 | T11: 3.88
A12: 7 | B12: ='Список группы'!C10 -> Йолсал Дениз | C12: 5 | D12: 5 | E12: 5 | F12: 5 | G12: 5 | H12: 5 | I12: 5 | J12: 5 | K12: 5 | L12: 5 | M12: 5 | N12: 5 | O12: 5 | P12: 5 | Q12: 5 | R12: 5 | S12: 5.00 | T12: 5.00
A13: 8 | B13: ='Список группы'!C11 -> Кирилина Виктория | C13: 3 | D13: 2 | E13: 4 | F13: 3 | G13: 5 | H13: 3 | I13: 4 | J13: 3 | K13: 4 | L13: 2 | M13: 3 | N13: 2 | O13: 3 | P13: 2 | Q13: 3 | R13: 3 | S13: 3.63 | T13: 2.50
A14: 9 | B14: ='Список группы'!C12 -> Князева Алиса | C14: 3 | D14: 4 | E14: 3 | F14: 4 | G14: 3 | H14: 4 | I14: 4 | J14: 5 | K14: 4 | L14: 5 | M14: 3 | N14: 4 | O14: 3 | P14: 4 | Q14: 3 | R14: 4 | S14: 3.25 | T14: 4.25
A15: 10 | B15: ='Список группы'!C13 -> Максимова Анна | C15: 2 | D15: 3 | E15: 2 | F15: 3 | G15: 2 | H15: 3 | I15: 3 | J15: 4 | K15: 3 | L15: 4 | M15: 3 | N15: 4 | O15: 4 | P15: 5 | Q15: 4 | R15: 5 | S15: 2.88 | T15: 3.88
A16: 11 | B16: ='Список группы'!C14 -> Меньшов Алексей | C16: 5 | D16: 5 | E16: 5 | F16: 5 | G16: 5 | H16: 5 | I16: 5 | J16: 5 | K16: 5 | L16: 5 | M16: 5 | N16: 5 | O16: 5 | P16: 5 | Q16: 5 | R16: 5 | S16: 5.00 | T16: 5.00
A17: 12 | B17: ='Список группы'!C15 -> Муравлев Даниил | C17: 3 | D17: 2 | E17: 4 | F17: 3 | G17: 5 | H17: 3 | I17: 4 | J17: 3 | K17: 4 | L17: 2 | M17: 3 | N17: 2 | O17: 3 | P17: 2 | Q17: 3 | R17: 3 | S17: 3.63 | T17: 2.50
A18: 13 | B18: ='Список группы'!C16 -> Панов Тимофей | C18: 3 | D18: 4 | E18: 3 | F18: 4 | G18: 3 | H18: 4 | I18: 4 | J18: 5 | K18: 4 | L18: 5 | M18: 3 | N18: 4 | O18: 3 | P18: 4 | Q18: 3 | R18: 4 | S18: 3.25 | T18: 4.25
A19: 14 | B19: ='Список группы'!C17 -> Саркисов Илья | C19: 2 | D19: 3 | E19: 2 | F19: 3 | G19: 2 | H19: 3 | I19: 3 | J19: 4 | K19: 3 | L19: 4 | M19: 3 | N19: 4 | O19: 4 | P19: 5 | Q19: 4 | R19: 5 | S19: 2.88 | T19: 3.88
A20: 15 | B20: ='Список группы'!C18 -> Свирская Анастасия | C20: 5 | D20: 5 | E20: 5 | F20: 5 | G20: 5 | H20: 5 | I20: 5 | J20: 5 | K20: 5 | L20: 5 | M20: 5 | N20: 5 | O20: 5 | P20: 5 | Q20: 5 | R20: 5 | S20: 5.00 | T20: 5.00
A21: 16 | B21: ='Список группы'!C19 -> Семенина Елизавета | C21: 3 | D21: 2 | E21: 4 | F21: 3 | G21: 5 | H21: 3 | I21: 4 | J21: 3 | K21: 4 | L21: 2 | M21: 3 | N21: 2 | O21: 3 | P21: 2 | Q21: 3 | R21: 3 | S21: 3.63 | T21: 2.50
A22: 17 | B22: ='Список группы'!C20 -> Сергеев Алексей | C22: 3 | D22: 4 | E22: 3 | F22: 4 | G22: 3 | H22: 4 | I22: 4 | J22: 5 | K22: 4 | L22: 5 | M22: 3 | N22: 4 | O22: 3 | P22: 4 | Q22: 3 | R22: 4 | S22: 3.25 | T22: 4.25
A23: 18 | B23: ='Список группы'!C21 -> Солопов Максим | C23: 2 | D23: 3 | E23: 2 | F23: 3 | G23: 2 | H23: 3 | I23: 3 | J23: 4 | K23: 3 | L23: 4 | M23: 3 | N23: 4 | O23: 4 | P23: 5 | Q23: 4 | R23: 5 | S23: 2.88 | T23: 3.88
A24: 19 | B24: ='Список группы'!C22 -> Стригунов Александр | C24: 5 | D24: 5 | E24: 5 | F24: 5 | G24: 5 | H24: 5 | I24: 5 | J24: 5 | K24: 5 | L24: 5 | M24: 5 | N24: 5 | O24: 5 | P24: 5 | Q24: 5 | R24: 5 | S24: 5.00 | T24: 5.00
A25: 20 | B25: ='Список группы'!C23 -> Тихонов Данил | C25: 3 | D25: 2 | E25: 4 | F25: 3 | G25: 5 | H25: 3 | I25: 4 | J25: 3 | K25: 4 | L25: 2 | M25: 3 | N25: 2 | O25: 3 | P25: 2 | Q25: 3 | R25: 3 | S25: 3.63 | T25: 2.50
A26: 21 | B26: ='Список группы'!C24 -> Федоров Данила | C26: 3 | D26: 4 | E26: 3 | F26: 4 | G26: 3 | H26: 4 | I26: 4 | J26: 5 | K26: 4 | L26: 5 | M26: 3 | N26: 4 | O26: 3 | P26: 4 | Q26: 3 | R26: 4 | S26: 3.25 | T26: 4.25
A27: 22 | B27: ='Список группы'!C25 -> Чалдина Дарья | C27: 2 | D27: 3 | E27: 2 | F27: 3 | G27: 2 | H27: 3 | I27: 3 | J27: 4 | K27: 3 | L27: 4 | M27: 3 | N27: 4 | O27: 4 | P27: 5 | Q27: 4 | R27: 5 | S27: 2.88 | T27: 3.88
A28: 23 | B28: ='Список группы'!C26 -> Черногоров Аркадий | C28: 5 | D28: 5 | E28: 5 | F28: 5 | G28: 5 | H28: 5 | I28: 5 | J28: 5 | K28: 5 | L28: 5 | M28: 5 | N28: 5 | O28: 5 | P28: 5 | Q28: 5 | R28: 5 | S28: 5.00 | T28: 5.00
A29: 24 | B29: ='Список группы'!C27 -> Шагабудинов Владислав | C29: 3 | D29: 2 | E29: 4 | F29: 3 | G29: 5 | H29: 3 | I29: 4 | J29: 3 | K29: 4 | L29: 2 | M29: 3 | N29: 2 | O29: 3 | P29: 2 | Q29: 3 | R29: 3 | S29: 3.63 | T29: 2.50
B30: среднее значение: | C30: =(C6+C7+C8+C9+C10+C11+C12+C13+C14+C15+C16+C17+C18+C19+C20+C21+C22+C23+C24+C25+C26+C27+C28+C29)/(COUNTA($B$6:$B$29)-COUNTIF($B$6:$B$29,"=0")) -> 3.25 | D30: =(D6+D7+D8+D9+D10+D11+D12+D13+D14+D15+D16+D17+D18+D19+D20+D21+D22+D23+D24+D25+D26+D27+D28+D29)/(COUNTA($B$6:$B$29)-COUNTIF($B$6:$B$29,"=0")) -> 3.50 | E30: 3.50 | F30: 3.75 | G30: 3.75 | H30: 3.75 | I30: 4.00 | J30: 4.25 | K30: 4.00 | L30: 4.00 | M30: 3.50 | N30: 3.75 | O30: 3.75 | P30: 4.00 | Q30: 3.75 | R30: 4.25 | S30: 3.69 | T30: 3.91
B33: начало года
C34: всего | D34: норма | E34: ниже нормы | F34: низкий
B35: количество детей | C35: =COUNTA($B$6:$B$29)-COUNTIF($B$6:$B$29,"=0") -> 24 | D35: =COUNTIF($S$6:$S$29,">=3,8") -> 6 | E35: =COUNTIFS($S$6:$S$29,"<3,7",$S$6:$S$29,">=2,3") -> 18 | F35: =COUNTIFS($S$6:$S$29,"<2,2",$S$6:$S$29,">0") -> 0
B36: % | C36: 100 | D36: =D35*C36/C35 -> 25.0 | E36: =E35*C36/C35 -> 75.0 | F36: =F35*C36/C35 -> 0.0
B39: конец года
C40: всего | D40: норма | E40: ниже нормы | F40: низкий
B41: количество детей | C41: =COUNTA($B$6:$B$29)-COUNTIF($B$6:$B$29,"=0") -> 24 | D41: =COUNTIF($T$6:$T$29,">=3,8") -> 18 | E41: =COUNTIFS($T$6:$T$29,"<3,7",$T$6:$T$29,">=2,3") -> 6 | F41: =COUNTIFS($T$6:$T$29,"<2,2",$T$6:$T$29,">0") -> 0
B42: % | C42: 100 | D42: =D41*C42/C41 -> 75.0 | E42: =E41*C42/C41 -> 25.0 | F42: =F41*C42/C41 -> 0.0

Sheet ХЭ-4
B1: НАПРАВЛЕНИЕ 4. МУЗЫКАЛЬНАЯ ДЕЯТЕЛЬНОСТЬ | X1: ОГЛАВЛЕНИЕ
B3: №п/п | C3: ФИ ребенка | D3: Слушание | J3: Пение | N3: Песенное творчество | P3: Музыкально-ритмические движения | T3: Игра на ДМИ | X3: среднее значение
D4: Слушает музыкальное произведение до конца, понимает характер музыки | F4: Различает звуки по высоте в пределах октавы - септимы, замечает изменения в силе звучания мелодии (громко, тихо) | H4: Различает звучание муз.игрушек, ДМИ | J4: Поет без напряжения в диапазоне ре(ми) - ля(си) в одном темпе со всеми | L4: Передает характер музыки (весело, протяжно, ласково, напевно) | N4: Допевает мелодии колыбельных песен на слог "баю-баю" и веселых мелодий на слог "ля-ля" | P4: Умеет выполнять танцевальные движения: кружиться в парах, притоптывать попеременно ногами, двигаться под музыку с предметами | R4: Умеет передавать в движениях характер изображаемых животных | T4: Различает и называет музыкальные инструменты: дудочка, металлофон, колокольчик, бубен, погремушка, барабан, | V4: Старается подыгрывать на ДМИ
D5: н.г. | E5: к.г. | F5: н.г. | G5: к.г. | H5: н.г. | I5: к.г. | J5: н.г. | K5: к.г. | L5: н.г. | M5: к.г. | N5: н.г. | O5: к.г. | P5: н.г. | Q5: к.г. | R5: н.г. | S5: к.г. | T5: н.г. | U5: к.г. | V5: н.г. | W5: к.г. | X5: н.г. | Y5: к.г.
B6: 1 | C6: ='Список группы'!C4 -> Бахтин Антон | D6: 3 | E6: 4 | F6: 3 | G6: 4 | H6: 3 | I6: 4 | J6: 4 | K6: 5 | L6: 4 | M6: 5 | N6: 3 | O6: 4 | P6: 3 | Q6: 4 | R6: 3 | S6: 4 | T6: 3 | U6: 4 | V6: 3 | W6: 4 | X6: =(D6+H6+F6+J6+L6+N6+P6+R6+T6+V6)/10 -> 3.20 | Y6: =(E6+I6+G6+K6+M6+O6+Q6+S6+U6+W6)/10 -> 4.20
B7: 2 | C7: ='Список группы'!C5 -> Башилова Наталья | D7: 2 | E7: 3 | F7: 2 | G7: 3 | H7: 2 | I7: 3 | J7: 3 | K7: 4 | L7: 3 | M7: 4 | N7: 3 | O7: 4 | P7: 4 | Q7: 5 | R7: 4 | S7: 5 | T7: 3 | U7: 4 | V7: 3 | W7: 4 | X7: =(D7+H7+F7+J7+L7+N7+P7+R7+T7+V7)/10 -> 2.90 | Y7: =(E7+I7+G7+K7+M7+O7+Q7+S7+U7+W7)/10 -> 3.90
B8: 3 | C8: ='Список группы'!C6 -> Бирюкова Екатерина | D8: 5 | E8: 5 | F8: 5 | G8: 5 | H8: 5 | I8: 5 | J8: 5 | K8: 5 | L8: 5 | M8: 5 | N8: 5 | O8: 5 | P8: 5 | Q8: 5 | R8: 5 | S8: 5 | T8: 5 | U8: 5 | V8: 5 | W8: 5 | X8: 5.00 | Y8: 5.00
B9: 4 | C9: ='Список группы'!C7 -> Власов Дмитрий | D9: 3 | E9: 2 | F9: 4 | G9: 3 | H9: 5 | I9: 3 | J9: 4 | K9: 3 | L9: 4 | M9: 2 | N9: 3 | O9: 2 | P9: 3 | Q9: 2 | R9: 3 | S9: 3 | T9: 4 | U9: 3 | V9: 4 | W9: 3 | X9: 3.70 | Y9: 2.60
B10: 5 | C10: ='Список группы'!C8 -> Гущина Софья | D10: 3 | E10: 4 | F10: 3 | G10: 4 | H10: 3 | I10: 4 | J10: 4 | K10: 5 | L10: 4 | M10: 5 | N10: 3 | O10: 4 | P10: 3 | Q10: 4 | R10: 3 | S10: 4 | T10: 3 | U10: 4 | V10: 3 | W10: 4 | X10: 3.20 | Y10: 4.20
B11: 6 | C11: ='Список группы'!C9 -> Десятниченко Кирилл | D11: 2 | E11: 3 | F11: 2 | G11: 3 | H11: 2 | I11: 3 | J11: 3 | K11: 4 | L11: 3 | M11: 4 | N11: 3 | O11: 4 | P11: 4 | Q11: 5 | R11: 4 | S11: 5 | T11: 3 | U11: 4 | V11: 3 | W11: 4 | X11: 2.90 | Y11: 3.90
B12: 7 | C12: ='Список группы'!C10 -> Йолсал Дениз | D12: 5 | E12: 5 | F12: 5 | G12: 5 | H12: 5 | I12: 5 | J12: 5 | K12: 5 | L12: 5 | M12: 5 | N12: 5 | O12: 5 | P12: 5 | Q12: 5 | R12: 5 | S12: 5 | T12: 5 | U12: 5 | V12: 5 | W12: 5 | X12: 5.00 | Y12: 5.00
B13: 8 | C13: ='Список группы'!C11 -> Кирилина Виктория | D13: 3 | E13: 2 | F13: 4 | G13: 3 | H13: 5 | I13: 3 | J13: 4 | K13: 3 | L13: 4 | M13: 2 | N13: 3 | O13: 2 | P13: 3 | Q13: 2 | R13: 3 | S13: 3 | T13: 4 | U13: 3 | V13: 4 | W13: 3 | X13: 3.70 | Y13: 2.60
B14: 9 | C14: ='Список группы'!C12 -> Князева Алиса | D14: 3 | E14: 4 | F14: 3 | G14: 4 | H14: 3 | I14: 4 | J14: 4 | K14: 5 | L14: 4 | M14: 5 | N14: 3 | O14: 4 | P14: 3 | Q14: 4 | R14: 3 | S14: 4 | T14: 3 | U14: 4 | V14: 3 | W14: 4 | X14: 3.20 | Y14: 4.20
B15: 10 | C15: ='Список группы'!C13 -> Максимова Анна | D15: 2 | E15: 3 | F15: 2 | G15: 3 | H15: 2 | I15: 3 | J15: 3 | K15: 4 | L15: 3 | M15: 4 | N15: 3 | O15: 4 | P15: 4 | Q15: 5 | R15: 4 | S15: 5 | T15: 3 | U15: 4 | V15: 3 | W15: 4 | X15: 2.90 | Y15: 3.90
B16: 11 | C16: ='Список группы'!C14 -> Меньшов Алексей | D16: 5 | E16: 5 | F16: 5 | G16: 5 | H16: 5 | I16: 5 | J16: 5 | K16: 5 | L16: 5 | M16: 5 | N16: 5 | O16: 5 | P16: 5 | Q16: 5 | R16: 5 | S16: 5 | T16: 5 | U16: 5 | V16: 5 | W16: 5 | X16: 5.00 | Y16: 5.00
B17: 12 | C17: ='Список группы'!C15 -> Муравлев Даниил | D17: 3 | E17: 2 | F17: 4 | G17: 3 | H17: 5 | I17: 3 | J17: 4 | K17: 3 | L17: 4 | M17: 2 | N17: 3 | O17: 2 | P17: 3 | Q17: 2 | R17: 3 | S17: 3 | T17: 4 | U17: 3 | V17: 4 | W17: 3 | X17: 3.70 | Y17: 2.60
B18: 13 | C18: ='Список группы'!C16 -> Панов Тимофей | D18: 3 | E18: 4 | F18: 3 | G18: 4 | H18: 3 | I18: 4 | J18: 4 | K18: 5 | L18: 4 | M18: 5 | N18: 3 | O18: 4 | P18: 3 | Q18: 4 | R18: 3 | S18: 4 | T18: 3 | U18: 4 | V18: 3 | W18: 4 | X18: 3.20 | Y18: 4.20
B19: 14 | C19: ='Список группы'!C17 -> Саркисов Илья | D19: 2 | E19: 3 | F19: 2 | G19: 3 | H19: 2 | I19: 3 | J19: 3 | K19: 4 | L19: 3 | M19: 4 | N19: 3 | O19: 4 | P19: 4 | Q19: 5 | R19: 4 | S19: 5 | T19: 3 | U19: 4 | V19: 3 | W19: 4 | X19: 2.90 | Y19: 3.90
B20: 15 | C20: ='Список группы'!C18 -> Свирская Анастасия | D20: 5 | E20: 5 | F20: 5 | G20: 5 | H20: 5 | I20: 5 | J20: 5 | K20: 5 | L20: 5 | M20: 5 | N20: 5 | O20: 5 | P20: 5 | Q20: 5 | R20: 5 | S20: 5 | T20: 5 | U20: 5 | V20: 5 | W20: 5 | X20: 5.00 | Y20: 5.00
B21: 16 | C21: ='Список группы'!C19 -> Семенина Елизавета | D21: 3 | E21: 2 | F21: 4 | G21: 3 | H21: 5 | I21: 3 | J21: 4 | K21: 3 | L21: 4 | M21: 2 | N21: 3 | O21: 2 | P21: 3 | Q21: 2 | R21: 3 | S21: 3 | T21: 4 | U21: 3 | V21: 4 | W21: 3 | X21: 3.70 | Y21: 2.60
B22: 17 | C22: ='Список группы'!C20 -> Сергеев Алексей | D22: 3 | E22: 4 | F22: 3 | G22: 4 | H22: 3 | I22: 4 | J22: 4 | K22: 5 | L22: 4 | M22: 5 | N22: 3 | O22: 4 | P22: 3 | Q22: 4 | R22: 3 | S22: 4 | T22: 3 | U22: 4 | V22: 3 | W22: 4 | X22: 3.20 | Y22: 4.20
B23: 18 | C23: ='Список группы'!C21 -> Солопов Максим | D23: 2 | E23: 3 | F23: 2 | G23: 3 | H23: 2 | I23: 3 | J23: 3 | K23: 4 | L23: 3 | M23: 4 | N23: 3 | O23: 4 | P23: 4 | Q23: 5 | R23: 4 | S23: 5 | T23: 3 | U23: 4 | V23: 3 | W23: 4 | X23: 2.90 | Y23: 3.90
B24: 19 | C24: ='Список группы'!C22 -> Стригунов Александр | D24: 5 | E24: 5 | F24: 5 | G24: 5 | H24: 5 | I24: 5 | J24: 5 | K24: 5 | L24: 5 | M24: 5 | N24: 5 | O24: 5 | P24: 5 | Q24: 5 | R24: 5 | S24: 5 | T24: 5 | U24: 5 | V24: 5 | W24: 5 | X24: 5.00 | Y24: 5.00
B25: 20 | C25: ='Список группы'!C23 -> Тихонов Данил | D25: 3 | E25: 2 | F25: 4 | G25: 3 | H25: 5 | I25: 3 | J25: 4 | K25: 3 | L25: 4 | M25: 2 | N25: 3 | O25: 2 | P25: 3 | Q25: 2 | R25: 3 | S25: 3 | T25: 4 | U25: 3 | V25: 4 | W25: 3 | X25: 3.70 | Y25: 2.60
B26: 21 | C26: ='Список группы'!C24 -> Федоров Данила | D26: 3 | E26: 4 | F26: 3 | G26: 4 | H26: 3 | I26: 4 | J26: 4 | K26: 5 | L26: 4 | M26: 5 | N26: 3 | O26: 4 | P26: 3 | Q26: 4 | R26: 3 | S26: 4 | T26: 3 | U26: 4 | V26: 3 | W26: 4 | X26: 3.20 | Y26: 4.20
B27: 22 | C27: ='Список группы'!C25 -> Чалдина Дарья | D27: 2 | E27: 3 | F27: 2 | G27: 3 | H27: 2 | I27: 3 | J27: 3 | K27: 4 | L27: 3 | M27: 4 | N27: 3 | O27: 4 | P27: 4 | Q27: 5 | R27: 4 | S27: 5 | T27: 3 | U27: 4 | V27: 3 | W27: 4 | X27: 2.90 | Y27: 3.90
B28: 23 | C28: ='Список группы'!C26 -> Черногоров Аркадий | D28: 5 | E28: 5 | F28: 5 | G28: 5 | H28: 5 | I28: 5 | J28: 5 | K28: 5 | L28: 5 | M28: 5 | N28: 5 | O28: 5 | P28: 5 | Q28: 5 | R28: 5 | S28: 5 | T28: 5 | U28: 5 | V28: 5 | W28: 5 | X28: 5.00 | Y28: 5.00
B29: 24 | C29: ='Список группы'!C27 -> Шагабудинов Владислав | D29: 3 | E29: 2 | F29: 4 | G29: 3 | H29: 5 | I29: 3 | J29: 4 | K29: 3 | L29: 4 | M29: 2 | N29: 3 | O29: 2 | P29: 3 | Q29: 2 | R29: 3 | S29: 3 | T29: 4 | U29: 3 | V29: 4 | W29: 3 | X29: 3.70 | Y29: 2.60
C30: среднее значение: | D30: =(D6+D7+D8+D9+D10+D11+D12+D13+D14+D15+D16+D17+D18+D19+D20+D21+D22+D23+D24+D25+D26+D27+D28+D29)/(COUNTA($C$6:$C$29)-COUNTIF($C$6:$C$29,"=0")) -> 3.25 | E30: =(E6+E7+E8+E9+E10+E11+E12+E13+E14+E15+E16+E17+E18+E19+E20+E21+E22+E23+E24+E25+E26+E27+E28+E29)/(COUNTA($C$6:$C$29)-COUNTIF($C$6:$C$29,"=0")) -> 3.50 | F30: 3.50 | G30: 3.75 | H30: 3.75 | I30: 3.75 | J30: 4.00 | K30: 4.25 | L30: 4.00 | M30: 4.00 | N30: 3.50 | O30: 3.75 | P30: 3.75 | Q30: 4.00 | R30: 3.75 | S30: 4.25 | T30: 3.75 | U30: 4.00 | V30: 3.75 | W30: 4.00 | X30: 3.70 | Y30: 3.93
C33: начало года
D34: всего | E34: норма | F34: ниже нормы | G34: низкий
C35: количество детей | D35: =COUNTA($C$6:$C$29)-COUNTIF($C$6:$C$29,"=0") -> 24 | E35: =COUNTIF($X$6:$X$29,">=3,8") -> 6 | F35: =COUNTIFS($X$6:$X$29,"<3,7",$X$6:$X$29,">=2,3") -> 12 | G35: =COUNTIFS($X$6:$X$29,"<2,2",$X$6:$X$29,">0") -> 0
C36: % | D36: 100 | E36: =E35*D36/D35 -> 25.0 | F36: =F35*D36/D35 -> 50.0 | G36: =G35*D36/D35 -> 0.0
C39: конец года
D40: всего | E40: норма | F40: ниже нормы | G40: низкий
C41: количество детей | D41: =COUNTA($C$6:$C$29)-COUNTIF($C$6:$C$29,"=0") -> 24 | E41: =COUNTIF($Y$6:$Y$29,">=3,8") -> 18 | F41: =COUNTIFS($Y$6:$Y$29,"<3,7",$Y$6:$Y$29,">=2,3") -> 6 | G41: =COUNTIFS($Y$6:$Y$29,"<2,2",$Y$6:$Y$29,">0") -> 0
C42: % | D42: 100 | E42: =E41*D42/D41 -> 75.0 | F42: =F41*D42/D41 -> 25.0 | G42: =G41*D42/D41 -> 0.0

Sheet ХЭ-5
A1: НАПРАВЛЕНИЕ 5. ТЕАТРАЛИЗОВАННАЯ И КУЛЬТУРНО-ДОСУГОВАЯ ДЕЯТЕЛЬНОСТЬ | M1: ОГЛАВЛЕНИЕ
A3: №п/п | B3: ФИ ребенка | C3: Театрализованная деятельность | G3: среднее значение | I3: Культурно-досуговая деятельность | M3: среднее значение
C4: Умеет передавать характеристики персонажей (ласковая кошечка, мишка косолапый) | E4: В играх-драматизациях следит за сюжетом | I4: Проявляет интерес к различным видам досуговой деятельности | K4: С удовольствием участвует в праздниках, развлечениях и тд
C5: н.г. | D5: к.г. | E5: н.г. | F5: к.г. | G5: н.г. | H5: к.г. | I5: н.г. | J5: к.г. | K5: н.г. | L5: к.г. | M5: н.г. | N5: к.г.
A6: 1 | B6: ='Список группы'!C4 -> Бахтин Антон | C6: 4 | D6: 5 | E6: 3 | F6: 4 | G6: =(C6+E6)/2 -> 3.50 | H6: =(D6+F6)/2 -> 4.50 | I6: 3 | J6: 4 | K6: 3 | L6: 4 | M6: =(I6+K6)/2 -> 3.00 | N6: =(J6+L6)/2 -> 4.00
A7: 2 | B7: ='Список группы'!C5 -> Башилова Наталья | C7: 3 | D7: 4 | E7: 3 | F7: 4 | G7: =(C7+E7)/2 -> 3.00 | H7: =(D7+F7)/2 -> 4.00 | I7: 3 | J7: 4 | K7: 3 | L7: 4 | M7: =(I7+K7)/2 -> 3.00 | N7: =(J7+L7)/2 -> 4.00
A8: 3 | B8: ='Список группы'!C6 -> Бирюкова Екатерина | C8: 5 | D8: 5 | E8: 5 | F8: 5 | G8: 5.00 | H8: 5.00 | I8: 5 | J8: 5 | K8: 5 | L8: 5 | M8: 5.00 | N8: 5.00
A9: 4 | B9: ='Список группы'!C7 -> Власов Дмитрий | C9: 4 | D9: 2 | E9: 3 | F9: 2 | G9: 3.50 | H9: 2.00 | I9: 4 | J9: 3 | K9: 4 | L9: 3 | M9: 4.00 | N9: 3.00
A10: 5 | B10: ='Список группы'!C8 -> Гущина Софья | C10: 4 | D10: 5 | E10: 3 | F10: 4 | G10: 3.50 | H10: 4.50 | I10: 3 | J10: 4 | K10: 3 | L10: 4 | M10: 3.00 | N10: 4.00
A11: 6 | B11: ='Список группы'!C9 -> Десятниченко Кирилл | C11: 3 | D11: 4 | E11: 3 | F11: 4 | G11: 3.00 | H11: 4.00 | I11: 3 | J11: 4 | K11: 3 | L11: 4 | M11: 3.00 | N11: 4.00
A12: 7 | B12: ='Список группы'!C10 -> Йолсал Дениз | C12: 5 | D12: 5 | E12: 5 | F12: 5 | G12: 5.00 | H12: 5.00 | I12: 5 | J12: 5 | K12: 5 | L12: 5 | M12: 5.00 | N12: 5.00
A13: 8 | B13: ='Список группы'!C11 -> Кирилина Виктория | C13: 4 | D13: 2 | E13: 3 | F13: 2 | G13: 3.50 | H13: 2.00 | I13: 4 | J13: 3 | K13: 4 | L13: 3 | M13: 4.00 | N13: 3.00
A14: 9 | B14: ='Список группы'!C12 -> Князева Алиса | C14: 4 | D14: 5 | E14: 3 | F14: 4 | G14: 3.50 | H14: 4.50 | I14: 3 | J14: 4 | K14: 3 | L14: 4 | M14: 3.00 | N14: 4.00
A15: 10 | B15: ='Список группы'!C13 -> Максимова Анна | C15: 3 | D15: 4 | E15: 3 | F15: 4 | G15: 3.00 | H15: 4.00 | I15: 3 | J15: 4 | K15: 3 | L15: 4 | M15: 3.00 | N15: 4.00
A16: 11 | B16: ='Список группы'!C14 -> Меньшов Алексей | C16: 5 | D16: 5 | E16: 5 | F16: 5 | G16: 5.00 | H16: 5.00 | I16: 5 | J16: 5 | K16: 5 | L16: 5 | M16: 5.00 | N16: 5.00
A17: 12 | B17: ='Список группы'!C15 -> Муравлев Даниил | C17: 4 | D17: 2 | E17: 3 | F17: 2 | G17: 3.50 | H17: 2.00 | I17: 4 | J17: 3 | K17: 4 | L17: 3 | M17: 4.00 | N17: 3.00
A18: 13 | B18: ='Список группы'!C16 -> Панов Тимофей | C18: 4 | D18: 5 | E18: 3 | F18: 4 | G18: 3.50 | H18: 4.50 | I18: 3 | J18: 4 | K18: 3 | L18: 4 | M18: 3.00 | N18: 4.00
A19: 14 | B19: ='Список группы'!C17 -> Саркисов Илья | C19: 3 | D19: 4 | E19: 3 | F19: 4 | G19: 3.00 | H19: 4.00 | I19: 3 | J19: 4 | K19: 3 | L19: 4 | M19: 3.00 | N19: 4.00
A20: 15 | B20: ='Список группы'!C18 -> Свирская Анастасия | C20: 5 | D20: 5 | E20: 5 | F20: 5 | G20: 5.00 | H20: 5.00 | I20: 5 | J20: 5 | K20: 5 | L20: 5 | M20: 5.00 | N20: 5.00
A21: 16 | B21: ='Список группы'!C19 -> Семенина Елизавета | C21: 4 | D21: 2 | E21: 3 | F21: 2 | G21: 3.50 | H21: 2.00 | I21: 4 | J21: 3 | K21: 4 | L21: 3 | M21: 4.00 | N21: 3.00
A22: 17 | B22: ='Список группы'!C20 -> Сергеев Алексей | C22: 4 | D22: 5 | E22: 3 | F22: 4 | G22: 3.50 | H22: 4.50 | I22: 3 | J22: 4 | K22: 3 | L22: 4 | M22: 3.00 | N22: 4.00
A23: 18 | B23: ='Список группы'!C21 -> Солопов Максим | C23: 3 | D23: 4 | E23: 3 | F23: 4 | G23: 3.00 | H23: 4.00 | I23: 3 | J23: 4 | K23: 3 | L23: 4 | M23: 3.00 | N23: 4.00
A24: 19 | B24: ='Список группы'!C22 -> Стригунов Александр | C24: 5 | D24: 5 | E24: 5 | F24: 5 | G24: 5.00 | H24: 5.00 | I24: 5 | J24: 5 | K24: 5 | L24: 5 | M24: 5.00 | N24: 5.00
A25: 20 | B25: ='Список группы'!C23 -> Тихонов Данил | C25: 4 | D25: 2 | E25: 3 | F25: 2 | G25: 3.50 | H25: 2.00 | I25: 4 | J25: 3 | K25: 4 | L25: 3 | M25: 4.00 | N25: 3.00
A26: 21 | B26: ='Список группы'!C24 -> Федоров Данила | C26: 4 | D26: 5 | E26: 3 | F26: 4 | G26: 3.50 | H26: 4.50 | I26: 3 | J26: 4 | K26: 3 | L26: 4 | M26: 3.00 | N26: 4.00
A27: 22 | B27: ='Список группы'!C25 -> Чалдина Дарья | C27: 3 | D27: 4 | E27: 3 | F27: 4 | G27: 3.00 | H27: 4.00 | I27: 3 | J27: 4 | K27: 3 | L27: 4 | M27: 3.00 | N27: 4.00
A28: 23 | B28: ='Список группы'!C26 -> Черногоров Аркадий | C28: 5 | D28: 5 | E28: 5 | F28: 5 | G28: 5.00 | H28: 5.00 | I28: 5 | J28: 5 | K28: 5 | L28: 5 | M28: 5.00 | N28: 5.00
A29: 24 | B29: ='Список группы'!C27 -> Шагабудинов Владислав | C29: 4 | D29: 2 | E29: 3 | F29: 2 | G29: 3.50 | H29: 2.00 | I29: 4 | J29: 3 | K29: 4 | L29: 3 | M29: 4.00 | N29: 3.00
B30: среднее значение: | C30: =(C6+C7+C8+C9+C10+C11+C12+C13+C14+C15+C16+C17+C18+C19+C20+C21+C22+C23+C24+C25+C26+C27+C28+C29)/(COUNTA($B$6:$B$29)-COUNTIF($B$6:$B$29,"=0")) -> 4.00 | D30: =(D6+D7+D8+D9+D10+D11+D12+D13+D14+D15+D16+D17+D18+D19+D20+D21+D22+D23+D24+D25+D26+D27+D28+D29)/(COUNTA($B$6:$B$29)-COUNTIF($B$6:$B$29,"=0")) -> 4.00 | E30: 3.50 | F30: 3.75 | G30: 3.75 | H30: 3.88 | I30: =(I6+I7+I8+I9+I10+I11+I12+I13+I14+I15+I16+I17+I18+I19+I20+I21+I22+I23+I24+I25+I26+I27+I28+I29)/(COUNTA($B$6:$B$29)-COUNTIF($B$6:$B$29,"=0")) -> 3.75 | J30: =(J6+J7+J8+J9+J10+J11+J12+J13+J14+J15+J16+J17+J18+J19+J20+J21+J22+J23+J24+J25+J26+J27+J28+J29)/(COUNTA($B$6:$B$29)-COUNTIF($B$6:$B$29,"=0")) -> 4.00 | K30: =(K6+K7+K8+K9+K10+K11+K12+K13+K14+K15+K16+K17+K18+K19+K20+K21+K22+K23+K24+K25+K26+K27+K28+K29)/(COUNTA($B$6:$B$29)-COUNTIF($B$6:$B$29,"=0")) -> 3.75 | L30: 4.00 | M30: 3.75 | N30: 4.00
B33: начало года | I33: начало года
A34: ТЕАТРАЛИЗОВАННАЯ ДЕЯТЕЛЬНОСТЬ | C34: всего | D34: норма | E34: ниже нормы | F34: низкий | H34: КУЛЬТУРНО-ДОСУГОВАЯ ДЕЯТЕЛЬНОСТЬ | L34: всего | M34: норма | N34: ниже нормы | O34: низкий
B35: количество детей | C35: =COUNTA($B$6:$B$29)-COUNTIF($B$6:$B$29,"=0") -> 24 | D35: =COUNTIF($G$6:$G$29,">=3,8") -> 6 | E35: =COUNTIFS($G$6:$G$29,"<3,7",$G$6:$G$29,">=2,3") -> 18 | F35: =COUNTIFS($G$6:$G$29,"<2,2",$G$6:$G$29,">0") -> 0 | I35: количество детей | L35: =COUNTA($B$6:$B$29)-COUNTIF($B$6:$B$29,"=0") -> 24 | M35: =COUNTIF($M$6:$M$29,">=3,8") -> 12 | N35: =COUNTIFS($M$6:$M$29,"<3,7",$M$6:$M$29,">=2,3") -> 12 | O35: =COUNTIFS($M$6:$M$29,"<2,2",$M$6:$M$29,">0") -> 0
B36: % | C36: 100 | D36: =D35*C36/C35 -> 25.0 | E36: =E35*C36/C35 -> 75.0 | F36: =F35*C36/C35 -> 0.0 | I36: % | L36: 100 | M36: =M35*L36/L35 -> 50.0 | N36: =N35*L36/L35 -> 50.0 | O36: =O35*L36/L35 -> 0.0
B39: конец года | I39: конец года
C40: всего | D40: норма | E40: ниже нормы | F40: низкий | L40: всего | M40: норма | N40: ниже нормы | O40: низкий
B41: количество детей | C41: =COUNTA($B$6:$B$29)-COUNTIF($B$6:$B$29,"=0") -> 24 | D41: =COUNTIF($H$6:$H$29,">=3,8") -> 18 | E41: =COUNTIFS($H$6:$H$29,"<3,7",$H$6:$H$29,">=2,3") -> 0 | F41: =COUNTIFS($H$6:$H$29,"<2,2",$H$6:$H$29,">0") -> 6 | I41: количество детей | L41: =COUNTA($B$6:$B$29)-COUNTIF($B$6:$B$29,"=0") -> 24 | M41: =COUNTIF($N$6:$N$29,">=3,8") -> 18 | N41: =COUNTIFS($N$6:$N$29,"<3,7",$N$6:$N$29,">=2,3") -> 6 | O41: =COUNTIFS($N$6:$N$29,"<2,2",$N$6:$N$29,">0") -> 0
B42: % | C42: 100 | D42: =D41*C42/C41 -> 75.0 | E42: =E41*C42/C41 -> 0.0 | F42: =F41*C42/C41 -> 25.0 | I42: % | L42: 100 | M42: =M41*L42/L41 -> 75.0 | N42: =N41*L42/L41 -> 25.0 | O42: =O41*L42/L41 -> 0.0

Sheet ИТОГ ХЭ
A1: Обобщение результатов педагогической диагностики по направлениям
A2: ОО «Художественно-эстетическое развитие»
H3: ОГЛАВЛЕНИЕ
B4: Приобщение к искусству | C4: Конструктивная деятельность | D4: Изобразительная деятельность | E4: Музыкальная деятельность | F4: Театрализованная деятельность | G4: Культурно-досуговая деятельность | H4: Средний балл/уровень
B5: 1 | C5: 2 | D5: 3 | E5: 4 | F5: 5 | G5: 6 | H5: ср.ур.
A6: начало | B6: ='ХЭ-1'!K32 -> 3.63 | C6: ='ХЭ-2'!M29 -> 3.70 | D6: ='ХЭ-3'!S30 -> 3.69 | E6: ='ХЭ-4'!X30 -> 3.70 | F6: ='ХЭ-5'!G30 -> 3.75 | G6: ='ХЭ-5'!M30 -> 3.75 | H6: =(B6+C6+D6+E6+F6+G6)/6 -> 3.70
A7: конец | B7: ='ХЭ-1'!L32 -> 3.81 | C7: ='ХЭ-2'!N29 -> 3.85 | D7: ='ХЭ-3'!T30 -> 3.91 | E7: ='ХЭ-4'!Y30 -> 3.93 | F7: ='ХЭ-5'!H30 -> 3.88 | G7: ='ХЭ-5'!N30 -> 4.00 | H7: =(B7+C7+D7+E7+F7+G7)/6 -> 3.89
A28: ВЫВОДЫ:
A29: Начало учебного года:
A37: Конец учебного года:

Sheet ФР-1
A1: Образовательная область «Физическое развитие»
A3: НАПРАВЛЕНИЕ I. ОСНОВНАЯ ГИМНАСТИКА. ПОДВИЖНЫЕ И СПОРТИВНЫЕ ИГРЫ. СПОРТИВНЫЕ УПРАЖНЕНИЯ
A5: №п/п | B5: ФИ ребенка | C5: Умеет ходить и бегать, сохраняя равновесие, в разных направлениях по указанию взрослого | E5: Прыгает на двух и на одной ноге; наместе, продвигаясь вперед | G5: Энергично отталкивается в прыжках на двух ногах, прыгает в длину с места | I5: Организованно выполняет строевые упражнеия, находит свое место при перестроении | K5: Выполняет упражнения по показу | M5: Выполняет задания сообща, действует в общем для всех темпе | O5: Катает мяч в заданном направлении с расстояния, бросает мяч двумя руками от груди, из-за головы; ударяет мячом об пол, бросает вверх и ловит; метает предметы правой и левой руками | Q5: Соблюдает правила в подвижных играх | S5: среднее значение
C7: н.г. | D7: к.г. | E7: н.г. | F7: к.г. | G7: н.г. | H7: к.г. | I7: н.г. | J7: к.г. | K7: н.г. | L7: к.г. | M7: н.г. | N7: к.г. | O7: н.г. | P7: к.г. | Q7: н.г. | R7: к.г. | S7: н.г. | T7: к.г.
A8: 1 | B8: ='Список группы'!C4 -> Бахтин Антон | C8: 3 | D8: 4 | E8: 3 | F8: 4 | G8: 3 | H8: 4 | I8: 4 | J8: 5 | K8: 4 | L8: 5 | M8: 3 | N8: 4 | O8: 3 | P8: 4 | Q8: 3 | R8: 4 | S8: =(C8+E8+G8+I8+K8+M8+O8+Q8)/8 -> 3.3 | T8: =(D8+F8+H8+J8+L8+N8+P8+R8)/8 -> 4.3
A9: 2 | B9: ='Список группы'!C5 -> Башилова Наталья | C9: 2 | D9: 3 | E9: 2 | F9: 3 | G9: 2 | H9: 3 | I9: 3 | J9: 4 | K9: 3 | L9: 4 | M9: 3 | N9: 4 | O9: 4 | P9: 5 | Q9: 4 | R9: 5 | S9: =(C9+E9+G9+I9+K9+M9+O9+Q9)/8 -> 2.9 | T9: =(D9+F9+H9+J9+L9+N9+P9+R9)/8 -> 3.9
A10: 3 | B10: ='Список группы'!C6 -> Бирюкова Екатерина | C10: 5 | D10: 5 | E10: 5 | F10: 5 | G10: 5 | H10: 5 | I10: 5 | J10: 5 | K10: 5 | L10: 5 | M10: 5 | N10: 5 | O10: 5 | P10: 5 | Q10: 5 | R10: 5 | S10: 5.0 | T10: 5.0
A11: 4 | B11: ='Список группы'!C7 -> Власов Дмитрий | C11: 3 | D11: 2 | E11: 4 | F11: 3 | G11: 5 | H11: 3 | I11: 4 | J11: 3 | K11: 4 | L11: 2 | M11: 3 | N11: 2 | O11: 3 | P11: 2 | Q11: 3 | R11: 3 | S11: 3.6 | T11: 2.5
A12: 5 | B12: ='Список группы'!C8 -> Гущина Софья | C12: 3 | D12: 4 | E12: 3 | F12: 4 | G12: 3 | H12: 4 | I12: 4 | J12: 5 | K12: 4 | L12: 5 | M12: 3 | N12: 4 | O12: 3 | P12: 4 | Q12: 3 | R12: 4 | S12: 3.3 | T12: 4.3
A13: 6 | B13: ='Список группы'!C9 -> Десятниченко Кирилл | C13: 2 | D13: 3 | E13: 2 | F13: 3 | G13: 2 | H13: 3 | I13: 3 | J13: 4 | K13: 3 | L13: 4 | M13: 3 | N13: 4 | O13: 4 | P13: 5 | Q13: 4 | R13: 5 | S13: 2.9 | T13: 3.9
A14: 7 | B14: ='Список группы'!C10 -> Йолсал Дениз | C14: 5 | D14: 5 | E14: 5 | F14: 5 | G14: 5 | H14: 5 | I14: 5 | J14: 5 | K14: 5 | L14: 5 | M14: 5 | N14: 5 | O14: 5 | P14: 5 | Q14: 5 | R14: 5 | S14: 5.0 | T14: 5.0
A15: 8 | B15: ='Список группы'!C11 -> Кирилина Виктория | C15: 3 | D15: 2 | E15: 4 | F15: 3 | G15: 5 | H15: 3 | I15: 4 | J15: 3 | K15: 4 | L15: 2 | M15: 3 | N15: 2 | O15: 3 | P15: 2 | Q15: 3 | R15: 3 | S15: 3.6 | T15: 2.5
A16: 9 | B16: ='Список группы'!C12 -> Князева Алиса | C16: 3 | D16: 4 | E16: 3 | F16: 4 | G16: 3 | H16: 4 | I16: 4 | J16: 5 | K16: 4 | L16: 5 | M16: 3 | N16: 4 | O16: 3 | P16: 4 | Q16: 3 | R16: 4 | S16: 3.3 | T16: 4.3
A17: 10 | B17: ='Список группы'!C13 -> Максимова Анна | C17: 2 | D17: 3 | E17: 2 | F17: 3 | G17: 2 | H17: 3 | I17: 3 | J17: 4 | K17: 3 | L17: 4 | M17: 3 | N17: 4 | O17: 4 | P17: 5 | Q17: 4 | R17: 5 | S17: 2.9 | T17: 3.9
A18: 11 | B18: ='Список группы'!C14 -> Меньшов Алексей | C18: 5 | D18: 5 | E18: 5 | F18: 5 | G18: 5 | H18: 5 | I18: 5 | J18: 5 | K18: 5 | L18: 5 | M18: 5 | N18: 5 | O18: 5 | P18: 5 | Q18: 5 | R18: 5 | S18: 5.0 | T18: 5.0
A19: 12 | B19: ='Список группы'!C15 -> Муравлев Даниил | C19: 3 | D19: 2 | E19: 4 | F19: 3 | G19: 5 | H19: 3 | I19: 4 | J19: 3 | K19: 4 | L19: 2 | M19: 3 | N19: 2 | O19: 3 | P19: 2 | Q19: 3 | R19: 3 | S19: 3.6 | T19: 2.5
A20: 13 | B20: ='Список группы'!C16 -> Панов Тимофей | C20: 3 | D20: 4 | E20: 3 | F20: 4 | G20: 3 | H20: 4 | I20: 4 | J20: 5 | K20: 4 | L20: 5 | M20: 3 | N20: 4 | O20: 3 | P20: 4 | Q20: 3 | R20: 4 | S20: 3.3 | T20: 4.3
A21: 14 | B21: ='Список группы'!C17 -> Саркисов Илья | C21: 2 | D21: 3 | E21: 2 | F21: 3 | G21: 2 | H21: 3 | I21: 3 | J21: 4 | K21: 3 | L21: 4 | M21: 3 | N21: 4 | O21: 4 | P21: 5 | Q21: 4 | R21: 5 | S21: 2.9 | T21: 3.9
A22: 15 | B22: ='Список группы'!C18 -> Свирская Анастасия | C22: 5 | D22: 5 | E22: 5 | F22: 5 | G22: 5 | H22: 5 | I22: 5 | J22: 5 | K22: 5 | L22: 5 | M22: 5 | N22: 5 | O22: 5 | P22: 5 | Q22: 5 | R22: 5 | S22: 5.0 | T22: 5.0
A23: 16 | B23: ='Список группы'!C19 -> Семенина Елизавета | C23: 3 | D23: 2 | E23: 4 | F23: 3 | G23: 5 | H23: 3 | I23: 4 | J23: 3 | K23: 4 | L23: 2 | M23: 3 | N23: 2 | O23: 3 | P23: 2 | Q23: 3 | R23: 3 | S23: 3.6 | T23: 2.5
A24: 17 | B24: ='Список группы'!C20 -> Сергеев Алексей | C24: 3 | D24: 4 | E24: 3 | F24: 4 | G24: 3 | H24: 4 | I24: 4 | J24: 5 | K24: 4 | L24: 5 | M24: 3 | N24: 4 | O24: 3 | P24: 4 | Q24: 3 | R24: 4 | S24: 3.3 | T24: 4.3
A25: 18 | B25: ='Список группы'!C21 -> Солопов Максим | C25: 2 | D25: 3 | E25: 2 | F25: 3 | G25: 2 | H25: 3 | I25: 3 | J25: 4 | K25: 3 | L25: 4 | M25: 3 | N25: 4 | O25: 4 | P25: 5 | Q25: 4 | R25: 5 | S25: 2.9 | T25: 3.9
A26: 19 | B26: ='Список группы'!C22 -> Стригунов Александр | C26: 5 | D26: 5 | E26: 5 | F26: 5 | G26: 5 | H26: 5 | I26: 5 | J26: 5 | K26: 5 | L26: 5 | M26: 5 | N26: 5 | O26: 5 | P26: 5 | Q26: 5 | R26: 5 | S26: 5.0 | T26: 5.0
A27: 20 | B27: ='Список группы'!C23 -> Тихонов Данил | C27: 3 | D27: 2 | E27: 4 | F27: 3 | G27: 5 | H27: 3 | I27: 4 | J27: 3 | K27: 4 | L27: 2 | M27: 3 | N27: 2 | O27: 3 | P27: 2 | Q27: 3 | R27: 3 | S27: 3.6 | T27: 2.5
A28: 21 | B28: ='Список группы'!C24 -> Федоров Данила | C28: 3 | D28: 4 | E28: 3 | F28: 4 | G28: 3 | H28: 4 | I28: 4 | J28: 5 | K28: 4 | L28: 5 | M28: 3 | N28: 4 | O28: 3 | P28: 4 | Q28: 3 | R28: 4 | S28: 3.3 | T28: 4.3
A29: 22 | B29: ='Список группы'!C25 -> Чалдина Дарья | C29: 2 | D29: 3 | E29: 2 | F29: 3 | G29: 2 | H29: 3 | I29: 3 | J29: 4 | K29: 3 | L29: 4 | M29: 3 | N29: 4 | O29: 4 | P29: 5 | Q29: 4 | R29: 5 | S29: 2.9 | T29: 3.9
A30: 23 | B30: ='Список группы'!C26 -> Черногоров Аркадий | C30: 5 | D30: 5 | E30: 5 | F30: 5 | G30: 5 | H30: 5 | I30: 5 | J30: 5 | K30: 5 | L30: 5 | M30: 5 | N30: 5 | O30: 5 | P30: 5 | Q30: 5 | R30: 5 | S30: 5.0 | T30: 5.0
A31: 24 | B31: ='Список группы'!C27 -> Шагабудинов Владислав | C31: 3 | D31: 2 | E31: 4 | F31: 3 | G31: 5 | H31: 3 | I31: 4 | J31: 3 | K31: 4 | L31: 2 | M31: 3 | N31: 2 | O31: 3 | P31: 2 | Q31: 3 | R31: 3 | S31: 3.6 | T31: 2.5
B32: среднее значение: | C32: =(C8+C9+C10+C11+C12+C13+C14+C15+C16+C17+C18+C19+C20+C21+C22+C23+C24+C25+C26+C27+C28+C29+C30+C31)/(COUNTA($B$8:$B$31)-COUNTIF($B$8:$B$31,"=0")) -> 3.3 | D32: =(D8+D9+D10+D11+D12+D13+D14+D15+D16+D17+D18+D19+D20+D21+D22+D23+D24+D25+D26+D27+D28+D29+D30+D31)/(COUNTA($B$8:$B$31)-COUNTIF($B$8:$B$31,"=0")) -> 3.5 | E32: 3.5 | F32: 3.8 | G32: 3.8 | H32: 3.8 | I32: 4.0 | J32: 4.3 | K32: 4.0 | L32: 4.0 | M32: 3.5 | N32: 3.8 | O32: 3.8 | P32: 4.0 | Q32: 3.8 | R32: 4.3 | S32: 3.7 | T32: 3.9
B36: начало года
C37: всего | D37: норма | E37: ниже нормы | F37: низкий
B38: количество детей | C38: =COUNTA($B$8:$B$31)-COUNTIF($B$8:$B$31,"=0") -> 24 | D38: =COUNTIF($S$8:$S$31,">=3,8") -> 6 | E38: =COUNTIFS($S$8:$S$31,"<3,7",$S$8:$S$31,">=2,3") -> 18 | F38: =COUNTIFS($S$8:$S$31,"<2,2",$S$8:$S$31,">0") -> 0
B39: % | C39: 100 | D39: =D38*C39/C38 -> 25.0 | E39: =E38*C39/C38 -> 75.0 | F39: =F38*C39/C38 -> 0.0
B42: конец года
C43: всего | D43: норма | E43: ниже нормы | F43: низкий
B44: количество детей | C44: =COUNTA($B$8:$B$31)-COUNTIF($B$8:$B$31,"=0") -> 24 | D44: =COUNTIF($T$8:$T$31,">=3,8") -> 18 | E44: =COUNTIFS($T$8:$T$31,"<3,7",$T$8:$T$31,">=2,3") -> 6 | F44: =COUNTIFS($T$8:$T$31,"<2,2",$T$8:$T$31,">0") -> 0
B45: % | C45: 100 | D45: =D44*C45/C44 -> 75.0 | E45: =E44*C45/C44 -> 25.0 | F45: =F44*C45/C44 -> 0.0

Sheet ФР-2
A1: НАПРАВЛЕНИЕ 2. ФОРМИРОВАНИЕ ОСНОВ ЗДОРОВОГО ОБРАЗА ЖИЗНИ. АКТИВНЫЙ ОТДЫХ | K1: ОГЛАВЛЕНИЕ
A3: №п/п | B3: ФИ ребенка | C3: Стремится самостоятельно ухаживать за собой, союлюдает порядок и чистоту, ухаживает за своими вещами и игрушками | E3: Соблюдает правила безопасности в двигательной деятельности | G3: Владеет простейшими навыками поведения во время еды, умывания | I3: Имеет представление о здоровом образе жизни (закаливание, питание, привычки, двигательный режим) | K3: среднее значение
C5: н.г. | D5: к.г. | E5: н.г. | F5: к.г. | G5: н.г. | H5: к.г. | I5: н.г. | J5: к.г. | K5: н.г. | L5: к.г.
A6: 1 | B6: ='Список группы'!C4 -> Бахтин Антон | C6: 4 | D6: 5 | E6: 3 | F6: 4 | G6: 3 | H6: 4 | I6: 3 | J6: 4 | K6: =(C6+E6+G6+I6)/4 -> 3.3 | L6: =(D6+F6+H6+J6)/4 -> 4.3
A7: 2 | B7: ='Список группы'!C5 -> Башилова Наталья | C7: 3 | D7: 4 | E7: 3 | F7: 4 | G7: 4 | H7: 5 | I7: 4 | J7: 5 | K7: =(C7+E7+G7+I7)/4 -> 3.5 | L7: =(D7+F7+H7+J7)/4 -> 4.5
A8: 3 | B8: ='Список группы'!C6 -> Бирюкова Екатерина | C8: 5 | D8: 5 | E8: 5 | F8: 5 | G8: 5 | H8: 5 | I8: 5 | J8: 5 | K8: 5.0 | L8: 5.0
A9: 4 | B9: ='Список группы'!C7 -> Власов Дмитрий | C9: 4 | D9: 2 | E9: 3 | F9: 2 | G9: 3 | H9: 2 | I9: 3 | J9: 3 | K9: 3.3 | L9: 2.3
A10: 5 | B10: ='Список группы'!C8 -> Гущина Софья | C10: 4 | D10: 5 | E10: 3 | F10: 4 | G10: 3 | H10: 4 | I10: 3 | J10: 4 | K10: 3.3 | L10: 4.3
A11: 6 | B11: ='Список группы'!C9 -> Десятниченко Кирилл | C11: 3 | D11: 4 | E11: 3 | F11: 4 | G11: 4 | H11: 5 | I11: 4 | J11: 5 | K11: 3.5 | L11: 4.5
A12: 7 | B12: ='Список группы'!C10 -> Йолсал Дениз | C12: 5 | D12: 5 | E12: 5 | F12: 5 | G12: 5 | H12: 5 | I12: 5 | J12: 5 | K12: 5.0 | L12: 5.0
A13: 8 | B13: ='Список группы'!C11 -> Кирилина Виктория | C13: 4 | D13: 2 | E13: 3 | F13: 2 | G13: 3 | H13: 2 | I13: 3 | J13: 3 | K13: 3.3 | L13: 2.3
A14: 9 | B14: ='Список группы'!C12 -> Князева Алиса | C14: 4 | D14: 5 | E14: 3 | F14: 4 | G14: 3 | H14: 4 | I14: 3 | J14: 4 | K14: 3.3 | L14: 4.3
A15: 10 | B15: ='Список группы'!C13 -> Максимова Анна | C15: 3 | D15: 4 | E15: 3 | F15: 4 | G15: 4 | H15: 5 | I15: 4 | J15: 5 | K15: 3.5 | L15: 4.5
A16: 11 | B16: ='Список группы'!C14 -> Меньшов Алексей | C16: 5 | D16: 5 | E16: 5 | F16: 5 | G16: 5 | H16: 5 | I16: 5 | J16: 5 | K16: 5.0 | L16: 5.0
A17: 12 | B17: ='Список группы'!C15 -> Муравлев Даниил | C17: 4 | D17: 2 | E17: 3 | F17: 2 | G17: 3 | H17: 2 | I17: 3 | J17: 3 | K17: 3.3 | L17: 2.3
A18: 13 | B18: ='Список группы'!C16 -> Панов Тимофей | C18: 4 | D18: 5 | E18: 3 | F18: 4 | G18: 3 | H18: 4 | I18: 3 | J18: 4 | K18: 3.3 | L18: 4.3
A19: 14 | B19: ='Список группы'!C17 -> Саркисов Илья | C19: 3 | D19: 4 | E19: 3 | F19: 4 | G19: 4 | H19: 5 | I19: 4 | J19: 5 | K19: 3.5 | L19: 4.5
A20: 15 | B20: ='Список группы'!C18 -> Свирская Анастасия | C20: 5 | D20: 5 | E20: 5 | F20: 5 | G20: 5 | H20: 5 | I20: 5 | J20: 5 | K20: 5.0 | L20: 5.0
A21: 16 | B21: ='Список группы'!C19 -> Семенина Елизавета | C21: 4 | D21: 2 | E21: 3 | F21: 2 | G21: 3 | H21: 2 | I21: 3 | J21: 3 | K21: 3.3 | L21: 2.3
A22: 17 | B22: ='Список группы'!C20 -> Сергеев Алексей | C22: 4 | D22: 5 | E22: 3 | F22: 4 | G22: 3 | H22: 4 | I22: 3 | J22: 4 | K22: 3.3 | L22: 4.3
A23: 18 | B23: ='Список группы'!C21 -> Солопов Максим | C23: 3 | D23: 4 | E23: 3 | F23: 4 | G23: 4 | H23: 5 | I23: 4 | J23: 5 | K23: 3.5 | L23: 4.5
A24: 19 | B24: ='Список группы'!C22 -> Стригунов Александр | C24: 5 | D24: 5 | E24: 5 | F24: 5 | G24: 5 | H24: 5 | I24: 5 | J24: 5 | K24: 5.0 | L24: 5.0
A25: 20 | B25: ='Список группы'!C23 -> Тихонов Данил | C25: 4 | D25: 2 | E25: 3 | F25: 2 | G25: 3 | H25: 2 | I25: 3 | J25: 3 | K25: 3.3 | L25: 2.3
A26: 21 | B26: ='Список группы'!C24 -> Федоров Данила | C26: 4 | D26: 5 | E26: 3 | F26: 4 | G26: 3 | H26: 4 | I26: 3 | J26: 4 | K26: 3.3 | L26: 4.3
A27: 22 | B27: ='Список группы'!C25 -> Чалдина Дарья | C27: 3 | D27: 4 | E27: 3 | F27: 4 | G27: 4 | H27: 5 | I27: 4 | J27: 5 | K27: 3.5 | L27: 4.5
A28: 23 | B28: ='Список группы'!C26 -> Черногоров Аркадий | C28: 5 | D28: 5 | E28: 5 | F28: 5 | G28: 5 | H28: 5 | I28: 5 | J28: 5 | K28: 5.0 | L28: 5.0
A29: 24 | B29: ='Список группы'!C27 -> Шагабудинов Владислав | C29: 4 | D29: 2 | E29: 3 | F29: 2 | G29: 3 | H29: 2 | I29: 3 | J29: 3 | K29: 3.3 | L29: 2.3
B30: среднее значение: | C30: =(C6+C7+C8+C9+C10+C11+C12+C13+C14+C15+C16+C17+C18+C19+C20+C21+C22+C23+C24+C25+C26+C27+C28+C29)/(COUNTA($B$6:$B$29)-COUNTIF($B$6:$B$29,"=0")) -> 4.0 | D30: =(D6+D7+D8+D9+D10+D11+D12+D13+D14+D15+D16+D17+D18+D19+D20+D21+D22+D23+D24+D25+D26+D27+D28+D29)/(COUNTA($B$6:$B$29)-COUNTIF($B$6:$B$29,"=0")) -> 4.0 | E30: 3.5 | F30: 3.8 | G30: 3.8 | H30: 4.0 | I30: 3.8 | J30: 4.3 | K30: 3.8 | L30: 4.0
B32: начало года
C33: всего | D33: норма | E33: ниже нормы | F33: низкий
B34: количество детей | C34: =COUNTA($B$6:$B$29)-COUNTIF($B$6:$B$29,"=0") -> 24 | D34: =COUNTIF($K$6:$K$29,">=3,8") -> 6 | E34: =COUNTIFS($K$6:$K$29,"<3,7",$K$6:$K$29,">=2,3") -> 18 | F34: =COUNTIFS($K$6:$K$29,"<2,2",$K$6:$K$29,">0") -> 0
B35: % | C35: 100 | D35: =D34*C35/C34 -> 25.0 | E35: =E34*C35/C34 -> 75.0 | F35: =F34*C35/C34 -> 0.0
B37: конец года
C38: всего | D38: норма | E38: ниже нормы | F38: низкий
B39: количество детей | C39: =COUNTA($B$6:$B$29)-COUNTIF($B$6:$B$29,"=0") -> 24 | D39: =COUNTIF($L$6:$L$29,">=3,8") -> 18 | E39: =COUNTIFS($L$6:$L$29,"<3,7",$L$6:$L$29,">=2,3") -> 0 | F39: =COUNTIFS($L$6:$L$29,"<2,2",$L$6:$L$29,">0") -> 0
B40: % | C40: 100 | D40: =D39*C40/C39 -> 75.0 | E40: =E39*C40/C39 -> 0.0 | F40: =F39*C40/C39 -> 0.0

Sheet ИТОГ ФР
A1: Обобщение результатов педагогической диагностики по направлениям
A2: ОО «Физическое развитие»
E3: ОГЛАВЛЕНИЕ
C5: Основная гимнастика. Подвижные и спортивные игры. Спортивные упражнения. | D5: Формирование основ здорового образа жизни. Активный отдых. | E5: Средний балл/уровень
C6: 1 | D6: 2 | E6: ср.ур.
B7: начало | C7: ='ФР-1'!$S$32 -> 3.69 | D7: ='ФР-2'!K30 -> 3.75 | E7: =(C7+D7)/2 -> 3.72
B8: конец | C8: ='ФР-1'!$T$32 -> 3.91 | D8: ='ФР-2'!L30 -> 4.00 | E8: =(C8+D8)/2 -> 3.95
A29: ВЫВОДЫ:
A30: Начало учебного года:
A38: Конец учебного года:

Sheet ОБЩИЙ ИТОГ
B1: Обобщение результатов педагогической диагностики по всем образовательным областям
B2: на 202__/2____ учебный год
H3: ОГЛАВЛЕНИЕ
C5: Речевое развитие | D5: Познавательное развитие | E5: Социально­коммуникативное развитие | F5: Художественно­эстетическое развитие | G5: Физическое развитие | H5: Средний балл/уровень
C6: РР | D6: ПР | E6: СК | F6: ХЭ | G6: ФР | H6: ср.ур.
B7: начало | C7: ='ИТОГ РР'!F7 -> 3.69 | D7: ='ИТОГ ПР'!E6 -> 3.70 | E7: ='ИТОГ СК'!F6 -> 3.70 | F7: ='ИТОГ ХЭ'!H6 -> 3.70 | G7: ='ИТОГ ФР'!E7 -> 3.72 | H7: =(C7+D7+E7+F7+G7)/5 -> 3.70
B8: конец | C8: ='ИТОГ РР'!F8 -> 3.90 | D8: ='ИТОГ ПР'!E7 -> 3.89 | E8: ='ИТОГ СК'!F7 -> 3.88 | F8: ='ИТОГ ХЭ'!H7 -> 3.89 | G8: ='ИТОГ ФР'!E8 -> 3.95 | H8: =(C8+D8+E8+F8+G8)/5 -> 3.90
B29: Основные выводы по результатам педагогической диагностики
B31: Педагогический процесс организован на _________ уровне.
B32: Следует обратить внимание на трудности реализации образовательной(-ых) области(-ей) «_________ развитие» в следующих аспектах:
B33: 1.
B34: 2.
B35: 3.
B38: В индивидуальной помощи нуждаются следующие дети:
B39: 1. «Речевое развитие»:
B45: 2. «Познавательное развитие»:
B51: 3. «Социально-коммуникативное развитие»:
B57: 4. «Художественно-эстетическое развитие»:
B63: 5. «Физическое развитие»:

Sheet Инд.показатели
A1: О | B1: ФИ ребенка: | D1: ='Список группы'!C4 -> Бахтин Антон
B3: Сводна таблица | D3: Речевое развитие | E3: Познавательное развитие | F3: Социально-коммуникативное развитие | G3: Художественно-эстетическое развитие | H3: Физическое развитие
D4: РР | E4: ПР | F4: СК | G4: ХЭ | H4: ФР
B5: Н.Г. | D5: =('РР-1'!$U$7+'РР-2'!$Q$6+'РР-3'!$Y$6+'РР-4'!$R$6)/4 -> 3.2 | E5: =('ПР-1'!$Y$8+'ПР-2'!$M$6)/2 -> 3.3 | F5: =('СК-1'!$V$8+'СК-2'!$N$8+'СК-3'!$O$6)/3 -> 3.3 | G5: =('ХЭ-1'!$K$8+'ХЭ-2'!$M$5+'ХЭ-3'!$S$6+'ХЭ-4'!$X$6+'ХЭ-5'!$G$6+'ХЭ-5'!$M$6)/6 -> 3.3 | H5: =('ФР-1'!$S$8+'ФР-2'!$K$6)/2 -> 3.3
B6: К.Г. | D6: =('РР-1'!$V$7+'РР-2'!$R$6+'РР-3'!$Z$6+'РР-4'!$S$6)/4 -> 4.2 | E6: =('ПР-1'!$Z$8+'ПР-2'!$N$6)/2 -> 4.3 | F6: =('СК-1'!$W$8+'СК-2'!$O$8+'СК-3'!$P$6)/3 -> 4.3 | G6: =('ХЭ-1'!$L$8+'ХЭ-2'!$N$5+'ХЭ-3'!$T$6+'ХЭ-4'!$Y$6+'ХЭ-5'!$H$6+'ХЭ-5'!$N$6)/6 -> 4.3 | H6: =('ФР-1'!$T$8+'ФР-2'!$L$6)/2 -> 4.3
G8: Сентябрь | H8: Май
B9: Итоговое количество баллов по блоку (макс.25) | G9: =SUM(D5:H5) -> 16 | H9: =SUM(D6:H6) -> 21
B10: Уровень успешности образовательной деятельности | G10: =$G$9/25 -> 65% | H10: =$H$9/25 -> 85%
B26: Уровень успешности образовательной деятельности по отношению к обучающемуся
B27: н.г. | C27: =G10 -> 65% | E27: =IF(C27>=80%,"Высокий уровень",IF(C27>=50%,"Средний уровень",IF(C27<49%,"Низкий уровень"))) -> Средний уровень
B28: к.г. | C28: =H10 -> 85% | E28: =IF(C28>=80%,"Высокий уровень",IF(C28>=50%,"Средний уровень",IF(C28<49%,"Низкий уровень"))) -> Высокий уровень
A42: О | B42: ФИ ребенка: | D42: ='Список группы'!C5 -> Башилова Наталья
B44: Сводна таблица | D44: Речевое развитие | E44: Познавательное развитие | F44: Социально-коммуникативное развитие | G44: Художественно-эстетическое развитие | H44: Физическое развитие
D45: РР | E45: ПР | F45: СК | G45: ХЭ | H45: ФР
B46: Н.Г. | D46: =('РР-1'!$U$8+'РР-2'!$Q$7+'РР-3'!$Y$7+'РР-4'!$R$7)/4 -> 2.8 | E46: =('ПР-1'!$Y$9+'ПР-2'!$M$7)/2 -> 2.7 | F46: =('СК-1'!$V$9+'СК-2'!$N$9+'СК-3'!$O$7)/3 -> 2.6 | G46: =('ХЭ-1'!$K$9+'ХЭ-2'!$M$6+'ХЭ-3'!$S$7+'ХЭ-4'!$X$7+'ХЭ-5'!$G$7+'ХЭ-5'!$M$7)/6 -> 2.7 | H46: =('ФР-1'!$S$9+'ФР-2'!$K$7)/2 -> 3.2
B47: К.Г. | D47: =('РР-1'!$V$8+'РР-2'!$R$7+'РР-3'!$Z$7+'РР-4'!$S$7)/4 -> 3.8 | E47: =('ПР-1'!$Z$9+'ПР-2'!$N$7)/2 -> 3.7 | F47: =('СК-1'!$W$9+'СК-2'!$O$9+'СК-3'!$P$7)/3 -> 3.6 | G47: =('ХЭ-1'!$L$9+'ХЭ-2'!$N$6+'ХЭ-3'!$T$7+'ХЭ-4'!$Y$7+'ХЭ-5'!$H$7+'ХЭ-5'!$N$7)/6 -> 3.7 | H47: =('ФР-1'!$T$9+'ФР-2'!$L$7)/2 -> 4.2
G49: Сентябрь | H49: Май
B50: Итоговое количество баллов по блоку (макс.25) | G50: =SUM(D46:H46) -> 14 | H50: =SUM(D47:H47) -> 19
B51: Уровень успешности образовательной деятельности | G51: =G50/25 -> 56% | H51: =H50/25 -> 76%
B67: Уровень успешности образовательной деятельности по отношению к обучающемуся
B68: н.г. | C68: =G51 -> 56% | E68: =IF(C68>=80%,"Высокий уровень",IF(C68>=50%,"Средний уровень",IF(C68<49%,"Низкий уровень"))) -> Средний уровень
B69: к.г. | C69: =H51 -> 76% | E69: =IF(C69>=80%,"Высокий уровень",IF(C69>=50%,"Средний уровень",IF(C69<49%,"Низкий уровень"))) -> Средний уровень
A87: О | B87: ФИ ребенка: | D87: ='Список группы'!C6 -> Бирюкова Екатерина
B89: Сводна таблица | D89: Речевое развитие | E89: Познавательное развитие | F89: Социально-коммуникативное развитие | G89: Художественно-эстетическое развитие | H89: Физическое развитие
D90: РР | E90: ПР | F90: СК | G90: ХЭ | H90: ФР
B91: Н.Г. | D91: =('РР-1'!$U$9+'РР-2'!$Q$8+'РР-3'!$Y$8+'РР-4'!$R$8)/4 -> 5.0 | E91: =('ПР-1'!$Y$10+'ПР-2'!$M$8)/2 -> 5.0 | F91: =('СК-1'!$V$10+'СК-2'!$N$10+'СК-3'!$O$8)/3 -> 5.0 | G91: =('ХЭ-1'!$K$10+'ХЭ-2'!$M$7+'ХЭ-3'!$S$8+'ХЭ-4'!$X$8+'ХЭ-5'!$G$8+'ХЭ-5'!$M$8)/6 -> 5.0 | H91: =('ФР-1'!$S$10+'ФР-2'!$K$8)/2 -> 5.0
B92: К.Г. | D92: =('РР-1'!$V$9+'РР-2'!$R$8+'РР-3'!$Z$8+'РР-4'!$S$8)/4 -> 5.0 | E92: =('ПР-1'!$Z$10+'ПР-2'!$N$8)/2 -> 5.0 | F92: =('СК-1'!$W$10+'СК-2'!$O$10+'СК-3'!$P$8)/3 -> 5.0 | G92: =('ХЭ-1'!$L$10+'ХЭ-2'!$N$7+'ХЭ-3'!$T$8+'ХЭ-4'!$Y$8+'ХЭ-5'!$H$8+'ХЭ-5'!$N$8)/6 -> 5.0 | H92: =('ФР-1'!$T$10+'ФР-2'!$L$8)/2 -> 5.0
G94: Сентябрь | H94: Май
B95: Итоговое количество баллов по блоку (макс.25) | G95: =SUM(D91:H91) -> 25 | H95: =SUM(D92:H92) -> 25
B96: Уровень успешности образовательной деятельности | G96: =G95/25 -> 100% | H96: =H95/25 -> 100%
B112: Уровень успешности образовательной деятельности по отношению к обучающемуся
B113: н.г. | C113: =G96 -> 100% | E113: =IF(C113>=80%,"Высокий уровень",IF(C113>=50%,"Средний уровень",IF(C113<49%,"Низкий уровень"))) -> Высокий уровень
B114: к.г. | C114: =H96 -> 100% | E114: =IF(C114>=80%,"Высокий уровень",IF(C114>=50%,"Средний уровень",IF(C114<49%,"Низкий уровень"))) -> Высокий уровень
A132: О | B132: ФИ ребенка: | D132: ='Список группы'!C7 -> Власов Дмитрий
B134: Сводна таблица | D134: Речевое развитие | E134: Познавательное развитие | F134: Социально-коммуникативное развитие | G134: Художественно-эстетическое развитие | H134: Физическое развитие
D135: РР | E135: ПР | F135: СК | G135: ХЭ | H135: ФР
B136: Н.Г. | D136: =('РР-1'!$U$10+'РР-2'!$Q$9+'РР-3'!$Y$9+'РР-4'!$R$9)/4 -> 3.7 | E136: =('ПР-1'!$Y$11+'ПР-2'!$M$9)/2 -> 3.9 | F136: =('СК-1'!$V$11+'СК-2'!$N$11+'СК-3'!$O$9)/3 -> 3.9 | G136: =('ХЭ-1'!$K$11+'ХЭ-2'!$M$8+'ХЭ-3'!$S$9+'ХЭ-4'!$X$9+'ХЭ-5'!$G$9+'ХЭ-5'!$M$9)/6 -> 3.8 | H136: =('ФР-1'!$S$11+'ФР-2'!$K$9)/2 -> 3.4
B137: К.Г. | D137: =('РР-1'!$V$10+'РР-2'!$R$9+'РР-3'!$Z$9+'РР-4'!$S$9)/4 -> 2.5 | E137: =('ПР-1'!$Z$11+'ПР-2'!$N$9)/2 -> 2.6 | F137: =('СК-1'!$W$11+'СК-2'!$O$11+'СК-3'!$P$9)/3 -> 2.6 | G137: =('ХЭ-1'!$L$11+'ХЭ-2'!$N$8+'ХЭ-3'!$T$9+'ХЭ-4'!$Y$9+'ХЭ-5'!$H$9+'ХЭ-5'!$N$8)/6 -> 2.9 | H137: =('ФР-1'!$T$11+'ФР-2'!$L$9)/2 -> 2.4
G139: Сентябрь | H139: Май
B140: Итоговое количество баллов по блоку (макс.25) | G140: =SUM(D136:H136) -> 19 | H140: =SUM(D137:H137) -> 13
B141: Уровень успешности образовательной деятельности | G141: =G140/25 -> 75% | H141: =H140/25 -> 52%
B157: Уровень успешности образовательной деятельности по отношению к обучающемуся
B158: н.г. | C158: =G141 -> 75% | E158: =IF(C158>=80%,"Высокий уровень",IF(C158>=50%,"Средний уровень",IF(C158<49%,"Низкий уровень"))) -> Средний уровень
B159: к.г. | C159: =H141 -> 52% | E159: =IF(C159>=80%,"Высокий уровень",IF(C159>=50%,"Средний уровень",IF(C159<49%,"Низкий уровень"))) -> Средний уровень
A175: О | B175: ФИ ребенка: | D175: ='Список группы'!C8 -> Гущина Софья
B177: Сводна таблица | D177: Речевое развитие | E177: Познавательное развитие | F177: Социально-коммуникативное развитие | G177: Художественно-эстетическое развитие | H177: Физическое развитие
D178: РР | E178: ПР | F178: СК | G178: ХЭ | H178: ФР
B179: Н.Г. | D179: =('РР-1'!$U$11+'РР-2'!$Q$10+'РР-3'!$Y$10+'РР-4'!$R$10)/4 -> 3.2 | E179: =('ПР-1'!$Y$12+'ПР-2'!$M$10)/2 -> 3.3 | F179: =('СК-1'!$V$12+'СК-2'!$N$12+'СК-3'!$O$10)/3 -> 3.3 | G179: =('ХЭ-1'!$K$12+'ХЭ-2'!$M$9+'ХЭ-3'!$S$10+'ХЭ-4'!$X$10+'ХЭ-5'!$G$10+'ХЭ-5'!$M$10)/6 -> 3.3 | H179: =('ФР-1'!$S$12+'ФР-2'!$K$10)/2 -> 3.3
B180: К.Г. | D180: =('РР-1'!$V$11+'РР-2'!$R$10+'РР-3'!$Z$10+'РР-4'!$S$10)/4 -> 4.2 | E180: =('ПР-1'!$Z$12+'ПР-2'!$N$10)/2 -> 4.3 | F180: =('СК-1'!$W$12+'СК-2'!$O$12+'СК-3'!$P$10)/3 -> 4.3 | G180: =('ХЭ-1'!$L$12+'ХЭ-2'!$N$9+'ХЭ-3'!$T$10+'ХЭ-4'!$Y$10+'ХЭ-5'!$H$10+'ХЭ-5'!$N$10)/6 -> 4.3 | H180: =('ФР-1'!$T$12+'ФР-2'!$L$10)/2 -> 4.3
G182: Сентябрь | H182: Май
B183: Итоговое количество баллов по блоку (макс.25) | G183: =SUM(D179:H179) -> 16 | H183: =SUM(D180:H180) -> 21
B184: Уровень успешности образовательной деятельности | G184: =G183/25 -> 65% | H184: =H183/25 -> 85%
B200: Уровень успешности образовательной деятельности по отношению к обучающемуся
B201: н.г. | C201: =G184 -> 65% | E201: =IF(C201>=80%,"Высокий уровень",IF(C201>=50%,"Средний уровень",IF(C201<49%,"Низкий уровень"))) -> Средний уровень
B202: к.г. | C202: =H184 -> 85% | E202: =IF(C202>=80%,"Высокий уровень",IF(C202>=50%,"Средний уровень",IF(C202<49%,"Низкий уровень"))) -> Высокий уровень
A221: О | B221: ФИ ребенка: | D221: ='Список группы'!C9 -> Десятниченко Кирилл
B223: Сводна таблица | D223: Речевое развитие | E223: Познавательное развитие | F223: Социально-коммуникативное развитие | G223: Художественно-эстетическое развитие | H223: Физическое развитие
D224: РР | E224: ПР | F224: СК | G224: ХЭ | H224: ФР
B225: Н.Г. | D225: =('РР-1'!$U$12+'РР-2'!$Q$11+'РР-3'!$Y$11+'РР-4'!$R$11)/4 -> 2.8 | E225: =('ПР-1'!$Y$13+'ПР-2'!$M$11)/2 -> 2.7 | F225: =('СК-1'!$V$13+'СК-2'!$N$13+'СК-3'!$O$11)/3 -> 2.6 | G225: =('ХЭ-1'!$K$13+'ХЭ-2'!$M$10+'ХЭ-3'!$S$11+'ХЭ-4'!$X$11+'ХЭ-5'!$G$11+'ХЭ-5'!$M$11)/6 -> 2.7 | H225: =('ФР-1'!$S$13+'ФР-2'!$K$11)/2 -> 3.2
B226: К.Г. | D226: =('РР-1'!$V$12+'РР-2'!$R$11+'РР-3'!$Z$11+'РР-4'!$S$11)/4 -> 3.8 | E226: =('ПР-1'!$Z$13+'ПР-2'!$N$11)/2 -> 3.7 | F226: =('СК-1'!$W$13+'СК-2'!$O$13+'СК-3'!$P$11)/3 -> 3.6 | G226: =('ХЭ-1'!$L$13+'ХЭ-2'!$N$10+'ХЭ-3'!$T$11+'ХЭ-4'!$Y$11+'ХЭ-5'!$H$11+'ХЭ-5'!$N$11)/6 -> 3.7 | H226: =('ФР-1'!$T$13+'ФР-2'!$L$11)/2 -> 4.2
G228: Сентябрь | H228: Май
B229: Итоговое количество баллов по блоку (макс.25) | G229: =SUM(D225:H225) -> 14 | H229: =SUM(D226:H226) -> 19
B230: Уровень успешности образовательной деятельности | G230: =G229/25 -> 56% | H230: =H229/25 -> 76%
B246: Уровень успешности образовательной деятельности по отношению к обучающемуся
B247: н.г. | C247: =G230 -> 56% | E247: =IF(C247>=80%,"Высокий уровень",IF(C247>=50%,"Средний уровень",IF(C247<49%,"Низкий уровень"))) -> Средний уровень
B248: к.г. | C248: =H230 -> 76% | E248: =IF(C248>=80%,"Высокий уровень",IF(C248>=50%,"Средний уровень",IF(C248<49%,"Низкий уровень"))) -> Средний уровень
A268: О | B268: ФИ ребенка: | D268: ='Список группы'!C10 -> Йолсал Дениз
B270: Сводна таблица | D270: Речевое развитие | E270: Познавательное развитие | F270: Социально-коммуникативное развитие | G270: Художественно-эстетическое развитие | H270: Физическое развитие
D271: РР | E271: ПР | F271: СК | G271: ХЭ | H271: ФР
B272: Н.Г. | D272: =('РР-1'!$U$13+'РР-2'!$Q$12+'РР-3'!$Y$12+'РР-4'!$R$12)/4 -> 5.0 | E272: =('ПР-1'!$Y$14+'ПР-2'!$M$12)/2 -> 5.0 | F272: =('СК-1'!$V$14+'СК-2'!$N$14+'СК-3'!$O$12)/3 -> 5.0 | G272: =('ХЭ-1'!$K$14+'ХЭ-2'!$M$11+'ХЭ-3'!$S$12+'ХЭ-4'!$X$12+'ХЭ-5'!$G$12+'ХЭ-5'!$M$12)/6 -> 5.0 | H272: =('ФР-1'!$S$14+'ФР-2'!$K$12)/2 -> 5.0
B273: К.Г. | D273: =('РР-1'!$V$13+'РР-2'!$R$12+'РР-3'!$Z$12+'РР-4'!$S$12)/4 -> 5.0 | E273: =('ПР-1'!$Z$14+'ПР-2'!$N$12)/2 -> 5.0 | F273: =('СК-1'!$W$14+'СК-2'!$O$14+'СК-3'!$P$12)/3 -> 5.0 | G273: =('ХЭ-1'!$L$14+'ХЭ-2'!$N$11+'ХЭ-3'!$T$12+'ХЭ-4'!$Y$12+'ХЭ-5'!$H$12+'ХЭ-5'!$N$12)/6 -> 5.0 | H273: =('ФР-1'!$T$14+'ФР-2'!$L$12)/2 -> 5.0
G275: Сентябрь | H275: Май
B276: Итоговое количество баллов по блоку (макс.25) | G276: =SUM(D272:H272) -> 25 | H276: =SUM(D273:H273) -> 25
B277: Уровень успешности образовательной деятельности | G277: =G276/25 -> 100% | H277: =H276/25 -> 100%
B293: Уровень успешности образовательной деятельности по отношению к обучающемуся
B294: н.г. | C294: =G277 -> 100% | E294: =IF(C294>=80%,"Высокий уровень",IF(C294>=50%,"Средний уровень",IF(C294<49%,"Низкий уровень"))) -> Высокий уровень
B295: к.г. | C295: =H277 -> 100% | E295: =IF(C295>=80%,"Высокий уровень",IF(C295>=50%,"Средний уровень",IF(C295<49%,"Низкий уровень"))) -> Высокий уровень
A316: О | B316: ФИ ребенка: | D316: ='Список группы'!C11 -> Кирилина Виктория
B318: Сводна таблица | D318: Речевое развитие | E318: Познавательное развитие | F318: Социально-коммуникативное развитие | G318: Художественно-эстетическое развитие | H318: Физическое развитие
D319: РР | E319: ПР | F319: СК | G319: ХЭ | H319: ФР
B320: Н.Г. | D320: =('РР-1'!$U$14+'РР-2'!$Q$13+'РР-3'!$Y$13+'РР-4'!$R$13)/4 -> 3.7 | E320: =('ПР-1'!$Y$15+'ПР-2'!$M$13)/2 -> 3.9 | F320: =('СК-1'!$V$15+'СК-2'!$N$15+'СК-3'!$O$13)/3 -> 3.9 | G320: =('ХЭ-1'!$K$15+'ХЭ-2'!$M$12+'ХЭ-3'!$S$13+'ХЭ-4'!$X$13+'ХЭ-5'!$G$13+'ХЭ-5'!$M$13)/6 -> 3.8 | H320: =('ФР-1'!$S$15+'ФР-2'!$K$13)/2 -> 3.4
B321: К.Г. | D321: =('РР-1'!$V$14+'РР-2'!$R$13+'РР-3'!$Z$13+'РР-4'!$S$13)/4 -> 2.5 | E321: =('ПР-1'!$Z$15+'ПР-2'!$N$13)/2 -> 2.6 | F321: =('СК-1'!$W$15+'СК-2'!$O$15+'СК-3'!$P$13)/3 -> 2.6 | G321: =('ХЭ-1'!$L$15+'ХЭ-2'!$N$12+'ХЭ-3'!$T$13+'ХЭ-4'!$Y$13+'ХЭ-5'!$H$13+'ХЭ-5'!$N$13)/6 -> 2.6 | H321: =('ФР-1'!$T$15+'ФР-2'!$L$13)/2 -> 2.4
G323: Сентябрь | H323: Май
B324: Итоговое количество баллов по блоку (макс.25) | G324: =SUM(D320:H320) -> 19 | H324: =SUM(D321:H321) -> 13
B325: Уровень успешности образовательной деятельности | G325: =G324/25 -> 75% | H325: =H324/25 -> 51%
B341: Уровень успешности образовательной деятельности по отношению к обучающемуся
B342: н.г. | C342: =G325 -> 75% | E342: =IF(C342>=80%,"Высокий уровень",IF(C342>=50%,"Средний уровень",IF(C342<49%,"Низкий уровень"))) -> Средний уровень
B343: к.г. | C343: =H325 -> 51% | E343: =IF(C343>=80%,"Высокий уровень",IF(C343>=50%,"Средний уровень",IF(C343<49%,"Низкий уровень"))) -> Средний уровень
A364: О | B364: ФИ ребенка: | D364: ='Список группы'!C12 -> Князева Алиса
B366: Сводна таблица | D366: Речевое развитие | E366: Познавательное развитие | F366: Социально-коммуникативное развитие | G366: Художественно-эстетическое развитие | H366: Физическое развитие
D367: РР | E367: ПР | F367: СК | G367: ХЭ | H367: ФР
B368: Н.Г. | D368: =('РР-1'!$U$15+'РР-2'!$Q$14+'РР-3'!$Y$14+'РР-4'!$R$14)/4 -> 3.2 | E368: =('ПР-1'!$Y$16+'ПР-2'!$M$14)/2 -> 3.3 | F368: =('СК-1'!$V$16+'СК-2'!$N$16+'СК-3'!$O$14)/3 -> 3.3 | G368: =('ХЭ-1'!$K$16+'ХЭ-2'!$M$13+'ХЭ-3'!$S$14+'ХЭ-4'!$X$14+'ХЭ-5'!$G$14+'ХЭ-5'!$M$14)/6 -> 3.3 | H368: =('ФР-1'!$S$16+'ФР-2'!$K$14)/2 -> 3.3
B369: К.Г. | D369: =('РР-1'!$V$15+'РР-2'!$R$14+'РР-3'!$Z$14+'РР-4'!$S$14)/4 -> 4.2 | E369: =('ПР-1'!$Z$16+'ПР-2'!$N$14)/2 -> 4.3 | F369: =('СК-1'!$W$16+'СК-2'!$O$16+'СК-3'!$P$14)/3 -> 4.3 | G369: =('ХЭ-1'!$L$16+'ХЭ-2'!$N$13+'ХЭ-3'!$T$14+'ХЭ-4'!$Y$14+'ХЭ-5'!$H$14+'ХЭ-5'!$N$14)/6 -> 4.3 | H369: =('ФР-1'!$T$16+'ФР-2'!$L$14)/2 -> 4.3
G371: Сентябрь | H371: Май
B372: Итоговое количество баллов по блоку (макс.25) | G372: =SUM(D368:H368) -> 16 | H372: =SUM(D369:H369) -> 21
B373: Уровень успешности образовательной деятельности | G373: =G372/25 -> 65% | H373: =H372/25 -> 85%
B389: Уровень успешности образовательной деятельности по отношению к обучающемуся
B390: н.г. | C390: =G373 -> 65% | E390: =IF(C390>=80%,"Высокий уровень",IF(C390>=50%,"Средний уровень",IF(C390<49%,"Низкий уровень"))) -> Средний уровень
B391: к.г. | C391: =H373 -> 85% | E391: =IF(C391>=80%,"Высокий уровень",IF(C391>=50%,"Средний уровень",IF(C391<49%,"Низкий уровень"))) -> Высокий уровень
A412: О | B412: ФИ ребенка: | D412: ='Список группы'!C13 -> Максимова Анна
B414: Сводна таблица | D414: Речевое развитие | E414: Познавательное развитие | F414: Социально-коммуникативное развитие | G414: Художественно-эстетическое развитие | H414: Физическое развитие
D415: РР | E415: ПР | F415: СК | G415: ХЭ | H415: ФР
B416: Н.Г. | D416: =('РР-1'!$U$16+'РР-2'!$Q$15+'РР-3'!$Y$15+'РР-4'!$R$15)/4 -> 2.8 | E416: =('ПР-1'!$Y$17+'ПР-2'!$M$15)/2 -> 2.7 | F416: =('СК-1'!$V$17+'СК-2'!$N$17+'СК-3'!$O$15)/3 -> 2.6 | G416: =('ХЭ-1'!$K$17+'ХЭ-2'!$M$14+'ХЭ-3'!$S$15+'ХЭ-4'!$X$15+'ХЭ-5'!$G$15+'ХЭ-5'!$M$15)/6 -> 2.7 | H416: =('ФР-1'!$S$17+'ФР-2'!$K$15)/2 -> 3.2
B417: К.Г. | D417: =('РР-1'!$V$16+'РР-2'!$R$15+'РР-3'!$Z$15+'РР-4'!$S$15)/4 -> 3.8 | E417: =('ПР-1'!$Z$17+'ПР-2'!$N$15)/2 -> 3.7 | F417: =('СК-1'!$W$17+'СК-2'!$O$17+'СК-3'!$P$15)/3 -> 3.6 | G417: =('ХЭ-1'!$L$17+'ХЭ-2'!$N$14+'ХЭ-3'!$T$15+'ХЭ-4'!$Y$15+'ХЭ-5'!$H$15+'ХЭ-5'!$N$15)/6 -> 3.7 | H417: =('ФР-1'!$T$17+'ФР-2'!$L$15)/2 -> 4.2
G419: Сентябрь | H419: Май
B420: Итоговое количество баллов по блоку (макс.25) | G420: =SUM(D416:H416) -> 14 | H420: =SUM(D417:H417) -> 19
B421: Уровень успешности образовательной деятельности | G421: =G420/25 -> 56% | H421: =H420/25 -> 76%
B437: Уровень успешности образовательной деятельности по отношению к обучающемуся
B438: н.г. | C438: =G421 -> 56% | E438: =IF(C438>=80%,"Высокий уровень",IF(C438>=50%,"Средний уровень",IF(C438<49%,"Низкий уровень"))) -> Средний уровень
B439: к.г. | C439: =H421 -> 76% | E439: =IF(C439>=80%,"Высокий уровень",IF(C439>=50%,"Средний уровень",IF(C439<49%,"Низкий уровень"))) -> Средний уровень
A460: О | B460: ФИ ребенка: | D460: ='Список группы'!C14 -> Меньшов Алексей
B462: Сводна таблица | D462: Речевое развитие | E462: Познавательное развитие | F462: Социально-коммуникативное развитие | G462: Художественно-эстетическое развитие | H462: Физическое развитие
D463: РР | E463: ПР | F463: СК | G463: ХЭ | H463: ФР
B464: Н.Г. | D464: =('РР-1'!$U$17+'РР-2'!$Q$16+'РР-3'!$Y$16+'РР-4'!$R$16)/4 -> 5.0 | E464: =('ПР-1'!$Y$18+'ПР-2'!$M$16)/2 -> 5.0 | F464: =('СК-1'!$V$18+'СК-2'!$N$18+'СК-3'!$O$16)/3 -> 5.0 | G464: =('ХЭ-1'!$K$18+'ХЭ-2'!$M$15+'ХЭ-3'!$S$16+'ХЭ-4'!$X$16+'ХЭ-5'!$G$16+'ХЭ-5'!$M$16)/6 -> 5.0 | H464: =('ФР-1'!$S$18+'ФР-2'!$K$16)/2 -> 5.0
B465: К.Г. | D465: =('РР-1'!$V$17+'РР-2'!$R$16+'РР-3'!$Z$16+'РР-4'!$S$16)/4 -> 5.0 | E465: =('ПР-1'!$Z$18+'ПР-2'!$N$16)/2 -> 5.0 | F465: =('СК-1'!$W$18+'СК-2'!$O$18+'СК-3'!$P$16)/3 -> 5.0 | G465: =('ХЭ-1'!$L$18+'ХЭ-2'!$N$15+'ХЭ-3'!$T$16+'ХЭ-4'!$Y$16+'ХЭ-5'!$H$16+'ХЭ-5'!$N$16)/6 -> 5.0 | H465: =('ФР-1'!$T$18+'ФР-2'!$L$16)/2 -> 5.0
G467: Сентябрь | H467: Май
B468: Итоговое количество баллов по блоку (макс.25) | G468: =SUM(D464:H464) -> 25 | H468: =SUM(D465:H465) -> 25
B469: Уровень успешности образовательной деятельности | G469: =G468/25 -> 100% | H469: =H468/25 -> 100%
B485: Уровень успешности образовательной деятельности по отношению к обучающемуся
B486: н.г. | C486: =G469 -> 100% | E486: =IF(C486>=80%,"Высокий уровень",IF(C486>=50%,"Средний уровень",IF(C486<49%,"Низкий уровень"))) -> Высокий уровень
B487: к.г. | C487: =H469 -> 100% | E487: =IF(C487>=80%,"Высокий уровень",IF(C487>=50%,"Средний уровень",IF(C487<49%,"Низкий уровень"))) -> Высокий уровень
A508: О | B508: ФИ ребенка: | D508: ='Список группы'!C15 -> Муравлев Даниил
B510: Сводна таблица | D510: Речевое развитие | E510: Познавательное развитие | F510: Социально-коммуникативное развитие | G510: Художественно-эстетическое развитие | H510: Физическое развитие
D511: РР | E511: ПР | F511: СК | G511: ХЭ | H511: ФР
B512: Н.Г. | D512: =('РР-1'!$U$18+'РР-2'!$Q$17+'РР-3'!$Y$17+'РР-4'!$R$17)/4 -> 3.7 | E512: =('ПР-1'!$Y$19+'ПР-2'!$M$17)/2 -> 3.9 | F512: =('СК-1'!$V$19+'СК-2'!$N$19+'СК-3'!$O$17)/3 -> 3.9 | G512: =('ХЭ-1'!$K$19+'ХЭ-2'!$M$16+'ХЭ-3'!$S$17+'ХЭ-4'!$X$17+'ХЭ-5'!$G$17+'ХЭ-5'!$M$17)/6 -> 3.8 | H512: =('ФР-1'!$S$19+'ФР-2'!$K$17)/2 -> 3.4
B513: К.Г. | D513: =('РР-1'!$V$18+'РР-2'!$R$17+'РР-3'!$Z$17+'РР-4'!$S$17)/4 -> 2.5 | E513: =('ПР-1'!$Z$19+'ПР-2'!$N$17)/2 -> 2.6 | F513: =('СК-1'!$W$19+'СК-2'!$O$19+'СК-3'!$P$17)/3 -> 2.6 | G513: =('ХЭ-1'!$L$19+'ХЭ-2'!$N$16+'ХЭ-3'!$T$17+'ХЭ-4'!$Y$17+'ХЭ-5'!$H$17+'ХЭ-5'!$N$17)/6 -> 2.6 | H513: =('ФР-1'!$T$19+'ФР-2'!$L$17)/2 -> 2.4
G515: Сентябрь | H515: Май
B516: Итоговое количество баллов по блоку (макс.25) | G516: =SUM(D512:H512) -> 19 | H516: =SUM(D513:H513) -> 13
B517: Уровень успешности образовательной деятельности | G517: =G516/25 -> 75% | H517: =H516/25 -> 51%
B533: Уровень успешности образовательной деятельности по отношению к обучающемуся
B534: н.г. | C534: =G517 -> 75% | E534: =IF(C534>=80%,"Высокий уровень",IF(C534>=50%,"Средний уровень",IF(C534<49%,"Низкий уровень"))) -> Средний уровень
B535: к.г. | C535: =H517 -> 51% | E535: =IF(C535>=80%,"Высокий уровень",IF(C535>=50%,"Средний уровень",IF(C535<49%,"Низкий уровень"))) -> Средний уровень
A556: О | B556: ФИ ребенка: | D556: ='Список группы'!C16 -> Панов Тимофей
B558: Сводна таблица | D558: Речевое развитие | E558: Познавательное развитие | F558: Социально-коммуникативное развитие | G558: Художественно-эстетическое развитие | H558: Физическое развитие
D559: РР | E559: ПР | F559: СК | G559: ХЭ | H559: ФР
B560: Н.Г. | D560: =('РР-1'!$U$19+'РР-2'!$Q$18+'РР-3'!$Y$18+'РР-4'!$R$18)/4 -> 3.2 | E560: =('ПР-1'!$Y$20+'ПР-2'!$M$18)/2 -> 3.3 | F560: =('СК-1'!$V$20+'СК-2'!$N$20+'СК-3'!$O$18)/3 -> 3.3 | G560: =('ХЭ-1'!$K$20+'ХЭ-2'!$M$17+'ХЭ-3'!$S$18+'ХЭ-4'!$X$18+'ХЭ-5'!$G$18+'ХЭ-5'!$M$18)/6 -> 3.3 | H560: =('ФР-1'!$S$20+'ФР-2'!$K$18)/2 -> 3.3
B561: К.Г. | D561: =('РР-1'!$V$19+'РР-2'!$R$18+'РР-3'!$Z$18+'РР-4'!$S$18)/4 -> 4.2 | E561: =('ПР-1'!$Z$20+'ПР-2'!$N$18)/2 -> 4.3 | F561: =('СК-1'!$W$20+'СК-2'!$O$20+'СК-3'!$P$18)/3 -> 4.3 | G561: =('ХЭ-1'!$L$20+'ХЭ-2'!$N$17+'ХЭ-3'!$T$18+'ХЭ-4'!$Y$18+'ХЭ-5'!$H$18+'ХЭ-5'!$N$18)/6 -> 4.3 | H561: =('ФР-1'!$T$20+'ФР-2'!$L$18)/2 -> 4.3
G563: Сентябрь | H563: Май
B564: Итоговое количество баллов по блоку (макс.25) | G564: =SUM(D560:H560) -> 16 | H564: =SUM(D561:H561) -> 21
B565: Уровень успешности образовательной деятельности | G565: =G564/25 -> 65% | H565: =H564/25 -> 85%
B581: Уровень успешности образовательной деятельности по отношению к обучающемуся
B582: н.г. | C582: =G565 -> 65% | E582: =IF(C582>=80%,"Высокий уровень",IF(C582>=50%,"Средний уровень",IF(C582<49%,"Низкий уровень"))) -> Средний уровень
B583: к.г. | C583: =H565 -> 85% | E583: =IF(C583>=80%,"Высокий уровень",IF(C583>=50%,"Средний уровень",IF(C583<49%,"Низкий уровень"))) -> Высокий уровень
A604: О | B604: ФИ ребенка: | D604: ='Список группы'!C17 -> Саркисов Илья
B606: Сводна таблица | D606: Речевое развитие | E606: Познавательное развитие | F606: Социально-коммуникативное развитие | G606: Художественно-эстетическое развитие | H606: Физическое развитие
D607: РР | E607: ПР | F607: СК | G607: ХЭ | H607: ФР
B608: Н.Г. | D608: =('РР-1'!$U$20+'РР-2'!$Q$19+'РР-3'!$Y$19+'РР-4'!$R$19)/4 -> 2.8 | E608: =('ПР-1'!$Y$21+'ПР-2'!$M$19)/2 -> 2.7 | F608: =('СК-1'!$V$21+'СК-2'!$N$21+'СК-3'!$O$19)/3 -> 2.6 | G608: =('ХЭ-1'!$K$21+'ХЭ-2'!$M$18+'ХЭ-3'!$S$19+'ХЭ-4'!$X$19+'ХЭ-5'!$G$19+'ХЭ-5'!$M$19)/6 -> 2.7 | H608: =('ФР-1'!$S$21+'ФР-2'!$K$19)/2 -> 3.2
B609: К.Г. | D609: =('РР-1'!$V$20+'РР-2'!$R$19+'РР-3'!$Z$19+'РР-4'!$S$19)/4 -> 3.8 | E609: =('ПР-1'!$Z$21+'ПР-2'!$N$19)/2 -> 3.7 | F609: =('СК-1'!$W$21+'СК-2'!$O$21+'СК-3'!$P$19)/3 -> 3.6 | G609: =('ХЭ-1'!$L$21+'ХЭ-2'!$N$18+'ХЭ-3'!$T$19+'ХЭ-4'!$Y$19+'ХЭ-5'!$H$19+'ХЭ-5'!$N$19)/6 -> 3.7 | H609: =('ФР-1'!$T$21+'ФР-2'!$L$19)/2 -> 4.2
G611: Сентябрь | H611: Май
B612: Итоговое количество баллов по блоку (макс.25) | G612: =SUM(D608:H608) -> 14 | H612: =SUM(D609:H609) -> 19
B613: Уровень успешности образовательной деятельности | G613: =G612/25 -> 56% | H613: =H612/25 -> 76%
B629: Уровень успешности образовательной деятельности по отношению к обучающемуся
B630: н.г. | C630: =G613 -> 56% | E630: =IF(C630>=80%,"Высокий уровень",IF(C630>=50%,"Средний уровень",IF(C630<49%,"Низкий уровень"))) -> Средний уровень
B631: к.г. | C631: =H613 -> 76% | E631: =IF(C631>=80%,"Высокий уровень",IF(C631>=50%,"Средний уровень",IF(C631<49%,"Низкий уровень"))) -> Средний уровень
A652: О | B652: ФИ ребенка: | D652: ='Список группы'!C18 -> Свирская Анастасия
B654: Сводна таблица | D654: Речевое развитие | E654: Познавательное развитие | F654: Социально-коммуникативное развитие | G654: Художественно-эстетическое развитие | H654: Физическое развитие
D655: РР | E655: ПР | F655: СК | G655: ХЭ | H655: ФР
B656: Н.Г. | D656: =('РР-1'!$U$21+'РР-2'!$Q$20+'РР-3'!$Y$20+'РР-4'!$R$20)/4 -> 5.0 | E656: =('ПР-1'!$Y$22+'ПР-2'!$M$20)/2 -> 5.0 | F656: =('СК-1'!$V$22+'СК-2'!$N$22+'СК-3'!$O$20)/3 -> 5.0 | G656: =('ХЭ-1'!$K$22+'ХЭ-2'!$M$19+'ХЭ-3'!$S$20+'ХЭ-4'!$X$20+'ХЭ-5'!$G$20+'ХЭ-5'!$M$20)/6 -> 5.0 | H656: =('ФР-1'!$S$22+'ФР-2'!$K$20)/2 -> 5.0
B657: К.Г. | D657: =('РР-1'!$V$21+'РР-2'!$R$20+'РР-3'!$Z$20+'РР-4'!$S$20)/4 -> 5.0 | E657: =('ПР-1'!$Z$22+'ПР-2'!$N$20)/2 -> 5.0 | F657: =('СК-1'!$W$22+'СК-2'!$O$22+'СК-3'!$P$20)/3 -> 5.0 | G657: =('ХЭ-1'!$L$22+'ХЭ-2'!$N$19+'ХЭ-3'!$T$20+'ХЭ-4'!$Y$20+'ХЭ-5'!$H$20+'ХЭ-5'!$N$20)/6 -> 5.0 | H657: =('ФР-1'!$T$22+'ФР-2'!$L$20)/2 -> 5.0
G659: Сентябрь | H659: Май
B660: Итоговое количество баллов по блоку (макс.25) | G660: =SUM(D656:H656) -> 25 | H660: =SUM(D657:H657) -> 25
B661: Уровень успешности образовательной деятельности | G661: =G660/25 -> 100% | H661: =H660/25 -> 100%
B677: Уровень успешности образовательной деятельности по отношению к обучающемуся
B678: н.г. | C678: =G661 -> 100% | E678: =IF(C678>=80%,"Высокий уровень",IF(C678>=50%,"Средний уровень",IF(C678<49%,"Низкий уровень"))) -> Высокий уровень
B679: к.г. | C679: =H661 -> 100% | E679: =IF(C679>=80%,"Высокий уровень",IF(C679>=50%,"Средний уровень",IF(C679<49%,"Низкий уровень"))) -> Высокий уровень
A700: О | B700: ФИ ребенка: | D700: ='Список группы'!C19 -> Семенина Елизавета
B702: Сводна таблица | D702: Речевое развитие | E702: Познавательное развитие | F702: Социально-коммуникативное развитие | G702: Художественно-эстетическое развитие | H702: Физическое развитие
D703: РР | E703: ПР | F703: СК | G703: ХЭ | H703: ФР
B704: Н.Г. | D704: =('РР-1'!$U$22+'РР-2'!$Q$21+'РР-3'!$Y$21+'РР-4'!$R$21)/4 -> 3.7 | E704: =('ПР-1'!$Y$23+'ПР-2'!$M$21)/2 -> 3.9 | F704: =('СК-1'!$V$23+'СК-2'!$N$23+'СК-3'!$O$21)/3 -> 3.9 | G704: =('ХЭ-1'!$K$22+'ХЭ-2'!$M$19+'ХЭ-3'!$S$20+'ХЭ-4'!$X$20+'ХЭ-5'!$G$20+'ХЭ-5'!$M$20)/6 -> 5.0 | H704: =('ФР-1'!$S$23+'ФР-2'!$K$21)/2 -> 3.4
B705: К.Г. | D705: =('РР-1'!$V$22+'РР-2'!$R$21+'РР-3'!$Z$21+'РР-4'!$S$21)/4 -> 2.5 | E705: =('ПР-1'!$Z$23+'ПР-2'!$N$21)/2 -> 2.6 | F705: =('СК-1'!$W$23+'СК-2'!$O$23+'СК-3'!$P$21)/3 -> 2.6 | G705: =('ХЭ-1'!$L$22+'ХЭ-2'!$N$19+'ХЭ-3'!$T$20+'ХЭ-4'!$Y$20+'ХЭ-5'!$H$20+'ХЭ-5'!$N$20)/6 -> 5.0 | H705: =('ФР-1'!$T$23+'ФР-2'!$L$21)/2 -> 2.4
G707: Сентябрь | H707: Май
B708: Итоговое количество баллов по блоку (макс.25) | G708: =SUM(D704:H704) -> 20 | H708: =SUM(D705:H705) -> 15
B709: Уровень успешности образовательной деятельности | G709: =G708/25 -> 80% | H709: =H708/25 -> 60%
B725: Уровень успешности образовательной деятельности по отношению к обучающемуся
B726: н.г. | C726: =G709 -> 80% | E726: =IF(C726>=80%,"Высокий уровень",IF(C726>=50%,"Средний уровень",IF(C726<49%,"Низкий уровень"))) -> Средний уровень
B727: к.г. | C727: =H709 -> 60% | E727: =IF(C727>=80%,"Высокий уровень",IF(C727>=50%,"Средний уровень",IF(C727<49%,"Низкий уровень"))) -> Средний уровень
A748: О | B748: ФИ ребенка: | D748: ='Список группы'!$C$20 -> Сергеев Алексей
B750: Сводна таблица | D750: Речевое развитие | E750: Познавательное развитие | F750: Социально-коммуникативное развитие | G750: Художественно-эстетическое развитие | H750: Физическое развитие
D751: РР | E751: ПР | F751: СК | G751: ХЭ | H751: ФР
B752: Н.Г. | D752: =('РР-1'!$U$23+'РР-2'!$Q$22+'РР-3'!$Y$22+'РР-4'!$R$22)/4 -> 3.2 | E752: =('ПР-1'!$Y$24+'ПР-2'!$M$22)/2 -> 3.3 | F752: =('СК-1'!$V$24+'СК-2'!$N$24+'СК-3'!$O$22)/3 -> 3.3 | G752: =('ХЭ-1'!$K$23+'ХЭ-2'!$M$20+'ХЭ-3'!$S$21+'ХЭ-4'!$X$21+'ХЭ-5'!$G$21+'ХЭ-5'!$M$21)/6 -> 3.8 | H752: =('ФР-1'!$S$24+'ФР-2'!$K$24)/2 -> 4.1
B753: К.Г. | D753: =('РР-1'!$V$23+'РР-2'!$R$22+'РР-3'!$Z$22+'РР-4'!$S$22)/4 -> 4.2 | E753: =('ПР-1'!$Z$24+'ПР-2'!$N$22)/2 -> 4.3 | F753: =('СК-1'!$W$24+'СК-2'!$O$24+'СК-3'!$P$22)/3 -> 4.3 | G753: =('ХЭ-1'!$L$24+'ХЭ-2'!$N$20+'ХЭ-3'!$T$21+'ХЭ-4'!$Y$21+'ХЭ-5'!$H$21+'ХЭ-5'!$N$21)/6 -> 2.8 | H753: =('ФР-1'!$T$24+'ФР-2'!$L$24)/2 -> 4.6
G755: Сентябрь | H755: Май
B756: Итоговое количество баллов по блоку (макс.25) | G756: =SUM(D752:H752) -> 18 | H756: =SUM(D753:H753) -> 20
B757: Уровень успешности образовательной деятельности | G757: =G756/25 -> 71% | H757: =H756/25 -> 81%
B773: Уровень успешности образовательной деятельности по отношению к обучающемуся
B774: н.г. | C774: =G757 -> 71% | E774: =IF(C774>=80%,"Высокий уровень",IF(C774>=50%,"Средний уровень",IF(C774<49%,"Низкий уровень"))) -> Средний уровень
B775: к.г. | C775: =H757 -> 81% | E775: =IF(C775>=80%,"Высокий уровень",IF(C775>=50%,"Средний уровень",IF(C775<49%,"Низкий уровень"))) -> Высокий уровень
A796: О | B796: ФИ ребенка: | D796: ='Список группы'!$C$21 -> Солопов Максим
B798: Сводна таблица | D798: Речевое развитие | E798: Познавательное развитие | F798: Социально-коммуникативное развитие | G798: Художественно-эстетическое развитие | H798: Физическое развитие
D799: РР | E799: ПР | F799: СК | G799: ХЭ | H799: ФР
B800: Н.Г. | D800: =('РР-1'!$U$24+'РР-2'!$Q$23+'РР-3'!$Y$23+'РР-4'!$R$23)/4 -> 2.8 | E800: =('ПР-1'!$Y$25+'ПР-2'!$M$23)/2 -> 2.7 | F800: =('СК-1'!$V$25+'СК-2'!$N$25+'СК-3'!$O$23)/3 -> 2.6 | G800: =('ХЭ-1'!$K$24+'ХЭ-2'!$M$21+'ХЭ-3'!$S$22+'ХЭ-4'!$X$22+'ХЭ-5'!$G$22+'ХЭ-5'!$M$22)/6 -> 3.3 | H800: =('ФР-1'!$S$25+'ФР-2'!$K$23)/2 -> 3.2
B801: К.Г. | D801: =('РР-1'!$V$24+'РР-2'!$R$23+'РР-3'!$Z$23+'РР-4'!$S$23)/4 -> 3.8 | E801: =('ПР-1'!$Z$25+'ПР-2'!$N$23)/2 -> 3.7 | F801: =('СК-1'!$W$25+'СК-2'!$O$25+'СК-3'!$P$23)/3 -> 3.6 | G801: =('ХЭ-1'!$L$24+'ХЭ-2'!$N$21+'ХЭ-3'!$T$22+'ХЭ-4'!$Y$22+'ХЭ-5'!$H$22+'ХЭ-5'!$N$22)/6 -> 4.3 | H801: =('ФР-1'!$T$25+'ФР-2'!$L$23)/2 -> 4.2
G803: Сентябрь | H803: Май
B804: Итоговое количество баллов по блоку (макс.25) | G804: =SUM(D800:H800) -> 15 | H804: =SUM(D801:H801) -> 20
B805: Уровень успешности образовательной деятельности | G805: =G804/25 -> 58% | H805: =H804/25 -> 78%
B821: Уровень успешности образовательной деятельности по отношению к обучающемуся
B822: н.г. | C822: =G805 -> 58% | E822: =IF(C822>=80%,"Высокий уровень",IF(C822>=50%,"Средний уровень",IF(C822<49%,"Низкий уровень"))) -> Средний уровень
B823: к.г. | C823: =H805 -> 78% | E823: =IF(C823>=80%,"Высокий уровень",IF(C823>=50%,"Средний уровень",IF(C823<49%,"Низкий уровень"))) -> Средний уровень
A844: О | B844: ФИ ребенка: | D844: ='Список группы'!$C$22 -> Стригунов Александр
B846: Сводна таблица | D846: Речевое развитие | E846: Познавательное развитие | F846: Социально-коммуникативное развитие | G846: Художественно-эстетическое развитие | H846: Физическое развитие
... 64 more rows
